Body Name,Service Area,Expenses Type,Invoice Payment Date,Transaction Number,Net Amount,Supplier Name
Manchester City Council,Adult Social Care,Training and Development,04.05.2021,1907216071,"2,000.00",Redacted Personal Information
Manchester City Council,Adult Social Care,Rents,04.05.2021,1907203472,"2,991.75",Ijaz Hussain Judge Services Ltd
Manchester City Council,Adult Social Care,Rents,04.05.2021,1907201279,"2,100.00",Ryan Bakers Estate Agents
Manchester City Council,Childrens & Education Services,Contract Cleaning External,04.05.2021,5101131479,667.00,Freshwave Cleaning Services Ltd
Manchester City Council,Hospitality + Trading Services,Cleaning Equipment and Materials,04.05.2021,1907222448,626.55,Alliance Disposables Ltd
Manchester City Council,Hospitality + Trading Services,Cleaning Equipment and Materials,04.05.2021,1907222262,614.40,Alliance Disposables Ltd
Manchester City Council,Hospitality + Trading Services,Cleaning Equipment and Materials,04.05.2021,1907222453,571.87,Alliance Disposables Ltd
Manchester City Council,Manchester Leisure,Equipment,04.05.2021,1907221958,"11,036.14",WWW.ALANMARCHSPORT.COM
Manchester City Council,Manchester Leisure,Equipment,04.05.2021,1907221957,"3,050.40",WWW.ALANMARCHSPORT.COM
Manchester City Council,Hospitality + Trading Services,Equipment,04.05.2021,1907222074,"2,484.56",Stapletons Tyre Services
Manchester City Council,Hospitality + Trading Services,Equipment,04.05.2021,1907222075,"2,162.04",Stapletons Tyre Services
Manchester City Council,Adult Social Care,Equipment,04.05.2021,5101131477,"4,297.50",NRS Healthcare
Manchester City Council,Adult Social Care,Equipment,04.05.2021,5101131476,720.00,NRS Healthcare
Manchester City Council,Chief Executives,Equipment,04.05.2021,1907221935,"2,170.00",SAFARI BOOKS ONLINE
Manchester City Council,Manchester Leisure,"Consumable items eg Toilet rolls, soap etc",04.05.2021,1907222079,"1,487.88",ZOOM.US 888-799-9666
Manchester City Council,Manchester Leisure,"Consumable items eg Toilet rolls, soap etc",04.05.2021,1907222069,900.00,ARTNET AG
Manchester City Council,Manchester Leisure,"Consumable items eg Toilet rolls, soap etc",04.05.2021,1907221984,571.46,Post Office (CARD ONLY)
Manchester City Council,Adult Social Care,"Consumable items eg Toilet rolls, soap etc",04.05.2021,1907222031,"2,240.00",SUMUP  *STUDENT LIVING MA
Manchester City Council,Hospitality + Trading Services,Catering Provisions,04.05.2021,1907222484,"1,240.62",Brake Bros Foodservice Ltd
Manchester City Council,Hospitality + Trading Services,Catering Provisions,04.05.2021,1907222332,"1,075.29",Brake Bros Foodservice Ltd
Manchester City Council,Hospitality + Trading Services,Catering Provisions,04.05.2021,1907222486,973.96,Brake Bros Foodservice Ltd
Manchester City Council,Hospitality + Trading Services,Catering Provisions,04.05.2021,1907222218,947.69,Ralph Livesey Ltd
Manchester City Council,Hospitality + Trading Services,Catering Provisions,04.05.2021,1907222338,936.01,Brake Bros Foodservice Ltd
Manchester City Council,Hospitality + Trading Services,Catering Provisions,04.05.2021,1907222364,806.99,Brake Bros Foodservice Ltd
Manchester City Council,Hospitality + Trading Services,Catering Provisions,04.05.2021,1907222394,771.32,Brake Bros Foodservice Ltd
Manchester City Council,Hospitality + Trading Services,Catering Provisions,04.05.2021,1907222411,722.31,Brake Bros Foodservice Ltd
Manchester City Council,Hospitality + Trading Services,Catering Provisions,04.05.2021,1907222244,707.78,Ralph Livesey Ltd
Manchester City Council,Hospitality + Trading Services,Catering Provisions,04.05.2021,1907222167,685.18,Ralph Livesey Ltd
Manchester City Council,Hospitality + Trading Services,Catering Provisions,04.05.2021,1907222399,681.48,Brake Bros Foodservice Ltd
Manchester City Council,Hospitality + Trading Services,Catering Provisions,04.05.2021,1907222436,667.73,Brake Bros Foodservice Ltd
Manchester City Council,Hospitality + Trading Services,Catering Provisions,04.05.2021,1907222489,658.76,Brake Bros Foodservice Ltd
Manchester City Council,Hospitality + Trading Services,Catering Provisions,04.05.2021,1907222342,654.66,Brake Bros Foodservice Ltd
Manchester City Council,Hospitality + Trading Services,Catering Provisions,04.05.2021,1907222203,628.53,Ralph Livesey Ltd
Manchester City Council,Hospitality + Trading Services,Catering Provisions,04.05.2021,1907222205,618.76,Ralph Livesey Ltd
Manchester City Council,Hospitality + Trading Services,Catering Provisions,04.05.2021,1907222378,612.96,Brake Bros Foodservice Ltd
Manchester City Council,Hospitality + Trading Services,Catering Provisions,04.05.2021,1907222438,612.05,Brake Bros Foodservice Ltd
Manchester City Council,Hospitality + Trading Services,Catering Provisions,04.05.2021,1907222312,545.67,Ralph Livesey Ltd
Manchester City Council,Hospitality + Trading Services,Catering Provisions,04.05.2021,1907222255,545.22,Ralph Livesey Ltd
Manchester City Council,Hospitality + Trading Services,Catering Provisions,04.05.2021,1907222267,541.90,Ralph Livesey Ltd
Manchester City Council,Hospitality + Trading Services,Catering Provisions,04.05.2021,1907222441,541.39,Brake Bros Foodservice Ltd
Manchester City Council,Hospitality + Trading Services,Catering Provisions,04.05.2021,1907222219,526.86,Ralph Livesey Ltd
Manchester City Council,Hospitality + Trading Services,Catering Provisions,04.05.2021,1907222179,517.58,Ralph Livesey Ltd
Manchester City Council,Hospitality + Trading Services,Catering Provisions,04.05.2021,1907222504,516.18,Brake Bros Foodservice Ltd
Manchester City Council,Adult Social Care,General Office expenses,04.05.2021,1907222104,530.23,WEALDEN REHAB LTD
Manchester City Council,Chief Executives,Data Links,04.05.2021,5101131494,"2,833.34",The Loop t/a Gamma Telecom Ltd
Manchester City Council,Chief Executives,Data Links,04.05.2021,5101131497,"2,833.34",The Loop t/a Gamma Telecom Ltd
Manchester City Council,Chief Executives,Data Links,04.05.2021,5101131499,"2,833.34",The Loop t/a Gamma Telecom Ltd
Manchester City Council,Chief Executives,Data Links,04.05.2021,5101131486,"-2,857.34",The Loop t/a Gamma Telecom Ltd
Manchester City Council,Chief Executives,Data Links,04.05.2021,5101131489,"-2,857.34",The Loop t/a Gamma Telecom Ltd
Manchester City Council,Chief Executives,Data Links,04.05.2021,5101131490,"-2,857.34",The Loop t/a Gamma Telecom Ltd
Manchester City Council,Manchester Leisure,Grant and subscriptions awarded,04.05.2021,5101131474,"1,100.00",Brunswick Parish Church
Manchester City Council,Chief Executives,Hospitality,04.05.2021,1907222019,"1,550.00",ETSY.COM - JESSICA6DESIGN
Manchester City Council,Chief Executives,Advertising,04.05.2021,1907221938,700.00,Facebook (CARD ONLY)
Manchester City Council,Chief Executives,Advertising,04.05.2021,1907221949,700.00,Facebook (CARD ONLY)
Manchester City Council,Chief Executives,Advertising,04.05.2021,1907221961,700.00,Facebook (CARD ONLY)
Manchester City Council,Chief Executives,Advertising,04.05.2021,1907221964,700.00,Facebook (CARD ONLY)
Manchester City Council,Chief Executives,Advertising,04.05.2021,1907221998,700.00,Facebook (CARD ONLY)
Manchester City Council,Chief Executives,Advertising,04.05.2021,1907222018,700.00,Facebook (CARD ONLY)
Manchester City Council,Chief Executives,Advertising,04.05.2021,1907222039,700.00,Facebook (CARD ONLY)
Manchester City Council,Chief Executives,Advertising,04.05.2021,1907221952,616.78,MAILCHIMP P CARD ONLY
Manchester City Council,Manchester Leisure,Library Materials Acquisition,04.05.2021,1907222041,"1,313.60",NBNI* 210413130611207
Manchester City Council,Childrens & Education Services,Personal needs of client,04.05.2021,1907222091,503.38,CURRYS ONLINE
Manchester City Council,Adult Social Care,Personal needs of client,04.05.2021,5101131488,"2,523.00",James Leckey Design Ltd
Manchester City Council,Chief Executives,Works and associated costs for Land and Buildings,04.05.2021,5101131480,"2,980.00",Ove Arup & Partners Ltd
Manchester City Council,Regeneration Finance,Training and Development,05.05.2021,1907222537,"1,500.00",Blue Book Artist Management Ltd
Manchester City Council,Hospitality + Trading Services,Training and Development,05.05.2021,5101131569,"4,140.00",Redacted Personal Information
Manchester City Council,Adult Social Care,Training and Development,05.05.2021,5101131647,"1,365.30",Blackwell Publishers Ltd-Uk
Manchester City Council,Corporate Services,Training and Development,05.05.2021,5101131493,"6,000.00",Life In Colour Coaching Limited
Manchester City Council,Insurance Fund,Insurance,05.05.2021,1907220028,"6,904.00",Cordell & Co
Manchester City Council,Childrens & Education Services,Training and Development,05.05.2021,1907224527,"14,700.00",Safe and Together Institute
Manchester City Council,Adult Social Care,Rents,05.05.2021,5101131649,"160,794.91",District Homes Cic
Manchester City Council,Adult Social Care,Rents,05.05.2021,5101131644,"9,171.79",Eeven Homes Ltd.
Manchester City Council,Adult Social Care,Rents,05.05.2021,5101131560,"3,124.77",Houses4Homes 4U Ltd
Manchester City Council,Adult Social Care,Rents,05.05.2021,5101131561,"3,124.77",Houses4Homes 4U Ltd
Manchester City Council,Adult Social Care,Rents,05.05.2021,1907222546,"1,300.00",Jade Residential
Manchester City Council,Hospitality + Trading Services,Contract Cleaning External,05.05.2021,5101131511,"1,274.00",Pest Bird Control Ltd
Manchester City Council,Corporate Services,Security,05.05.2021,5101131592,"5,510.73",NSL Ltd
Manchester City Council,Manchester Leisure,Grounds Maintenance Costs,05.05.2021,5101131680,"-2,852.46",Tivoli Group Ltd
Manchester City Council,Hospitality + Trading Services,Vehicle Hire Costs,05.05.2021,5101131691,"24,872.60",Manchester Van Hire Ltd
Manchester City Council,Chief Executives,Vehicle Hire Costs,05.05.2021,5101131690,642.42,Manchester Van Hire Ltd
Manchester City Council,Hospitality + Trading Services,Vehicle Repairs,05.05.2021,5101131688,"1,057.17",Manchester Van Hire Ltd
Manchester City Council,Regeneration Finance,Travel,05.05.2021,5101131702,"1,289.75",Office for Metropolitan Architectur
Manchester City Council,Corporate Services,Travel Season Ticket Loan Scheme,05.05.2021,5101131559,570.00,Stagecoach Manchester
Manchester City Council,Corporate Services,Travel Season Ticket Loan Scheme,05.05.2021,5101131562,570.00,Stagecoach Manchester
Manchester City Council,Corporate Services,Travel Season Ticket Loan Scheme,05.05.2021,5101131568,570.00,Stagecoach Manchester
Manchester City Council,Corporate Services,Travel Season Ticket Loan Scheme,05.05.2021,5101131574,570.00,Stagecoach Manchester
Manchester City Council,Corporate Services,Travel Season Ticket Loan Scheme,05.05.2021,5101131619,570.00,Stagecoach Manchester
Manchester City Council,Manchester Leisure,Equipment,05.05.2021,5101131556,"1,400.00",Willfab Ltd
Manchester City Council,Manchester Leisure,Equipment,05.05.2021,5101131557,"1,400.00",Willfab Ltd
Manchester City Council,Manchester Leisure,Equipment,05.05.2021,5101131558,650.00,Willfab Ltd
Manchester City Council,Adult Social Care,Equipment,05.05.2021,5101131698,870.00,Smitcare Ltd
Manchester City Council,Highways Services,Building Materials for direct delivery,05.05.2021,5101131614,"1,252.40",Aggregate Industries T/A Kennedy As
Manchester City Council,Highways Services,Building Materials for direct delivery,05.05.2021,5101131613,"1,002.00",Aggregate Industries T/A Kennedy As
Manchester City Council,Highways Services,Building Materials for direct delivery,05.05.2021,5101131609,975.12,Aggregate Industries T/A Kennedy As
Manchester City Council,Highways Services,Building Materials for direct delivery,05.05.2021,5101131604,796.00,Aggregate Industries T/A Kennedy As
Manchester City Council,Highways Services,Building Materials for direct delivery,05.05.2021,5101131608,776.80,Aggregate Industries T/A Kennedy As
Manchester City Council,Highways Services,Building Materials for direct delivery,05.05.2021,5101131610,772.00,Aggregate Industries T/A Kennedy As
Manchester City Council,Highways Services,Building Materials for direct delivery,05.05.2021,5101131607,764.40,Aggregate Industries T/A Kennedy As
Manchester City Council,Highways Services,Building Materials for direct delivery,05.05.2021,5101131605,640.00,Aggregate Industries T/A Kennedy As
Manchester City Council,Highways Services,Building Materials for direct delivery,05.05.2021,5101131600,581.20,Aggregate Industries T/A Kennedy As
Manchester City Council,Highways Services,Building Materials for direct delivery,05.05.2021,5101131598,570.64,Aggregate Industries T/A Kennedy As
Manchester City Council,Manchester Leisure,Payments to Sub-Contractors,05.05.2021,5101131663,"1,560.00",Rigby Taylor Ltd
Manchester City Council,Manchester Leisure,Payments to Sub-Contractors,05.05.2021,5101131665,"1,560.00",Rigby Taylor Ltd
Manchester City Council,Manchester Leisure,Payments to Sub-Contractors,05.05.2021,5101131661,"1,140.00",Rigby Taylor Ltd
Manchester City Council,Manchester Leisure,Hire of Equipment,05.05.2021,5101131643,812.50,Eventplus Ltd
Manchester City Council,Manchester Leisure,Hire of Equipment,05.05.2021,5101131646,557.50,Eventplus Ltd
Manchester City Council,Regeneration Finance,Training and Development,05.05.2021,5101131583,"2,528.20",Assessment & Qualifications Allianc
Manchester City Council,Regeneration Finance,Training and Development,05.05.2021,5101131582,"2,186.70",Assessment & Qualifications Allianc
Manchester City Council,Hospitality + Trading Services,Professional fees,05.05.2021,5101131685,-609.50,Jacobs UK Ltd
Manchester City Council,Childrens & Education Services,Professional fees,05.05.2021,1907221220,732.87,Millennium Translations Ltd
Manchester City Council,Corporate Services,Professional fees,05.05.2021,5101131485,"4,060.00",Turner & Townsend Cost
Manchester City Council,Housing Revenue Account,Professional fees,05.05.2021,5101131660,"14,718.87",NE1 Procurement Services Limited
Manchester City Council,Chief Executives,Professional fees,05.05.2021,1907221224,"4,743.65",Weightmans LLP Solicitors
Manchester City Council,Chief Executives,Professional fees,05.05.2021,1907221221,"2,797.29",Weightmans LLP Solicitors
Manchester City Council,Chief Executives,Professional fees,05.05.2021,1907221060,"2,525.25",Weightmans LLP Solicitors
Manchester City Council,Chief Executives,Professional fees,05.05.2021,1907221240,"2,293.75",Weightmans LLP Solicitors
Manchester City Council,Chief Executives,Professional fees,05.05.2021,1907221236,"2,050.71",Weightmans LLP Solicitors
Manchester City Council,Chief Executives,Professional fees,05.05.2021,1907221238,"1,962.50",Weightmans LLP Solicitors
Manchester City Council,Chief Executives,Professional fees,05.05.2021,1907221235,"1,886.25",Weightmans LLP Solicitors
Manchester City Council,Chief Executives,Professional fees,05.05.2021,1907221237,"1,781.25",Weightmans LLP Solicitors
Manchester City Council,Regeneration Finance,Professional fees,05.05.2021,5101131501,"6,500.00",Savills (UK) Ltd
Manchester City Council,Regeneration Finance,Professional fees,05.05.2021,5101131502,"6,500.00",Savills (UK) Ltd
Manchester City Council,Manchester Leisure,Grant and subscriptions awarded,05.05.2021,5101131593,500.00,Gorton Events Committee
Manchester City Council,Chief Executives,Advertising,05.05.2021,5101131651,"1,133.33",JPIMedia Publishing Ltd
Manchester City Council,Adult Social Care,Bed and Breakfast Accommodation Expenditure,05.05.2021,5101131617,"28,499.82",Redacted Personal Information
Manchester City Council,Adult Social Care,Bed and Breakfast Accommodation Expenditure,05.05.2021,5101131571,"11,799.00",Redacted Personal Information
Manchester City Council,Adult Social Care,Bed and Breakfast Accommodation Expenditure,05.05.2021,5101131652,"5,610.00",Redacted Personal Information
Manchester City Council,General Fund,Bus Rates Pool Top Up Payments,05.05.2021,1907224529,"3,478,687.00",DCLG
Manchester City Council,Childrens & Education Services,Third party payments to other Local Authorities,05.05.2021,5101131573,"1,116.00",The Orchards School
Manchester City Council,Childrens & Education Services,Third party payments to other Local Authorities,05.05.2021,5101131492,-521.25,Firs Primary School
Manchester City Council,Childrens & Education Services,Payments for services,05.05.2021,5101131565,"2,883.60",Redacted Personal Information
Manchester City Council,Childrens & Education Services,Payments for services,05.05.2021,5101131563,"2,474.01",Redacted Personal Information
Manchester City Council,Childrens & Education Services,Payments for services,05.05.2021,5101131595,"1,767.32",Reed Employment Plc
Manchester City Council,Childrens & Education Services,Payments for services,05.05.2021,5101131639,"1,663.36",Reed Employment Plc
Manchester City Council,Childrens & Education Services,Payments for services,05.05.2021,1907221228,"1,349.00",Redacted Personal Information
Manchester City Council,Childrens & Education Services,Payments for services,05.05.2021,5101131603,"1,247.52",Reed Employment Plc
Manchester City Council,Childrens & Education Services,Payments for services,05.05.2021,5101131616,909.65,Reed Employment Plc
Manchester City Council,Childrens & Education Services,Payments for services,05.05.2021,5101131601,727.72,Reed Employment Plc
Manchester City Council,Childrens & Education Services,Payments for services,05.05.2021,5101131631,623.76,Reed Employment Plc
Manchester City Council,Childrens & Education Services,Payments for services,05.05.2021,5101131599,519.80,Reed Employment Plc
Manchester City Council,Childrens & Education Services,Payments for services,05.05.2021,5101131627,519.80,Reed Employment Plc
Manchester City Council,Childrens & Education Services,Foster Payments,05.05.2021,1907227551,556.36,Redacted Personal Information
Manchester City Council,Childrens & Education Services,Day Care Payments,05.05.2021,5101131590,"1,083.13",Brighter Beginnings Day Nursery
Manchester City Council,Childrens & Education Services,Day Care Payments,05.05.2021,5101131588,666.67,Brighter Beginnings Day Nursery
Manchester City Council,Childrens & Education Services,Day Care Payments,05.05.2021,5101131589,666.67,Brighter Beginnings Day Nursery
Manchester City Council,Adult Social Care,Supported Accommodation,05.05.2021,5101131524,874.00,Alliance Disposables Ltd
Manchester City Council,Housing Revenue Account,Council Dwelling Adaptations,05.05.2021,5101131536,"26,563.07",Manchester Working Ltd
Manchester City Council,Housing Revenue Account,Council Dwelling Adaptations,05.05.2021,5101131541,"6,404.00",Stannah Lift Services Ltd
Manchester City Council,Housing Revenue Account,Council Dwelling Adaptations,05.05.2021,5101131517,"5,938.60",Rexel UK Ltd
Manchester City Council,Housing Revenue Account,Council Dwelling Adaptations,05.05.2021,5101131572,"4,929.00",Stannah Lift Services Ltd
Manchester City Council,Housing Revenue Account,Council Dwelling Adaptations,05.05.2021,5101131591,"2,159.81",Prism Medical UK Carefree Division
Manchester City Council,Housing Revenue Account,Council Dwelling Adaptations,05.05.2021,5101131520,"2,131.26",Rexel UK Ltd
Manchester City Council,Housing Revenue Account,Council Dwelling Adaptations,05.05.2021,5101131575,"1,632.00",Stannah Lift Services Ltd
Manchester City Council,Housing Revenue Account,Council Dwelling Adaptations,05.05.2021,5101131519,853.65,Rexel UK Ltd
Manchester City Council,Housing Revenue Account,Council Dwelling Adaptations,05.05.2021,5101131514,652.20,SIG Roofing Supplies
Manchester City Council,Housing Revenue Account,Council Dwelling Adaptations,05.05.2021,5101131521,575.07,Pts Plumbing Trade Supplies
Manchester City Council,Chief Executives,Works and associated costs for Land and Buildings,05.05.2021,5101131491,"5,750.00",Planit
Manchester City Council,Chief Executives,Works and associated costs for Land and Buildings,05.05.2021,5101131506,"2,000.00",Buro Happold Limited
Manchester City Council,Chief Executives,Works and associated costs for Land and Buildings,05.05.2021,5101131495,"1,750.00",Planit
Manchester City Council,Chief Executives,Works and associated costs for Land and Buildings,05.05.2021,1907224528,"1,579.79",Office for Metropolitan Architectur
Manchester City Council,Chief Executives,Works and associated costs for Land and Buildings,05.05.2021,5101131496,"1,250.00",Planit
Manchester City Council,Chief Executives,Works and associated costs for Land and Buildings,05.05.2021,1700119267,"-1,579.79",Office for Metropolitan Architectur
Manchester City Council,Corporate Services,Works and associated costs for Land and Buildings,05.05.2021,5101131655,945.00,The Fountain Company Ltd
Manchester City Council,Housing General Fund,Building Works,05.05.2021,1907227549,"56,814.15",Great Places Housing Association
Manchester City Council,Housing General Fund,Capital Receipts,05.05.2021,1907221227,"15,200.00",Redrow Homes Lancashire
Manchester City Council,Chief Executives,Legal Fees,05.05.2021,1907227550,"24,750.00",WTB Solicitors LLP
Manchester City Council,Highways Services,Legal Fees,05.05.2021,5101131500,"3,800.00",Lincoln House Chambers
Manchester City Council,Chief Executives,Legal Fees,05.05.2021,1907222527,625.00,Redacted Personal Information
Manchester City Council,Chief Executives,Legal Fees,05.05.2021,5101131584,500.00,Kings Chambers
Manchester City Council,Chief Executives,Compensation Payments,05.05.2021,5101131659,"2,380.00",11KBW
Manchester City Council,Chief Executives,Agency staff provision,06.05.2021,5101131681,"9,338.00",Venn Group Ltd
Manchester City Council,Chief Executives,Agency staff provision,06.05.2021,5101131679,"1,944.00",Ashberry Recruitment Ltd
Manchester City Council,Chief Executives,Training and Development,06.05.2021,1907222544,"4,000.00",Marshall ACM Ltd
Manchester City Council,Manchester Leisure,External repairs and maintenance for buildings,06.05.2021,5101131770,844.00,Ashlea Ltd
Manchester City Council,Regeneration Finance,External repairs and maintenance for buildings,06.05.2021,5101131827,"1,902.89",Community Security (North West)
Manchester City Council,Manchester Leisure,Gas,06.05.2021,1907227903,"9,832.34",Gazprom Energy
Manchester City Council,Manchester Leisure,Gas,06.05.2021,1907227918,"5,084.85",Gazprom Energy
Manchester City Council,Manchester Leisure,Gas,06.05.2021,1907227854,"4,065.88",Gazprom Energy
Manchester City Council,Manchester Leisure,Gas,06.05.2021,1907227919,"3,617.46",Gazprom Energy
Manchester City Council,Manchester Leisure,Gas,06.05.2021,1907227923,"2,791.41",Gazprom Energy
Manchester City Council,Manchester Leisure,Gas,06.05.2021,1907227917,"2,465.20",Gazprom Energy
Manchester City Council,Manchester Leisure,Gas,06.05.2021,1907227816,"2,416.71",Gazprom Energy
Manchester City Council,Manchester Leisure,Gas,06.05.2021,1907227908,"2,070.23",Gazprom Energy
Manchester City Council,Manchester Leisure,Gas,06.05.2021,1907227825,"1,598.17",Gazprom Energy
Manchester City Council,Manchester Leisure,Gas,06.05.2021,1907227915,"1,583.33",Gazprom Energy
Manchester City Council,Manchester Leisure,Gas,06.05.2021,1907227895,"1,246.22",Gazprom Energy
Manchester City Council,Manchester Leisure,Gas,06.05.2021,1907227907,"1,062.65",Gazprom Energy
Manchester City Council,Manchester Leisure,Gas,06.05.2021,1907227964,776.75,Gazprom Energy
Manchester City Council,Manchester Leisure,Gas,06.05.2021,1907227807,542.32,Gazprom Energy
Manchester City Council,Hospitality + Trading Services,Gas,06.05.2021,1907227829,"4,258.16",Gazprom Energy
Manchester City Council,Hospitality + Trading Services,Gas,06.05.2021,1907227818,"2,559.23",Gazprom Energy
Manchester City Council,Childrens & Education Services,Gas,06.05.2021,1907227858,"1,602.34",Gazprom Energy
Manchester City Council,Childrens & Education Services,Gas,06.05.2021,1907227982,525.61,Gazprom Energy
Manchester City Council,Adult Social Care,Gas,06.05.2021,1907227899,734.69,Gazprom Energy
Manchester City Council,Adult Social Care,Gas,06.05.2021,1907227935,689.91,Gazprom Energy
Manchester City Council,Corporate Services,Gas,06.05.2021,1907227975,652.01,Gazprom Energy
Manchester City Council,Housing Revenue Account,Gas,06.05.2021,1907227969,"7,039.64",Gazprom Energy
Manchester City Council,Housing Revenue Account,Gas,06.05.2021,1907227849,"5,702.89",Gazprom Energy
Manchester City Council,Housing Revenue Account,Gas,06.05.2021,1907227971,"5,687.26",Gazprom Energy
Manchester City Council,Housing Revenue Account,Gas,06.05.2021,1907227832,"1,221.14",Gazprom Energy
Manchester City Council,Housing Revenue Account,Gas,06.05.2021,1907227942,"1,202.25",Gazprom Energy
Manchester City Council,Housing Revenue Account,Gas,06.05.2021,1907227949,"1,050.02",Gazprom Energy
Manchester City Council,Housing Revenue Account,Gas,06.05.2021,1907227883,"1,013.90",Gazprom Energy
Manchester City Council,Housing Revenue Account,Gas,06.05.2021,1907227881,987.10,Gazprom Energy
Manchester City Council,Housing Revenue Account,Gas,06.05.2021,1907227943,966.56,Gazprom Energy
Manchester City Council,Housing Revenue Account,Gas,06.05.2021,1907227896,931.95,Gazprom Energy
Manchester City Council,Housing Revenue Account,Gas,06.05.2021,1907227929,910.20,Gazprom Energy
Manchester City Council,Housing Revenue Account,Gas,06.05.2021,1907227814,898.68,Gazprom Energy
Manchester City Council,Housing Revenue Account,Gas,06.05.2021,1907227945,870.15,Gazprom Energy
Manchester City Council,Housing Revenue Account,Gas,06.05.2021,1907227855,844.68,Gazprom Energy
Manchester City Council,Housing Revenue Account,Gas,06.05.2021,1907227815,841.83,Gazprom Energy
Manchester City Council,Housing Revenue Account,Gas,06.05.2021,1907227951,832.14,Gazprom Energy
Manchester City Council,Regeneration Finance,Gas,06.05.2021,1907227968,"23,436.04",Gazprom Energy
Manchester City Council,Regeneration Finance,Gas,06.05.2021,1907227983,"4,838.27",Gazprom Energy
Manchester City Council,Regeneration Finance,Gas,06.05.2021,1907227867,"4,769.28",Gazprom Energy
Manchester City Council,Regeneration Finance,Gas,06.05.2021,1907227928,"3,201.50",Gazprom Energy
Manchester City Council,Regeneration Finance,Gas,06.05.2021,1907227857,"3,174.49",Gazprom Energy
Manchester City Council,Regeneration Finance,Gas,06.05.2021,1907227904,"3,048.34",Gazprom Energy
Manchester City Council,Regeneration Finance,Gas,06.05.2021,1907227809,"2,420.17",Gazprom Energy
Manchester City Council,Regeneration Finance,Gas,06.05.2021,1907227804,"2,400.81",Gazprom Energy
Manchester City Council,Regeneration Finance,Gas,06.05.2021,1907227892,"1,669.27",Gazprom Energy
Manchester City Council,Regeneration Finance,Gas,06.05.2021,1907227948,"1,354.35",Gazprom Energy
Manchester City Council,Regeneration Finance,Gas,06.05.2021,1907227869,"1,293.31",Gazprom Energy
Manchester City Council,Regeneration Finance,Gas,06.05.2021,1907227877,"1,195.40",Gazprom Energy
Manchester City Council,Regeneration Finance,Gas,06.05.2021,1907227967,"1,174.84",Gazprom Energy
Manchester City Council,Regeneration Finance,Gas,06.05.2021,1907227876,"1,146.35",Gazprom Energy
Manchester City Council,Regeneration Finance,Gas,06.05.2021,1907227872,"1,017.61",Gazprom Energy
Manchester City Council,Regeneration Finance,Gas,06.05.2021,1907227894,995.92,Gazprom Energy
Manchester City Council,Regeneration Finance,Gas,06.05.2021,1907227841,916.47,Gazprom Energy
Manchester City Council,Regeneration Finance,Gas,06.05.2021,1907227941,861.99,Gazprom Energy
Manchester City Council,Regeneration Finance,Gas,06.05.2021,1907227934,847.82,Gazprom Energy
Manchester City Council,Regeneration Finance,Gas,06.05.2021,1907227885,840.19,Gazprom Energy
Manchester City Council,Regeneration Finance,Gas,06.05.2021,1907227866,825.88,Gazprom Energy
Manchester City Council,Regeneration Finance,Gas,06.05.2021,1907227862,814.83,Gazprom Energy
Manchester City Council,Regeneration Finance,Gas,06.05.2021,1907227966,813.71,Gazprom Energy
Manchester City Council,Regeneration Finance,Gas,06.05.2021,1907227880,787.95,Gazprom Energy
Manchester City Council,Regeneration Finance,Gas,06.05.2021,1907227957,766.79,Gazprom Energy
Manchester City Council,Regeneration Finance,Gas,06.05.2021,1907227980,668.46,Gazprom Energy
Manchester City Council,Regeneration Finance,Gas,06.05.2021,1907227884,659.43,Gazprom Energy
Manchester City Council,Regeneration Finance,Gas,06.05.2021,1907227850,652.41,Gazprom Energy
Manchester City Council,Regeneration Finance,Gas,06.05.2021,1907227845,547.46,Gazprom Energy
Manchester City Council,Regeneration Finance,Gas,06.05.2021,1907227938,526.56,Gazprom Energy
Manchester City Council,Regeneration Finance,Gas,06.05.2021,1907227932,518.47,Gazprom Energy
Manchester City Council,Adult Social Care,Rents,06.05.2021,1907229162,790.00,Redacted Personal Information
Manchester City Council,Childrens & Education Services,Refuse Collection,06.05.2021,1907207305,"6,253.23",Shred-It Ltd
Manchester City Council,Manchester Leisure,Security,06.05.2021,5101131709,"40,616.61",Showsec International Ltd
Manchester City Council,Manchester Leisure,Security,06.05.2021,5101131704,"7,774.55",Showsec International Ltd
Manchester City Council,Manchester Leisure,Security,06.05.2021,5101131711,"4,397.57",Showsec International Ltd
Manchester City Council,Manchester Leisure,Security,06.05.2021,5101131710,"4,383.57",Showsec International Ltd
Manchester City Council,Manchester Leisure,Security,06.05.2021,5101131712,"4,383.07",Showsec International Ltd
Manchester City Council,Manchester Leisure,Security,06.05.2021,5101131716,"4,158.00",Showsec International Ltd
Manchester City Council,Manchester Leisure,Security,06.05.2021,5101131713,"3,137.12",Showsec International Ltd
Manchester City Council,Manchester Leisure,Security,06.05.2021,5101131703,"2,997.07",Showsec International Ltd
Manchester City Council,Manchester Leisure,Security,06.05.2021,5101131708,"2,997.07",Showsec International Ltd
Manchester City Council,Manchester Leisure,Security,06.05.2021,5101131706,"2,857.02",Showsec International Ltd
Manchester City Council,Manchester Leisure,Security,06.05.2021,5101131715,"2,772.00",Showsec International Ltd
Manchester City Council,Manchester Leisure,Security,06.05.2021,5101131707,"2,016.72",Showsec International Ltd
Manchester City Council,Manchester Leisure,Security,06.05.2021,5101131705,525.17,Showsec International Ltd
Manchester City Council,Regeneration Finance,Security,06.05.2021,5101131823,"3,350.00",Community Security (North West)
Manchester City Council,Regeneration Finance,Security,06.05.2021,5101131824,"2,300.00",Community Security (North West)
Manchester City Council,Regeneration Finance,Security,06.05.2021,5101131828,744.00,Community Security (North West)
Manchester City Council,Regeneration Finance,Security,06.05.2021,5101131829,720.00,Community Security (North West)
Manchester City Council,Manchester Leisure,Equipment,06.05.2021,5101131723,"1,580.00",Willfab Ltd
Manchester City Council,Manchester Leisure,Equipment,06.05.2021,5101131725,"1,580.00",Willfab Ltd
Manchester City Council,Manchester Leisure,Equipment,06.05.2021,5101131721,650.00,Willfab Ltd
Manchester City Council,Manchester Leisure,Equipment,06.05.2021,5101131720,600.00,Willfab Ltd
Manchester City Council,Manchester Leisure,Equipment,06.05.2021,5101131729,560.00,Willfab Ltd
Manchester City Council,Manchester Leisure,Equipment,06.05.2021,5101131728,-560.00,Willfab Ltd
Manchester City Council,Manchester Leisure,Equipment,06.05.2021,5101131722,"-1,580.00",Willfab Ltd
Manchester City Council,Manchester Leisure,Equipment,06.05.2021,5101131724,"-1,580.00",Willfab Ltd
Manchester City Council,Manchester Leisure,Building Materials for direct delivery,06.05.2021,5101131718,"1,480.00",Willfab Ltd
Manchester City Council,Manchester Leisure,Payments to Sub-Contractors,06.05.2021,5101131668,"1,140.00",Rigby Taylor Ltd
Manchester City Council,Highways Services,Payments to Sub-Contractors,06.05.2021,5101131772,"6,021.54",Rosgal Ltd
Manchester City Council,Highways Services,Payments to Sub-Contractors,06.05.2021,5101131769,"-6,021.54",Rosgal Ltd
Manchester City Council,Hospitality + Trading Services,Hire of Machinery,06.05.2021,5101131884,"2,260.00",H & C Plant Hire Ltd
Manchester City Council,Childrens & Education Services,Grant Payments,06.05.2021,5101131781,"4,257.00",CoramBAAF
Manchester City Council,Childrens & Education Services,Grant Payments,06.05.2021,5101131760,"3,216.00",Ofsted
Manchester City Council,Childrens & Education Services,Grant Payments,06.05.2021,5101131758,"2,059.00",Ofsted
Manchester City Council,Chief Executives,Grant Payments,06.05.2021,5101131753,"3,250.00",Quarantine
Manchester City Council,Chief Executives,Grant Payments,06.05.2021,5101131754,"3,250.00",Quarantine
Manchester City Council,Hospitality + Trading Services,Catering Provisions,06.05.2021,1907229151,"30,946.04",Ralph Livesey Ltd
Manchester City Council,Chief Executives,Printing,06.05.2021,5101131677,"1,196.00",Geiger Limited
Manchester City Council,Adult Social Care,Stationery,06.05.2021,5101131858,696.79,Banner Group Limited
Manchester City Council,Childrens & Education Services,Professional fees,06.05.2021,5101131667,"2,000.00",Social Care Institute for Excellenc
Manchester City Council,Chief Executives,Professional fees,06.05.2021,1907226737,591.79,CYFOR Legal Ltd
Manchester City Council,Chief Executives,Professional fees,06.05.2021,1700119318,-750.00,Redacted Personal Information
Manchester City Council,Regeneration Finance,Professional fees,06.05.2021,5101131682,"44,000.00",Jacobs UK Ltd
Manchester City Council,Highways Services,Professional fees,06.05.2021,5101131673,"3,995.00",Pell Frischmann Consultants Ltd
Manchester City Council,Corporate Services,Postage,06.05.2021,5101131697,"7,428.77",Royal Mail Group Plc
Manchester City Council,Hospitality + Trading Services,Compensation Payments,06.05.2021,1700119316,"-14,072.43",Irwin Mitchell LLP
Manchester City Council,Highways Services,Compensation Payments,06.05.2021,1907221057,"1,950.00",Simpson Millar LLP
Manchester City Council,Manchester Leisure,Grant and subscriptions awarded,06.05.2021,5101131731,"8,000.00",Manchester Enterprise Centre
Manchester City Council,Manchester Leisure,Grant and subscriptions awarded,06.05.2021,5101131733,"5,828.20",The Amber Elles
Manchester City Council,Manchester Leisure,Grant and subscriptions awarded,06.05.2021,5101131734,"1,548.54",1st Wythenshawe Scout Group
Manchester City Council,Childrens & Education Services,Grant and subscriptions awarded,06.05.2021,5101131751,"2,400.00",Evolution Internet Marketing LLP
Manchester City Council,Childrens & Education Services,Grant and subscriptions awarded,06.05.2021,5101131695,"1,250.00",Evolution Internet Marketing LLP
Manchester City Council,Chief Executives,Advertising,06.05.2021,5101131755,975.00,Guardian News and Media Limited
Manchester City Council,Chief Executives,Advertising,06.05.2021,5101131756,875.00,Guardian News and Media Limited
Manchester City Council,Chief Executives,Advertising,06.05.2021,5101131759,759.05,TES Global Ltd
Manchester City Council,Hospitality + Trading Services,Funeral and coroner related services,06.05.2021,5101131717,"6,804.00",Showsec International Ltd
Manchester City Council,Hospitality + Trading Services,Funeral and coroner related services,06.05.2021,5101131717,"1,620.00",Showsec International Ltd
Manchester City Council,Childrens & Education Services,Third party payments to other Local Authorities,06.05.2021,1907216694,"2,526.00",Lime Tree Primary Academy
Manchester City Council,Manchester Leisure,Third party payments relating to Voluntary Organisations,06.05.2021,5101131683,"2,600.00",Connect Futures
Manchester City Council,Adult Social Care,Third party payments relating to Voluntary Organisations,06.05.2021,5101131740,"49,824.77",Revolving Doors Housing Trust
Manchester City Council,Adult Social Care,Third party payments relating to Voluntary Organisations,06.05.2021,5101131764,"6,717.00",Manchester Action On Street Health
Manchester City Council,Adult Social Care,Third party payments relating to Voluntary Organisations,06.05.2021,5101131763,"-3,717.00",Manchester Action On Street Health
Manchester City Council,Childrens & Education Services,Supporting People Payments,06.05.2021,5101131767,"1,048.80",Westfield Minibuses
Manchester City Council,Adult Social Care,Personal needs of client,06.05.2021,5101131693,"7,124.36",Tunstall Healthcare (UK) Ltd
Manchester City Council,Adult Social Care,Personal needs of client,06.05.2021,5101131700,"2,237.76",Tunstall Healthcare (UK) Ltd
Manchester City Council,Adult Social Care,Personal needs of client,06.05.2021,5101131701,513.80,Tunstall Healthcare (UK) Ltd
Manchester City Council,Adult Social Care,Personal needs of client,06.05.2021,5101131730,511.00,Care & Independence Ltd
Manchester City Council,Corporate Services,LRSG Grant Payment,06.05.2021,1907229165,"5,333.00",Redacted Personal Information
Manchester City Council,Regeneration Finance,Planning Application Fees,06.05.2021,1907218913,"1,386.00",PortalPlanQuest Ltd
Manchester City Council,Adult Social Care,Housing Rents Debit,06.05.2021,1907216404,"3,493.87",Redacted Personal Information
Manchester City Council,Environment and Operations,Construction Works,06.05.2021,5101131765,"1,950.00",Transport for Greater Manchester
Manchester City Council,Manchester Leisure,Legal Fees,06.05.2021,1907220735,"5,240.00",AEGIS Legal Ltd
Manchester City Council,Highways Services,Legal Fees,06.05.2021,1907215009,"5,460.00",JF LAW LTD Champions Business Park
Manchester City Council,Highways Services,Legal Fees,06.05.2021,1907226738,"2,073.44",Harris Fowler Ltd
Manchester City Council,Highways Services,Legal Fees,06.05.2021,1907221057,"1,939.50",Simpson Millar LLP
Manchester City Council,Highways Services,Legal Fees,06.05.2021,1907220739,"1,816.40",Harris Fowler Solicitors
Manchester City Council,Manchester Leisure,Legal Fees,06.05.2021,1907216383,725.00,Department For Work & Pensions
Manchester City Council,Highways Services,Legal Fees,06.05.2021,1907224531,595.00,UKExpertMedical
Manchester City Council,Regeneration Finance,General Payments not otherwise categorised,07.05.2021,1907210609,"1,255.00",MyClearText Ltd
Manchester City Council,Chief Executives,Agency staff provision,07.05.2021,5101131921,"3,200.00",Capita Resourcing Limited
Manchester City Council,Regeneration Finance,Internal Repairs and Maintenance for buildings,07.05.2021,5101131915,"46,294.74",ENGIE Services Ltd
Manchester City Council,Adult Social Care,Rents,07.05.2021,5101131914,"84,471.29",Accommodation Links Ltd
Manchester City Council,Adult Social Care,Rents,07.05.2021,5101131913,"72,844.29",Accommodation Links Ltd
Manchester City Council,Adult Social Care,Equipment,07.05.2021,5101132062,545.00,Smitcare Ltd
Manchester City Council,Childrens & Education Services,Furniture,07.05.2021,5101132040,779.70,Eps Supplies Ltd
Manchester City Council,Childrens & Education Services,Furniture,07.05.2021,5101132037,513.86,Eps Supplies Ltd
Manchester City Council,Manchester Leisure,Payments to Sub-Contractors,07.05.2021,5101132046,"1,170.00",Clean-Up UK Limited
Manchester City Council,Manchester Leisure,Payments to Sub-Contractors,07.05.2021,5101131813,"1,080.00",Clean-Up UK Limited
Manchester City Council,Regeneration Finance,Training and Development,07.05.2021,5101131994,930.04,Alliance Disposables Ltd
Manchester City Council,Chief Executives,Printing,07.05.2021,5101132053,"14,895.64",Ricoh UK Ltd.
Manchester City Council,Manchester Leisure,Professional fees,07.05.2021,5101131923,"1,345.00",County Scientific Services
Manchester City Council,Manchester Leisure,Professional fees,07.05.2021,5101131919,646.00,Osborne Richardson
Manchester City Council,Hospitality + Trading Services,Professional fees,07.05.2021,5101131903,"1,969.25",Jacobs UK Ltd
Manchester City Council,Childrens & Education Services,Professional fees,07.05.2021,1907228798,"3,450.00",Redacted Personal Information
Manchester City Council,Childrens & Education Services,Professional fees,07.05.2021,1907221233,"2,903.75",Weightmans LLP Solicitors
Manchester City Council,Childrens & Education Services,Professional fees,07.05.2021,1907221239,"2,067.50",Weightmans LLP Solicitors
Manchester City Council,Childrens & Education Services,Professional fees,07.05.2021,1907229327,"1,000.00",Central Chambers
Manchester City Council,Childrens & Education Services,Professional fees,07.05.2021,1907224532,812.50,Redacted Personal Information
Manchester City Council,Childrens & Education Services,Professional fees,07.05.2021,1907226739,750.00,Redacted Personal Information
Manchester City Council,Childrens & Education Services,Professional fees,07.05.2021,1907229053,692.64,Pickering Psychology Services Ltd
Manchester City Council,Childrens & Education Services,Professional fees,07.05.2021,1907228796,650.00,18 St John Street Chambers
Manchester City Council,Childrens & Education Services,Professional fees,07.05.2021,1907228668,600.00,KBW Barristers Chambers
Manchester City Council,Childrens & Education Services,Professional fees,07.05.2021,1907228038,562.50,Redacted Personal Information
Manchester City Council,Childrens & Education Services,Professional fees,07.05.2021,1907229031,550.00,Redacted Personal Information
Manchester City Council,Chief Executives,Professional fees,07.05.2021,1907229336,"4,026.25",Russell & Russell Solicitors LLP
Manchester City Council,Chief Executives,Professional fees,07.05.2021,1907229334,"3,050.88",Russell & Russell Solicitors LLP
Manchester City Council,Chief Executives,Professional fees,07.05.2021,1907229161,"2,268.75",Weightmans LLP Solicitors
Manchester City Council,Chief Executives,Professional fees,07.05.2021,1907229143,"2,211.25",Weightmans LLP Solicitors
Manchester City Council,Chief Executives,Professional fees,07.05.2021,1907229337,"1,977.56",Russell & Russell Solicitors LLP
Manchester City Council,Chief Executives,Professional fees,07.05.2021,1907229333,"1,875.00",Redacted Personal Information
Manchester City Council,Chief Executives,Professional fees,07.05.2021,1907229153,"1,741.13",Weightmans LLP Solicitors
Manchester City Council,Chief Executives,Professional fees,07.05.2021,1907229163,"1,731.25",Weightmans LLP Solicitors
Manchester City Council,Chief Executives,Professional fees,07.05.2021,1907229166,"1,618.70",Weightmans LLP Solicitors
Manchester City Council,Chief Executives,Professional fees,07.05.2021,1907229108,"1,450.00",Redacted Personal Information
Manchester City Council,Chief Executives,Professional fees,07.05.2021,1907229331,900.00,Central Chambers
Manchester City Council,Chief Executives,Professional fees,07.05.2021,1907229120,780.00,Redacted Personal Information
Manchester City Council,Chief Executives,Professional fees,07.05.2021,1907229112,600.00,Central Chambers
Manchester City Council,Chief Executives,Professional fees,07.05.2021,1907229330,585.00,Pickering Psychology Services Ltd
Manchester City Council,Chief Executives,Professional fees,07.05.2021,1907228042,500.00,KBW Barristers Chambers
Manchester City Council,Chief Executives,Professional fees,07.05.2021,1907229140,500.00,AFG Law
Manchester City Council,Regeneration Finance,Professional fees,07.05.2021,5101131903,"1,815.00",Jacobs UK Ltd
Manchester City Council,Regeneration Finance,Professional fees,07.05.2021,5101131903,581.00,Jacobs UK Ltd
Manchester City Council,Chief Executives,I T Provision,07.05.2021,5101132055,"3,120.00",Ricoh UK Ltd.
Manchester City Council,Manchester Leisure,Grant and subscriptions awarded,07.05.2021,5101131885,"4,775.00",Sow the City
Manchester City Council,Manchester Leisure,Grant and subscriptions awarded,07.05.2021,5101131869,"2,000.00",Levenshulme Old Library Group CIO
Manchester City Council,Manchester Leisure,Library Materials Acquisition,07.05.2021,1907229249,907.94,Experian Limited
Manchester City Council,Manchester Leisure,Library Materials Acquisition,07.05.2021,1907229250,907.94,Experian Limited
Manchester City Council,Manchester Leisure,Library Materials Acquisition,07.05.2021,1907229203,619.94,Askews and Holts
Manchester City Council,Childrens & Education Services,Payments for services,07.05.2021,1907229046,"1,349.00",Redacted Personal Information
Manchester City Council,Adult Social Care,Payments for services,07.05.2021,5101131909,"3,700.00",Women's Voices CIC
Manchester City Council,Childrens & Education Services,Personal needs of client,07.05.2021,1907229164,699.00,Redacted Personal Information
Manchester City Council,Housing Revenue Account,Council Dwelling Adaptations,07.05.2021,5101131922,"128,656.86",Fieldway Supplies Ltd
Manchester City Council,Corporate Services,Works and associated costs for Land and Buildings,07.05.2021,5101131896,"5,425.00",Ramboll UK Limited
Manchester City Council,Corporate Services,Works and associated costs for Land and Buildings,07.05.2021,5101131894,"-5,425.00",Ramboll UK Limited
Manchester City Council,Chief Executives,Works and associated costs for Land and Buildings,07.05.2021,5101131654,"12,101.00",Turner & Townsend Project
Manchester City Council,Corporate Services,Works and associated costs for Land and Buildings,07.05.2021,5101132045,"2,600.00",Clean-Up UK Limited
Manchester City Council,Corporate Services,Works and associated costs for Land and Buildings,07.05.2021,5101132047,"1,495.00",Clean-Up UK Limited
Manchester City Council,Corporate Services,Works and associated costs for Land and Buildings,07.05.2021,5101132049,975.00,Clean-Up UK Limited
Manchester City Council,Chief Executives,Vehicle Plant Furniture and Equipment,07.05.2021,5101132056,"2,080.00",Ricoh UK Ltd.
Manchester City Council,Chief Executives,Vehicle Plant Furniture and Equipment,07.05.2021,5101132054,"1,820.00",Ricoh UK Ltd.
Manchester City Council,Housing General Fund,Building Works,07.05.2021,5101131903,"1,400.00",Jacobs UK Ltd
Manchester City Council,Housing General Fund,Capital Receipts,07.05.2021,1907226745,"17,750.00",Redrow Homes Lancashire
Manchester City Council,Chief Executives,Legal Fees,07.05.2021,1907229028,"9,200.00",Peasegoods
Manchester City Council,Chief Executives,Legal Fees,07.05.2021,5101131870,"1,600.00",Kings Chambers
Manchester City Council,Chief Executives,Legal Fees,07.05.2021,5101131901,"1,600.00",Kings Chambers
Manchester City Council,Chief Executives,Legal Fees,07.05.2021,1907229055,850.00,18 St John Street Chambers
Manchester City Council,Chief Executives,Legal Fees,07.05.2021,1907229115,650.00,Central Chambers
Manchester City Council,Chief Executives,Legal Fees,07.05.2021,1907229110,600.00,Redacted Personal Information
Manchester City Council,Chief Executives,Legal Fees,07.05.2021,1907228034,500.00,Central Chambers
Manchester City Council,Chief Executives,Legal Fees,07.05.2021,1907229116,500.00,Central Chambers
Manchester City Council,Chief Executives,Compensation Payments,07.05.2021,1907229029,"32,000.00",Irwin Mitchell Solicitors
Manchester City Council,Chief Executives,Compensation Payments,07.05.2021,1907229126,"1,164.00",Redacted Personal Information
Manchester City Council,Chief Executives,Agency staff provision,10.05.2021,5101132072,880.00,Isherwood Legal Limited
Manchester City Council,Childrens & Education Services,Training and Development,10.05.2021,5101132107,800.00,Manchester Metropolitan University
Manchester City Council,Adult Social Care,Training and Development,10.05.2021,5101131986,885.00,North West Fire Training Ltd
Manchester City Council,Childrens & Education Services,Electricity,10.05.2021,5101131931,"1,765.77",Ashbury Meadow Primary School
Manchester City Council,Regeneration Finance,Rates,10.05.2021,5101131917,"38,204.78",Wythenshawe Forum Trust Ltd
Manchester City Council,Adult Social Care,Cleaning Equipment and Materials,10.05.2021,5101132148,850.00,Concept Care
Manchester City Council,Manchester Leisure,Security,10.05.2021,5101131714,"5,131.10",Showsec International Ltd
Manchester City Council,Manchester Leisure,Security,10.05.2021,5101131999,"4,158.00",Showsec International Ltd
Manchester City Council,Manchester Leisure,Security,10.05.2021,5101132009,"3,795.81",Showsec International Ltd
Manchester City Council,Manchester Leisure,Security,10.05.2021,5101131999,973.10,Showsec International Ltd
Manchester City Council,Manchester Leisure,Security,10.05.2021,5101131996,"-5,131.10",Showsec International Ltd
Manchester City Council,Childrens & Education Services,Grounds Maintenance Costs,10.05.2021,5101131978,"1,091.50",Tiddlywinks Nursery-Clayton No.4 Ac
Manchester City Council,Childrens & Education Services,Other Occupational Costs,10.05.2021,5101131985,-863.24,Back Care Solutions Ltd
Manchester City Council,Housing Revenue Account,Travel,10.05.2021,5101132150,"12,866.88",Northwards Housing Limited
Manchester City Council,Childrens & Education Services,Transport Coach Hire,10.05.2021,5101132104,820.80,Westfield Minibuses
Manchester City Council,Hospitality + Trading Services,Equipment,10.05.2021,5101131924,"1,125.00",Dante Fire & Security Ltd
Manchester City Council,Hospitality + Trading Services,Equipment,10.05.2021,5101131926,"1,125.00",Dante Fire & Security Ltd
Manchester City Council,Adult Social Care,Equipment,10.05.2021,5101131984,"2,135.00",Smartbox Assistive Technology Ltd
Manchester City Council,Adult Social Care,Equipment,10.05.2021,5101131938,879.00,NRS Healthcare
Manchester City Council,Adult Social Care,Furniture,10.05.2021,5101132011,943.00,Back Care Solutions Ltd
Manchester City Council,Manchester Leisure,Building Materials for direct delivery,10.05.2021,5101132064,"1,680.00",Rigby Taylor Ltd
Manchester City Council,Manchester Leisure,Payments to Sub-Contractors,10.05.2021,5101132012,"1,536.00",Earth Anchors Ltd
Manchester City Council,Hospitality + Trading Services,Hire of Equipment,10.05.2021,5101132163,"8,968.58",Fast Hire UK
Manchester City Council,Hospitality + Trading Services,Machinery and equipment repairs,10.05.2021,5101132164,"2,798.94",Fast Hire UK
Manchester City Council,Chief Executives,Machinery and equipment repairs,10.05.2021,5101131942,"4,003.46",Quadient UK Ltd (Consumables)
Manchester City Council,Manchester Leisure,Grant Payments,10.05.2021,5101132108,"2,250.00",Contemporary Art Society
Manchester City Council,Corporate Services,Grant Payments,10.05.2021,5101132106,"2,762.50",Rics NW
Manchester City Council,Hospitality + Trading Services,Catering Provisions,10.05.2021,1907231353,"1,058.81",Brake Bros Foodservice Ltd
Manchester City Council,Hospitality + Trading Services,Catering Provisions,10.05.2021,1907231374,"1,041.98",Brake Bros Foodservice Ltd
Manchester City Council,Hospitality + Trading Services,Catering Provisions,10.05.2021,1907231242,928.55,Ralph Livesey Ltd
Manchester City Council,Hospitality + Trading Services,Catering Provisions,10.05.2021,1907231183,829.26,Ralph Livesey Ltd
Manchester City Council,Hospitality + Trading Services,Catering Provisions,10.05.2021,1907231422,734.45,Brake Bros Foodservice Ltd
Manchester City Council,Hospitality + Trading Services,Catering Provisions,10.05.2021,1907231204,733.26,Ralph Livesey Ltd
Manchester City Council,Hospitality + Trading Services,Catering Provisions,10.05.2021,1907231166,724.52,Ralph Livesey Ltd
Manchester City Council,Hospitality + Trading Services,Catering Provisions,10.05.2021,1907231252,662.97,Ralph Livesey Ltd
Manchester City Council,Hospitality + Trading Services,Catering Provisions,10.05.2021,1907231155,657.79,Ralph Livesey Ltd
Manchester City Council,Hospitality + Trading Services,Catering Provisions,10.05.2021,1907231185,615.66,Ralph Livesey Ltd
Manchester City Council,Hospitality + Trading Services,Catering Provisions,10.05.2021,1907231168,602.82,Ralph Livesey Ltd
Manchester City Council,Hospitality + Trading Services,Catering Provisions,10.05.2021,1907231231,571.58,Ralph Livesey Ltd
Manchester City Council,Hospitality + Trading Services,Catering Provisions,10.05.2021,1907231186,549.84,Ralph Livesey Ltd
Manchester City Council,Hospitality + Trading Services,Catering Provisions,10.05.2021,1907231152,528.17,Brake Bros Foodservice Ltd
Manchester City Council,Hospitality + Trading Services,Catering Provisions,10.05.2021,1907231395,527.90,Brake Bros Foodservice Ltd
Manchester City Council,Hospitality + Trading Services,Catering Provisions,10.05.2021,1907231241,511.00,Brake Bros Foodservice Ltd
Manchester City Council,Chief Executives,Printing,10.05.2021,5101131678,553.00,Wallace Printers Ltd
Manchester City Council,Chief Executives,CRB Fees,10.05.2021,5101131967,"25,557.00",Disclosure & Barring Service
Manchester City Council,Manchester Leisure,Professional fees,10.05.2021,5101131752,"1,054,851.50",Manchester Active
Manchester City Council,Manchester Leisure,Professional fees,10.05.2021,5101131989,"11,333.33",HOME
Manchester City Council,Childrens & Education Services,Professional fees,10.05.2021,1907229343,791.89,Pickering Psychology Services Ltd
Manchester City Council,Chief Executives,Professional fees,10.05.2021,1907230138,"2,094.35",Waddington & Son Solicitors
Manchester City Council,Chief Executives,Professional fees,10.05.2021,1907229580,"1,473.75",Weightmans LLP Solicitors
Manchester City Council,Chief Executives,Professional fees,10.05.2021,1907229576,"1,168.75",Weightmans LLP Solicitors
Manchester City Council,Chief Executives,Professional fees,10.05.2021,1907229578,"1,018.75",Weightmans LLP Solicitors
Manchester City Council,Chief Executives,Professional fees,10.05.2021,1907230128,918.75,Waddington & Son Solicitors
Manchester City Council,Chief Executives,Professional fees,10.05.2021,1907229527,685.00,Weightmans LLP Solicitors
Manchester City Council,Chief Executives,Professional fees,10.05.2021,1907230146,600.00,Central Chambers
Manchester City Council,Chief Executives,Professional fees,10.05.2021,1907229584,562.50,Weightmans LLP Solicitors
Manchester City Council,Regeneration Finance,Professional fees,10.05.2021,5101132096,"19,250.00",Price Waterhouse Coopers LLP
Manchester City Council,Corporate Services,Fees,10.05.2021,1907222506,"6,119.60",CDER GROUP LIMITED
Manchester City Council,Corporate Services,Fees,10.05.2021,1907222162,"4,539.20",CDER GROUP LIMITED
Manchester City Council,Corporate Services,Fees,10.05.2021,1907222163,"4,042.95",CDER GROUP LIMITED
Manchester City Council,Corporate Services,Fees,10.05.2021,1907222164,"3,258.50",CDER GROUP LIMITED
Manchester City Council,Corporate Services,Fees,10.05.2021,5101131939,"9,992.00",Pannone Corporate LLP
Manchester City Council,Housing Revenue Account,Northwards Management Fee,10.05.2021,5101132113,"30,380.72",Northwards Housing Limited
Manchester City Council,Corporate Services,Postage,10.05.2021,5101131940,802.02,Royal Mail Group Plc
Manchester City Council,Regeneration Finance,Mobilephone Charges,10.05.2021,5101132132,"6,007.32",Vodafone Corporate
Manchester City Council,Regeneration Finance,Mobilephone Charges,10.05.2021,5101132128,"6,000.00",Vodafone Corporate
Manchester City Council,Manchester Leisure,I T Provision,10.05.2021,5101132021,"1,083.80",Figment Productions Limited
Manchester City Council,Manchester Leisure,I T Provision,10.05.2021,5101132023,"1,762.36",Figment Productions Limited
Manchester City Council,Chief Executives,Grant and subscriptions awarded,10.05.2021,5101132103,"120,833.33",National Football Museum
Manchester City Council,Chief Executives,Grant and subscriptions awarded,10.05.2021,5101132110,"120,833.33",National Football Museum
Manchester City Council,Childrens & Education Services,Bed and Breakfast Accommodation Expenditure,10.05.2021,1907230127,"4,200.00",LETBID Ltd
Manchester City Council,Adult Social Care,Bed and Breakfast Accommodation Expenditure,10.05.2021,5101132147,"4,095.00",Medlock House Ltd
Manchester City Council,Manchester Leisure,Library Materials Acquisition,10.05.2021,1907229324,"32,730.06",Bolinda UK Limited
Manchester City Council,Manchester Leisure,Library Materials Acquisition,10.05.2021,1907229325,"21,820.04",Bolinda UK Limited
Manchester City Council,Manchester Leisure,Library Materials Acquisition,10.05.2021,1907229326,"4,042.10",Riley Dunn & Wilson Ltd
Manchester City Council,Manchester Leisure,Library Materials Acquisition,10.05.2021,1907229281,"2,395.00",Oclc (UK) LTD
Manchester City Council,Manchester Leisure,Library Materials Acquisition,10.05.2021,1907229272,883.08,Askews and Holts
Manchester City Council,Manchester Leisure,Library Materials Acquisition,10.05.2021,1907229270,806.26,Askews and Holts
Manchester City Council,Manchester Leisure,Library Materials Acquisition,10.05.2021,1907229275,798.90,Askews and Holts
Manchester City Council,Manchester Leisure,Library Materials Acquisition,10.05.2021,1907229267,732.09,Askews and Holts
Manchester City Council,Manchester Leisure,Library Materials Acquisition,10.05.2021,1907229273,710.80,Askews and Holts
Manchester City Council,Manchester Leisure,Library Materials Acquisition,10.05.2021,1907230596,683.15,Azhar Enterrprises
Manchester City Council,Manchester Leisure,Library Materials Acquisition,10.05.2021,1907230593,656.58,Azhar Enterrprises
Manchester City Council,Manchester Leisure,Library Materials Acquisition,10.05.2021,1907229268,652.89,Askews and Holts
Manchester City Council,Manchester Leisure,Library Materials Acquisition,10.05.2021,1907229279,517.50,Azhar Enterrprises
Manchester City Council,Manchester Leisure,Library Materials Acquisition,10.05.2021,1907229278,514.50,Azhar Enterrprises
Manchester City Council,Manchester Leisure,Library Materials Acquisition,10.05.2021,1907229280,511.50,Azhar Enterrprises
Manchester City Council,Corporate Services,Heart of Manchester Bid,10.05.2021,5101132114,"8,170.08",Heart of Manchester BID Co Ltd
Manchester City Council,Childrens & Education Services,Third party payments to other Local Authorities,10.05.2021,5101132085,"4,365.00",St James' Catholic High School
Manchester City Council,Childrens & Education Services,Third party payments to other Local Authorities,10.05.2021,5101132109,"3,994.00",Abbey Hill Academy
Manchester City Council,Childrens & Education Services,Third party payments to other Local Authorities,10.05.2021,5101132123,"3,255.83",Cheadle Hulme High School
Manchester City Council,Manchester Leisure,Third party payments relating to Voluntary Organisations,10.05.2021,5101131988,"-11,333.33",HOME
Manchester City Council,Adult Social Care,Third party payments relating to Voluntary Organisations,10.05.2021,5101132013,"11,646.00",People First Housing Association
Manchester City Council,Childrens & Education Services,Payments for services,10.05.2021,5101132115,"15,000.00",High Peak School Limited
Manchester City Council,Childrens & Education Services,Payments for services,10.05.2021,5101132095,"14,333.33",Hexagon Care Services Limited
Manchester City Council,Childrens & Education Services,Payments for services,10.05.2021,5101132099,"11,545.00",Mary Hare School
Manchester City Council,Childrens & Education Services,Payments for services,10.05.2021,5101132098,"11,183.00",Mary Hare School
Manchester City Council,Childrens & Education Services,Payments for services,10.05.2021,5101132118,"3,550.00",Reaseheath College
Manchester City Council,Childrens & Education Services,Payments for services,10.05.2021,5101132083,"2,823.99",Venture Arts Ltd
Manchester City Council,Childrens & Education Services,Payments for services,10.05.2021,5101132084,"2,369.77",Venture Arts Ltd
Manchester City Council,Adult Social Care,Payments for services,10.05.2021,5101132121,"7,250.00",Age Concern Manchester
Manchester City Council,Adult Social Care,Supporting People Payments,10.05.2021,5101131949,"9,157.00",Your Housing Ltd.
Manchester City Council,Adult Social Care,Supporting People Payments,10.05.2021,5101132094,"1,500.00",The Edward Mayes Trust
Manchester City Council,Childrens & Education Services,Day Care Payments,10.05.2021,5101131936,650.00,Brighter Beginnings Day Nursery
Manchester City Council,Adult Social Care,Carer Support Payments ,10.05.2021,5101132101,"40,973.40",Homecare Support
Manchester City Council,Adult Social Care,Expenditure re Internal Trading Ordered Externally,10.05.2021,5101131933,"1,121.43",Universal Tanker Solutions Ltd
Manchester City Council,Adult Social Care,Expenditure re Internal Trading Ordered Externally,10.05.2021,5101131934,-631.43,Universal Tanker Solutions Ltd
Manchester City Council,Corporate Services,Fees,10.05.2021,1907222164,"-3,258.50",CDER GROUP LIMITED
Manchester City Council,Corporate Services,Fees,10.05.2021,1907222163,"-4,042.95",CDER GROUP LIMITED
Manchester City Council,Corporate Services,Fees,10.05.2021,1907222162,"-4,539.20",CDER GROUP LIMITED
Manchester City Council,Corporate Services,Fees,10.05.2021,1907222506,"-6,119.60",CDER GROUP LIMITED
Manchester City Council,Housing Revenue Account,Council Dwelling Adaptations,10.05.2021,5101131932,"317,624.16",Manchester Working Ltd
Manchester City Council,Corporate Services,Works and associated costs for Land and Buildings,10.05.2021,5101131766,"26,075.75",Virgin Media Limited
Manchester City Council,Corporate Services,Works and associated costs for Land and Buildings,10.05.2021,5101131981,"31,036.34",Conlon Construction Ltd
Manchester City Council,Environment and Operations,Vehicle Plant Furniture and Equipment,10.05.2021,5101131891,"685,000.00",Biffa Municipal Limited
Manchester City Council,Corporate Services,Capital Receipts,10.05.2021,1907230129,"75,000.00",Slater Heelis Collier Littler Solic
Manchester City Council,Chief Executives,Legal Fees,10.05.2021,5101132073,"3,600.00",Redacted Personal Information
Manchester City Council,Insurance Fund,Legal Fees,10.05.2021,1907222525,"3,237.50",Simpson Millar LLP
Manchester City Council,Highways Services,Legal Fees,10.05.2021,1907229757,"1,816.40",Harris Fowler Solicitors
Manchester City Council,Chief Executives,Legal Fees,10.05.2021,1907230149,"1,150.00",Redacted Personal Information
Manchester City Council,Highways Services,Legal Fees,10.05.2021,1907229072,975.00,Wringtington Hospital
Manchester City Council,Regeneration Finance,Legal Fees,10.05.2021,1907229388,896.00,Department For Work & Pensions
Manchester City Council,Highways Services,Legal Fees,10.05.2021,1907229101,896.00,Department For Work & Pensions
Manchester City Council,Chief Executives,Legal Fees,10.05.2021,1907229340,864.00,Eversheds Llp
Manchester City Council,Chief Executives,Legal Fees,10.05.2021,1907229394,812.50,Redacted Personal Information
Manchester City Council,Highways Services,Legal Fees,10.05.2021,1907230131,725.00,Department For Work & Pensions
Manchester City Council,Highways Services,Legal Fees,10.05.2021,1907229109,688.00,Department For Work & Pensions
Manchester City Council,Highways Services,Legal Fees,10.05.2021,1907229537,595.00,UKExpertMedical Ltd
Manchester City Council,Chief Executives,Legal Fees,10.05.2021,1907229399,593.02,Pickering Psychology Services Ltd
Manchester City Council,Chief Executives,Legal Fees,10.05.2021,1907230147,500.00,Central Chambers
Manchester City Council,Childrens & Education Services,Compensation Payments,10.05.2021,5101132131,"8,549.75",Waddington & Son Solicitors
Manchester City Council,Childrens & Education Services,Compensation Payments,10.05.2021,5101132136,"2,621.62",Waddington & Son Solicitors
Manchester City Council,Childrens & Education Services,Compensation Payments,10.05.2021,5101132142,"2,053.75",Waddington & Son Solicitors
Manchester City Council,Environment and Operations,Compensation Payments,10.05.2021,5101132137,"1,300.00",Redacted Personal Information
Manchester City Council,Childrens & Education Services,Compensation Payments,10.05.2021,5101132146,500.00,Waddington & Son Solicitors
Manchester City Council,Chief Executives,Agency staff provision,11.05.2021,5101132185,"51,828.20",Sellick Partnership (Legal) Ltd
Manchester City Council,Highways Services,Training and Development,11.05.2021,5101132225,"1,800.00",Traffic Direct Ltd
Manchester City Council,Highways Services,Training and Development,11.05.2021,5101132280,"1,785.00",Synergie Training
Manchester City Council,Regeneration Finance,External repairs and maintenance for buildings,11.05.2021,5101132125,"1,975.00",P Mcguinness & Co Ltd
Manchester City Council,Hospitality + Trading Services,Rents,11.05.2021,1907229579,"1,368.75",Booker Ltd
Manchester City Council,Adult Social Care,Rents,11.05.2021,5101132266,"37,201.22",Housing Social Ltd
Manchester City Council,Adult Social Care,Rents,11.05.2021,5101132203,"8,095.30",Housing Social Ltd
Manchester City Council,Childrens & Education Services,Storage Costs,11.05.2021,5101132197,"3,183.50",Restore PLC
Manchester City Council,Childrens & Education Services,Storage Costs,11.05.2021,5101132196,"1,975.46",Restore PLC
Manchester City Council,Regeneration Finance,Grounds Maintenance Costs,11.05.2021,5101132231,"1,001.00",Mitie Landscapes LTD
Manchester City Council,Regeneration Finance,Grounds Maintenance Costs,11.05.2021,5101132227,519.97,Mitie Landscapes LTD
Manchester City Council,Corporate Services,Vehicle Costs,11.05.2021,1907231500,"14,532.99",Cyclescheme Ltd
Manchester City Council,Corporate Services,Vehicle Costs,11.05.2021,1700119323,-500.00,Cyclescheme Ltd
Manchester City Council,Hospitality + Trading Services,Insurance,11.05.2021,1907229049,"2,403.72",Zurich Municipal
Manchester City Council,Childrens & Education Services,Transport Coach Hire,11.05.2021,5101132288,"20,776.00",Parkway Cabs & Cars
Manchester City Council,Manchester Leisure,Equipment,11.05.2021,5101132220,"8,000.00",Height Lift & Shift Ltd
Manchester City Council,Adult Social Care,Equipment,11.05.2021,5101132262,"2,315.00",Invacare Limited
Manchester City Council,Adult Social Care,Equipment,11.05.2021,5101131980,"1,090.00",Bentley Fielden Ltd
Manchester City Council,Manchester Leisure,Payments to Sub-Contractors,11.05.2021,5101132204,"4,113.44",Quadrant Security Group
Manchester City Council,Chief Executives,Payments to Sub-Contractors,11.05.2021,5101132241,"2,778.86",Redacted Personal Information
Manchester City Council,Hospitality + Trading Services,Hire of Equipment,11.05.2021,5101132333,"1,190.40",Mastacab LLP
Manchester City Council,Chief Executives,Hire of Equipment,11.05.2021,5101132251,"2,995.00",Twofold Ltd
Manchester City Council,Chief Executives,Printing,11.05.2021,5101132261,"4,750.00",Service Level Management Ltd
Manchester City Council,Manchester Leisure,Professional fees,11.05.2021,5101132174,"3,499.80",Bureau Veritas UK Ltd
Manchester City Council,Manchester Leisure,Professional fees,11.05.2021,5101132290,"2,422.08",Group 4 Total Security Ltd t/a G4S
Manchester City Council,Childrens & Education Services,Professional fees,11.05.2021,1907229386,"8,250.00",KBW Barristers Chambers
Manchester City Council,Childrens & Education Services,Professional fees,11.05.2021,1907229332,"6,118.31",Russell & Russell Solicitors LLP
Manchester City Council,Childrens & Education Services,Professional fees,11.05.2021,1907231140,"5,268.75",Waddington & Son Solicitors
Manchester City Council,Childrens & Education Services,Professional fees,11.05.2021,1907229200,"3,895.83",Redacted Personal Information
Manchester City Council,Childrens & Education Services,Professional fees,11.05.2021,1907229328,"3,586.25",Russell & Russell Solicitors LLP
Manchester City Council,Childrens & Education Services,Professional fees,11.05.2021,1907230202,"1,918.75",Waddington & Son Solicitors
Manchester City Council,Childrens & Education Services,Professional fees,11.05.2021,1907229526,"1,312.50",Redacted Personal Information
Manchester City Council,Childrens & Education Services,Professional fees,11.05.2021,1907231143,"1,280.00",Waddington & Son Solicitors
Manchester City Council,Childrens & Education Services,Professional fees,11.05.2021,1907229131,"1,181.15",Warwickshire County Council
Manchester City Council,Childrens & Education Services,Professional fees,11.05.2021,1907229135,"1,022.85",Warwickshire County Council
Manchester City Council,Childrens & Education Services,Professional fees,11.05.2021,1907230139,"1,012.50",Waddington & Son Solicitors
Manchester City Council,Childrens & Education Services,Professional fees,11.05.2021,1907229141,814.80,Warwickshire County Council
Manchester City Council,Childrens & Education Services,Professional fees,11.05.2021,1907229534,790.69,Pickering Psychology Services Ltd
Manchester City Council,Childrens & Education Services,Professional fees,11.05.2021,1907230143,787.50,Waddington & Son Solicitors
Manchester City Council,Childrens & Education Services,Professional fees,11.05.2021,1907229114,687.50,Redacted Personal Information
Manchester City Council,Childrens & Education Services,Professional fees,11.05.2021,1907230140,631.25,Waddington & Son Solicitors
Manchester City Council,Childrens & Education Services,Professional fees,11.05.2021,1907229128,630.40,Warwickshire County Council
Manchester City Council,Childrens & Education Services,Professional fees,11.05.2021,1907229130,617.60,Warwickshire County Council
Manchester City Council,Childrens & Education Services,Professional fees,11.05.2021,1907231151,600.00,Redacted Personal Information
Manchester City Council,Adult Social Care,Professional fees,11.05.2021,5101132202,537.50,Allday Time Systems Ltd
Manchester City Council,Corporate Services,Professional fees,11.05.2021,5101132286,"28,200.00",Isio Group Limited
Manchester City Council,Housing Revenue Account,Professional fees,11.05.2021,5101132205,"7,425.00",Solace In Business Ltd
Manchester City Council,Chief Executives,Professional fees,11.05.2021,1907231141,600.00,Central Chambers
Manchester City Council,Highways Services,Professional fees,11.05.2021,5101131982,"2,511.75",Waterman Aspen Ltd
Manchester City Council,Highways Services,Professional fees,11.05.2021,5101131982,905.25,Waterman Aspen Ltd
Manchester City Council,General Fund,Professional fees,11.05.2021,1907215056,"686,923.00",DCLG
Manchester City Council,Chief Executives,Landline Telephone Charges,11.05.2021,5101132217,768.87,Meridian Recovery Audit
Manchester City Council,Hospitality + Trading Services,I T Provision,11.05.2021,5101132258,"9,618.98",KPR Midlink Ltd
Manchester City Council,Hospitality + Trading Services,I T Provision,11.05.2021,5101132259,"1,254.77",KPR Midlink Ltd
Manchester City Council,Manchester Leisure,Grant and subscriptions awarded,11.05.2021,5101131976,"15,000.00",Kloodle Ltd
Manchester City Council,Manchester Leisure,Grant and subscriptions awarded,11.05.2021,1907229397,500.00,4CT Limited
Manchester City Council,Adult Social Care,Funeral and coroner related services,11.05.2021,5101132199,"1,411.00",Greater Manchester Funeral Service
Manchester City Council,Hospitality + Trading Services,Goods purchased for resale in Council outlets,11.05.2021,5101132191,"1,450.60",Treasured Memories Ltd
Manchester City Council,Manchester Leisure,Special Events,11.05.2021,1907229144,"18,000.00",Crestview Stratergy Ltd
Manchester City Council,Corporate Services,Welfare Provision Service Awards,11.05.2021,5101132172,695.39,Furniture Resource Centre Ltd
Manchester City Council,Corporate Services,Rtnd Bus Supp Grant,11.05.2021,1907227230,"9,739,500.00",Dept of Business Energy & Ind Strat
Manchester City Council,Corporate Services,Third Party Payments relating to Technical Services,11.05.2021,1907231501,"13,816.95",Cyclescheme Ltd
Manchester City Council,Adult Social Care,Third party payments to Health Authority,11.05.2021,5101132283,750.00,St Dunstans Church
Manchester City Council,Childrens & Education Services,Payments for services,11.05.2021,5101132243,"6,501.28",Cumberland & Westmorland
Manchester City Council,Childrens & Education Services,Payments for services,11.05.2021,5101132210,"2,756.48",Skills & Work Solutions
Manchester City Council,Childrens & Education Services,Payments for services,11.05.2021,5101132278,"1,077.60",Fairfield Care Ltd
Manchester City Council,Childrens & Education Services,Payments for services,11.05.2021,5101132279,898.00,Fairfield Care Ltd
Manchester City Council,Adult Social Care,Payments for services,11.05.2021,5101132192,"27,465.43",Care Concepts Ltd
Manchester City Council,Adult Social Care,Payments for services,11.05.2021,5101132194,"27,465.43",Care Concepts Ltd
Manchester City Council,Adult Social Care,Payments for services,11.05.2021,5101132260,"1,750.00",ADFERIAD RECOVERY
Manchester City Council,Corporate Services,LRSG Grant Payment,11.05.2021,1907231507,"8,000.00",Redacted Personal Information
Manchester City Council,Corporate Services,Works and associated costs for Land and Buildings,11.05.2021,1907231524,850.00,FBC Manby Bowdler
Manchester City Council,Corporate Services,Works and associated costs for Land and Buildings,11.05.2021,5101131927,945.00,The Fountain Company Ltd
Manchester City Council,Corporate Services,Works and associated costs for Land and Buildings,11.05.2021,5101131925,-945.00,The Fountain Company Ltd
Manchester City Council,Corporate Services,Works and associated costs for Land and Buildings,11.05.2021,5101132162,-846.85,R Development Ltd
Manchester City Council,Chief Executives,Vehicle Plant Furniture and Equipment,11.05.2021,5101132281,"29,400.00",8x8 UK Ltd
Manchester City Council,Housing General Fund,Building Works,11.05.2021,5101132201,"70,736.50",Southway Housing Trust
Manchester City Council,Housing General Fund,Building Works,11.05.2021,1907231642,"38,959.85",UPS Building & Maintenance Ltd
Manchester City Council,Housing General Fund,Building Works,11.05.2021,1907231638,"3,771.00",Thyssenkrupp Access Limited
Manchester City Council,Housing General Fund,Building Works,11.05.2021,1907231640,"2,640.00",Stannah Lift Services Ltd
Manchester City Council,Housing General Fund,Building Works,11.05.2021,1907231639,"2,393.00",Stannah Lift Services Ltd
Manchester City Council,Housing General Fund,Building Works,11.05.2021,1907231641,"2,095.37",Prism Medical UK Carefree Division
Manchester City Council,Regeneration Finance,Legal Fees,11.05.2021,1907231505,"35,000.00",Nexa law Ltd
Manchester City Council,Childrens & Education Services,Legal Fees,11.05.2021,1907229756,"11,774.00",Slater & Gordon
Manchester City Council,Chief Executives,Legal Fees,11.05.2021,5101132175,"3,799.99",Russell & Russell Solicitors LLP
Manchester City Council,Chief Executives,Legal Fees,11.05.2021,5101132180,"3,799.99",Russell & Russell Solicitors LLP
Manchester City Council,Chief Executives,Legal Fees,11.05.2021,5101132183,"2,948.75",Russell & Russell Solicitors LLP
Manchester City Council,Hospitality + Trading Services,Legal Fees,11.05.2021,1907229752,"2,725.00",Finch Consulting Limited
Manchester City Council,Manchester Leisure,Legal Fees,11.05.2021,1907229105,725.00,Department For Work & Pensions
Manchester City Council,Chief Executives,Legal Fees,11.05.2021,5101132178,"-3,799.99",Russell & Russell Solicitors LLP
Manchester City Council,Hospitality + Trading Services,Legal Fees,11.05.2021,1700119325,"-6,666.67",Irwin Mitchell LLP
Manchester City Council,Childrens & Education Services,Compensation Payments,11.05.2021,5101132182,"3,881.25",Waddington & Son Solicitors
Manchester City Council,Childrens & Education Services,Compensation Payments,11.05.2021,5101132187,"2,661.05",Waddington & Son Solicitors
Manchester City Council,Childrens & Education Services,Compensation Payments,11.05.2021,5101132193,"1,958.75",Waddington & Son Solicitors
Manchester City Council,Childrens & Education Services,Compensation Payments,11.05.2021,5101132189,"1,512.50",Waddington & Son Solicitors
Manchester City Council,Childrens & Education Services,Compensation Payments,11.05.2021,5101132181,"1,118.75",Waddington & Son Solicitors
Manchester City Council,Childrens & Education Services,Compensation Payments,11.05.2021,5101132190,912.50,Waddington & Son Solicitors
Manchester City Council,Chief Executives,Agency staff provision,12.05.2021,5101132409,"7,777.35",The Oyster Partnership Limited
Manchester City Council,Chief Executives,Agency staff provision,12.05.2021,5101132408,"7,008.00",The Oyster Partnership Limited
Manchester City Council,Chief Executives,Agency staff provision,12.05.2021,5101132407,"6,471.50",The Oyster Partnership Limited
Manchester City Council,Chief Executives,Agency staff provision,12.05.2021,5101132432,880.00,Isherwood Legal Limited
Manchester City Council,Housing Revenue Account,Responsive Repairs Work,12.05.2021,1907229129,"5,025.68",Northwards Housing Limited
Manchester City Council,Childrens & Education Services,Rents,12.05.2021,5101132374,741.25,Mosscare St Vincent's Housing
Manchester City Council,Childrens & Education Services,Rents,12.05.2021,5101132373,727.48,Mosscare St Vincent's Housing
Manchester City Council,Adult Social Care,Rents,12.05.2021,5101132361,"9,171.79",Eeven Homes Ltd.
Manchester City Council,Housing Revenue Account,Rents,12.05.2021,1907231988,724.51,Onward Homes Ltd
Manchester City Council,Chief Executives,Rents,12.05.2021,5101132303,"24,232.00",UKfast.net Ltd
Manchester City Council,Regeneration Finance,Grounds Maintenance Costs,12.05.2021,5101132322,"9,252.00",Manchester & Cheshire Construction
Manchester City Council,Regeneration Finance,Grounds Maintenance Costs,12.05.2021,5101132323,573.00,Manchester & Cheshire Construction
Manchester City Council,Childrens & Education Services,Other Occupational Costs,12.05.2021,5101131987,863.24,Back Care Solutions Ltd
Manchester City Council,Manchester Leisure,Equipment,12.05.2021,1907235024,948.00,EXPEDIA 72089635653452
Manchester City Council,Manchester Leisure,Equipment,12.05.2021,1907234971,948.00,EXPEDIA 72089304889874
Manchester City Council,Childrens & Education Services,Equipment,12.05.2021,5101132349,"8,685.00",Carebase
Manchester City Council,Adult Social Care,Equipment,12.05.2021,5101132356,801.00,Aidapt Bathrooms Ltd
Manchester City Council,Chief Executives,Equipment,12.05.2021,1907234744,655.78,ZOOM.US 888-799-9666
Manchester City Council,Chief Executives,Equipment,12.05.2021,1907234377,509.50,HIGHSTREETVOUCHERS
Manchester City Council,Manchester Leisure,Furniture,12.05.2021,1907234395,748.00,WWW.OFFICEFURNITUREONLINE
Manchester City Council,Manchester Leisure,Furniture,12.05.2021,1907234363,676.00,WWW.OFFICEFURNITUREONLINE
Manchester City Council,Hospitality + Trading Services,"Consumable items eg Toilet rolls, soap etc",12.05.2021,1907234366,507.00,HAPPYVALLEYHONEY.CO.UK
Manchester City Council,Childrens & Education Services,"Consumable items eg Toilet rolls, soap etc",12.05.2021,1907234697,571.68,ALLPAY *MOSSCARE ST VINCE
Manchester City Council,Childrens & Education Services,"Consumable items eg Toilet rolls, soap etc",12.05.2021,1907234535,550.00,APPNTECH OUTLET
Manchester City Council,Childrens & Education Services,"Consumable items eg Toilet rolls, soap etc",12.05.2021,1907234886,500.00,OAKDALE FURNISHINGS LI
Manchester City Council,Adult Social Care,"Consumable items eg Toilet rolls, soap etc",12.05.2021,1907234778,"3,244.66",S AND S SALES MCR LTD
Manchester City Council,Adult Social Care,"Consumable items eg Toilet rolls, soap etc",12.05.2021,1907234828,"3,244.66",S AND S SALES MCR LTD
Manchester City Council,Adult Social Care,"Consumable items eg Toilet rolls, soap etc",12.05.2021,1907234936,"3,244.66",S AND S SALES MCR LTD
Manchester City Council,Adult Social Care,"Consumable items eg Toilet rolls, soap etc",12.05.2021,1907234458,"3,241.10",STERLING PROPERTY CO L
Manchester City Council,Adult Social Care,"Consumable items eg Toilet rolls, soap etc",12.05.2021,1907234951,"3,241.10",STERLING PROPERTY CO L
Manchester City Council,Adult Social Care,"Consumable items eg Toilet rolls, soap etc",12.05.2021,1907234817,"2,995.05",S AND S SALES MCR LTD
Manchester City Council,Adult Social Care,"Consumable items eg Toilet rolls, soap etc",12.05.2021,1907234824,"2,995.05",S AND S SALES MCR LTD
Manchester City Council,Adult Social Care,"Consumable items eg Toilet rolls, soap etc",12.05.2021,1907235015,"2,995.05",S AND S SALES MCR LTD
Manchester City Council,Adult Social Care,"Consumable items eg Toilet rolls, soap etc",12.05.2021,1907234897,"2,592.88",CARRINGTON RIDING
Manchester City Council,Adult Social Care,"Consumable items eg Toilet rolls, soap etc",12.05.2021,1907234736,"2,085.00",CARRINGTON RIDING
Manchester City Council,Adult Social Care,"Consumable items eg Toilet rolls, soap etc",12.05.2021,1907234644,"1,828.00",COUNTRYNORTH
Manchester City Council,Adult Social Care,"Consumable items eg Toilet rolls, soap etc",12.05.2021,1907234466,"1,668.00",PARK CITY HOTEL
Manchester City Council,Adult Social Care,"Consumable items eg Toilet rolls, soap etc",12.05.2021,1907234636,"1,300.00",IZ *JADE RESIDENTI
Manchester City Council,Adult Social Care,"Consumable items eg Toilet rolls, soap etc",12.05.2021,1907235058,"1,125.00",CAMPUS CRIBS LIMITED
Manchester City Council,Adult Social Care,"Consumable items eg Toilet rolls, soap etc",12.05.2021,1907234606,948.22,TRAVELODGE P CARD ONLY
Manchester City Council,Adult Social Care,"Consumable items eg Toilet rolls, soap etc",12.05.2021,1907234801,839.19,WWW.STAYINN.CO.UK
Manchester City Council,Adult Social Care,"Consumable items eg Toilet rolls, soap etc",12.05.2021,1907234623,800.00,IZ *JADE RESIDENTIAL
Manchester City Council,Adult Social Care,"Consumable items eg Toilet rolls, soap etc",12.05.2021,1907234456,798.00,PARK CITY HOTEL
Manchester City Council,Adult Social Care,"Consumable items eg Toilet rolls, soap etc",12.05.2021,1907234468,798.00,PARK CITY HOTEL
Manchester City Council,Adult Social Care,"Consumable items eg Toilet rolls, soap etc",12.05.2021,1907234689,725.00,CARRINGTON RIDING
Manchester City Council,Adult Social Care,"Consumable items eg Toilet rolls, soap etc",12.05.2021,1907234781,704.16,COCOA PROPERTIES LTD
Manchester City Council,Manchester Leisure,Building Materials for direct delivery,12.05.2021,5101132350,"1,280.00",Willfab Ltd
Manchester City Council,Manchester Leisure,Building Materials for direct delivery,12.05.2021,5101132426,792.72,Cromwell Polythene Limited
Manchester City Council,Hospitality + Trading Services,Building Materials for direct delivery,12.05.2021,1907235044,612.11,Arco Group Ltd
Manchester City Council,Hospitality + Trading Services,Building Materials for direct delivery,12.05.2021,1907234459,598.00,Amazon Co.Uk
Manchester City Council,Chief Executives,Payments to Sub-Contractors,12.05.2021,5101132404,842.10,Redacted Personal Information
Manchester City Council,Chief Executives,Payments to Sub-Contractors,12.05.2021,5101132384,813.70,Redacted Personal Information
Manchester City Council,Chief Executives,Payments to Sub-Contractors,12.05.2021,5101132385,550.50,Redacted Personal Information
Manchester City Council,Manchester Leisure,Hire of Equipment,12.05.2021,5101132358,"3,829.06",dbnAudile Limited
Manchester City Council,Childrens & Education Services,Grant Payments,12.05.2021,5101132352,"4,276.18",The Fostering Network
Manchester City Council,Manchester Leisure,General Office expenses,12.05.2021,1907235056,544.16,Amazon Co.Uk
Manchester City Council,Childrens & Education Services,General Office expenses,12.05.2021,1907234754,"1,191.92",Argos Business Solutions
Manchester City Council,Childrens & Education Services,General Office expenses,12.05.2021,1907234454,906.94,Argos Business Solutions
Manchester City Council,Childrens & Education Services,General Office expenses,12.05.2021,1907234970,900.00,THE CARPET MAN
Manchester City Council,Childrens & Education Services,General Office expenses,12.05.2021,1907234524,669.97,CURRYS ONLINE
Manchester City Council,Childrens & Education Services,General Office expenses,12.05.2021,1907234890,631.55,EE / Orange
Manchester City Council,Childrens & Education Services,General Office expenses,12.05.2021,1907234467,537.95,Argos Business Solutions
Manchester City Council,Childrens & Education Services,General Office expenses,12.05.2021,1907234651,535.00,KLARNA *ABAKUSDIRECT C
Manchester City Council,Childrens & Education Services,General Office expenses,12.05.2021,1907234804,535.00,KLARNA *ABAKUSDIRECT C
Manchester City Council,Childrens & Education Services,General Office expenses,12.05.2021,1907234873,-535.00,KLARNA *ABAKUSDIRECT C
Manchester City Council,Childrens & Education Services,General Office expenses,12.05.2021,1907234653,-789.96,Argos Business Solutions
Manchester City Council,Childrens & Education Services,General Office expenses,12.05.2021,1907234592,"-1,099.97",Argos Business Solutions
Manchester City Council,Chief Executives,General Office expenses,12.05.2021,1907235100,"4,199.00",C2E777000139B UKVI
Manchester City Council,Chief Executives,Paper & Envelopes,12.05.2021,5101132316,"1,392.81",Premier Paper Group Ltd
Manchester City Council,Manchester Leisure,Professional fees,12.05.2021,1907226734,"6,192.00",NE3D Ltd
Manchester City Council,Manchester Leisure,Professional fees,12.05.2021,5101132300,800.00,Redacted Personal Information
Manchester City Council,Manchester Leisure,Professional fees,12.05.2021,5101132301,800.00,Redacted Personal Information
Manchester City Council,Childrens & Education Services,Professional fees,12.05.2021,1907231519,"5,562.50",Redacted Personal Information
Manchester City Council,Childrens & Education Services,Professional fees,12.05.2021,1907231522,"3,837.50",Redacted Personal Information
Manchester City Council,Childrens & Education Services,Professional fees,12.05.2021,5101132354,700.00,Redacted Personal Information
Manchester City Council,Childrens & Education Services,Professional fees,12.05.2021,1907231521,510.42,Redacted Personal Information
Manchester City Council,Adult Social Care,Professional fees,12.05.2021,5101132431,878.00,YOURmedpack Ltd
Manchester City Council,Chief Executives,Professional fees,12.05.2021,1907231117,"6,322.10",Target Psychology Ltd
Manchester City Council,Chief Executives,Professional fees,12.05.2021,1907232004,"1,697.91",Redacted Personal Information
Manchester City Council,Chief Executives,Professional fees,12.05.2021,1907231491,675.00,Medico-Legal North West
Manchester City Council,Regeneration Finance,Professional fees,12.05.2021,5101132391,"1,302.00",Alan Franklin Builders Limited
Manchester City Council,Regeneration Finance,Professional fees,12.05.2021,5101132390,"1,212.10",Alan Franklin Builders Limited
Manchester City Council,Regeneration Finance,Professional fees,12.05.2021,5101132392,540.00,Alan Franklin Builders Limited
Manchester City Council,Chief Executives,Postage,12.05.2021,5101132343,"31,982.26",Royal Mail Group Plc
Manchester City Council,Chief Executives,I T Provision,12.05.2021,5101132282,"1,600.00",8x8 UK Ltd
Manchester City Council,Manchester Leisure,Subsistence and Conference Expenses,12.05.2021,1907234775,"15,000.00",RADISSON BLU HOTEL MAN
Manchester City Council,Manchester Leisure,Subsistence and Conference Expenses,12.05.2021,1907234791,"11,230.00",RADISSON BLU HOTEL MAN
Manchester City Council,Manchester Leisure,Subsistence and Conference Expenses,12.05.2021,1907234844,"1,308.70",RADISSON BLU HOTEL MAN
Manchester City Council,Manchester Leisure,Grant and subscriptions awarded,12.05.2021,5101132315,"3,651.00",Blackley Cricket Club
Manchester City Council,Manchester Leisure,Grant and subscriptions awarded,12.05.2021,5101132442,"3,000.00",Wythenshawe Market Traders Committe
Manchester City Council,Manchester Leisure,Grant and subscriptions awarded,12.05.2021,5101132312,"1,500.00",North Manchester FM Ltd
Manchester City Council,Manchester Leisure,Grant and subscriptions awarded,12.05.2021,5101132445,965.50,Wythenshawe Wolves
Manchester City Council,Chief Executives,Advertising,12.05.2021,5101132317,"23,634.96",Reach Publishing Services Ltd
Manchester City Council,Chief Executives,Advertising,12.05.2021,5101132317,"6,518.04",Reach Publishing Services Ltd
Manchester City Council,Chief Executives,Advertising,12.05.2021,1907234749,700.00,Facebook (CARD ONLY)
Manchester City Council,Chief Executives,Advertising,12.05.2021,1907234788,700.00,Facebook (CARD ONLY)
Manchester City Council,Chief Executives,Advertising,12.05.2021,1907234840,700.00,Facebook (CARD ONLY)
Manchester City Council,Chief Executives,Advertising,12.05.2021,1907234948,700.00,Facebook (CARD ONLY)
Manchester City Council,Chief Executives,Advertising,12.05.2021,1907235003,700.00,Facebook (CARD ONLY)
Manchester City Council,Chief Executives,Licences Purchase,12.05.2021,5101132117,"3,904.00",Ncc Services Limited
Manchester City Council,Chief Executives,Licences Purchase,12.05.2021,5101131895,"2,187.89",Insight Direct (Uk) Ltd
Manchester City Council,Adult Social Care,Bed and Breakfast Accommodation Expenditure,12.05.2021,5101132362,"14,910.00",Redacted Personal Information
Manchester City Council,Adult Social Care,Bed and Breakfast Accommodation Expenditure,12.05.2021,5101132363,"12,248.00",Redacted Personal Information
Manchester City Council,Adult Social Care,Bed and Breakfast Accommodation Expenditure,12.05.2021,5101132365,"11,100.00",Redacted Personal Information
Manchester City Council,Adult Social Care,Bed and Breakfast Accommodation Expenditure,12.05.2021,5101132355,"4,425.00",Redacted Personal Information
Manchester City Council,Chief Executives,Internet access,12.05.2021,1907234694,"1,508.25",GEAR4MUSIC
Manchester City Council,General Fund,Levies,12.05.2021,1907212843,"3,752,540.00",GMCA
Manchester City Council,General Fund,Levies,12.05.2021,1907230152,"37,448.00",Bolton Mbc
Manchester City Council,Childrens & Education Services,Third party payments to other Local Authorities,12.05.2021,5101132366,"2,604.66",Hursthead Junior School
Manchester City Council,Adult Social Care,Third party payments to Health Authority,12.05.2021,5101132294,"7,951.48",SH:24 CIC
Manchester City Council,Childrens & Education Services,Third party payments relating to Voluntary Organisations,12.05.2021,5101132378,691.75,The Big Life Company
Manchester City Council,Childrens & Education Services,Payments for services,12.05.2021,1907231989,"27,566.67",Abbey School Limited
Manchester City Council,Childrens & Education Services,Payments for services,12.05.2021,5101132446,668.52,DHP Care Limited
Manchester City Council,Childrens & Education Services,Payments for services,12.05.2021,1907224535,600.00,St Ambrose College E.R.A.T.
Manchester City Council,Adult Social Care,Payments for services,12.05.2021,1907235041,698.00,Premier Inn P CARD ONLY
Manchester City Council,Adult Social Care,Payments for services,12.05.2021,1907234800,546.00,Britannia Hotels PCARD ONLY
Manchester City Council,Adult Social Care,Payments for services,12.05.2021,1907234549,533.00,Premier Inn P CARD ONLY
Manchester City Council,Adult Social Care,Payments for services,12.05.2021,1907234722,517.00,Premier Inn P CARD ONLY
Manchester City Council,Childrens & Education Services,Home Care ,12.05.2021,5101132430,824.00,Cellmark
Manchester City Council,Childrens & Education Services,Personal needs of client,12.05.2021,1907235150,"1,012.00",NATIONALITY DIRECTORAT
Manchester City Council,Childrens & Education Services,Personal needs of client,12.05.2021,1907235112,642.00,Premier Inn P CARD ONLY
Manchester City Council,Childrens & Education Services,Personal needs of client,12.05.2021,1907235152,630.00,Premier Inn P CARD ONLY
Manchester City Council,Adult Social Care,Personal needs of client,12.05.2021,5101132325,"1,429.00",Neater Solutions Ltd
Manchester City Council,Adult Social Care,Personal needs of client,12.05.2021,5101132307,867.00,Care & Independence Ltd
Manchester City Council,Corporate Services,LRSG Grant Payment,12.05.2021,1907228033,"8,096.00",Bellcetta Limited
Manchester City Council,Corporate Services,Works and associated costs for Land and Buildings,12.05.2021,5101132329,"60,960.00",United Utilities (Standpipes Only)
Manchester City Council,Corporate Services,Works and associated costs for Land and Buildings,12.05.2021,5101132302,"20,836.44",Warden Construction Ltd
Manchester City Council,Corporate Services,Works and associated costs for Land and Buildings,12.05.2021,5101132389,"7,824.46",R Development Ltd
Manchester City Council,Corporate Services,Works and associated costs for Land and Buildings,12.05.2021,5101132320,555.87,R Development Ltd
Manchester City Council,Environment and Operations,Construction Works,12.05.2021,5101132139,"421,761.10",Colas Limited
Manchester City Council,Environment and Operations,Construction Works,12.05.2021,5101132151,"235,087.75",Colas Limited
Manchester City Council,Environment and Operations,Construction Works,12.05.2021,5101132151,"208,187.64",Colas Limited
Manchester City Council,Environment and Operations,Construction Works,12.05.2021,5101132145,"149,508.25",Colas Limited
Manchester City Council,Environment and Operations,Construction Works,12.05.2021,5101132135,"106,240.97",Colas Limited
Manchester City Council,Environment and Operations,Construction Works,12.05.2021,5101132161,"61,981.85",Colas Limited
Manchester City Council,Environment and Operations,Construction Works,12.05.2021,5101132129,"58,217.51",Colas Limited
Manchester City Council,Environment and Operations,Construction Works,12.05.2021,5101132170,"23,231.21",GMCA
Manchester City Council,Environment and Operations,Construction Works,12.05.2021,5101132171,"16,950.00",GMCA
Manchester City Council,Environment and Operations,Construction Works,12.05.2021,5101132232,"16,461.18",Trafford M B C
Manchester City Council,Environment and Operations,Construction Works,12.05.2021,5101132167,"14,698.88",GMCA
Manchester City Council,Environment and Operations,Construction Works,12.05.2021,5101132268,"-13,948.25",GMCA
Manchester City Council,Environment and Operations,Construction Works,12.05.2021,5101132141,"-409,051.72",Colas Limited
Manchester City Council,Chief Executives,Legal Fees,12.05.2021,1907229571,"1,375.00",Trinity (Leeds) Chambers
Manchester City Council,Chief Executives,Legal Fees,12.05.2021,1907230156,"1,000.00",Central Chambers
Manchester City Council,Chief Executives,Legal Fees,12.05.2021,1907231478,975.00,Redacted Personal Information
Manchester City Council,Chief Executives,Legal Fees,12.05.2021,1907231497,750.00,Redacted Personal Information
Manchester City Council,Chief Executives,Legal Fees,12.05.2021,1907231523,650.00,Redacted Personal Information
Manchester City Council,Chief Executives,Legal Fees,12.05.2021,1907231145,625.00,Redacted Personal Information
Manchester City Council,Chief Executives,Legal Fees,12.05.2021,1907234411,618.00,LAW SOCIETY FINANC
Manchester City Council,Chief Executives,Legal Fees,12.05.2021,1907231994,598.50,I C Lloyd Ltd
Manchester City Council,Highways Services,Compensation Payments,12.05.2021,5101132433,"2,050.00",Redacted Personal Information
Manchester City Council,Hospitality + Trading Services,Compensation Payments,12.05.2021,1907231986,"1,625.00",Redacted Personal Information
Manchester City Council,Corporate Services,Compensation Payments,12.05.2021,1907235118,827.00,HMCTS (Manchester)
Manchester City Council,Manchester Leisure,Compensation Payments,12.05.2021,1907216369,525.00,Civil Costs Specialist Ltd
Manchester City Council,Manchester Leisure,Agency staff provision,13.05.2021,5101132428,"15,000.00",HOME
Manchester City Council,Adult Social Care,Agency staff provision,13.05.2021,5101132614,"66,312.50",Healthwork Ltd
Manchester City Council,Adult Social Care,Agency staff provision,13.05.2021,5101132613,"54,687.50",Healthwork Ltd
Manchester City Council,Chief Executives,Agency staff provision,13.05.2021,5101132512,"26,297.63",Deekay Technical Recruitment Ltd
Manchester City Council,Chief Executives,Agency staff provision,13.05.2021,5101132517,"9,680.31",LAW Absolute
Manchester City Council,Chief Executives,Agency staff provision,13.05.2021,5101132513,"8,942.40",Michael Page International
Manchester City Council,Chief Executives,Agency staff provision,13.05.2021,5101132511,"6,187.50",Sanctuary Social Care
Manchester City Council,Chief Executives,Agency staff provision,13.05.2021,5101132515,"1,944.00",Ashberry Recruitment Ltd
Manchester City Council,Manchester Leisure,External repairs and maintenance for buildings,13.05.2021,5101132551,"1,064.00",Pro-Kill Environmental Services
Manchester City Council,Housing Revenue Account,Northwards Repairs Fee,13.05.2021,1907234328,"7,494.00",Redacted Personal Information
Manchester City Council,Manchester Leisure,Electricity,13.05.2021,1907235522,"21,780.11",Npower
Manchester City Council,Manchester Leisure,Electricity,13.05.2021,1907235598,"20,797.50",Npower
Manchester City Council,Manchester Leisure,Electricity,13.05.2021,1907235519,"6,479.87",Npower
Manchester City Council,Manchester Leisure,Electricity,13.05.2021,1907235521,"6,069.66",Npower
Manchester City Council,Manchester Leisure,Electricity,13.05.2021,1907235601,"4,922.44",Npower
Manchester City Council,Manchester Leisure,Electricity,13.05.2021,1907235523,"4,181.27",Npower
Manchester City Council,Manchester Leisure,Electricity,13.05.2021,1907235539,"3,326.24",Npower
Manchester City Council,Manchester Leisure,Electricity,13.05.2021,1907235527,"3,316.23",Npower
Manchester City Council,Manchester Leisure,Electricity,13.05.2021,1907235575,"2,036.30",Npower
Manchester City Council,Manchester Leisure,Electricity,13.05.2021,1907235520,"1,436.61",Npower
Manchester City Council,Manchester Leisure,Electricity,13.05.2021,1700119344,"-6,565.23",Npower
Manchester City Council,Hospitality + Trading Services,Electricity,13.05.2021,1907235603,"33,162.05",Npower
Manchester City Council,Hospitality + Trading Services,Electricity,13.05.2021,1907235605,"32,219.46",Npower
Manchester City Council,Hospitality + Trading Services,Electricity,13.05.2021,1907235528,"10,002.59",Npower
Manchester City Council,Hospitality + Trading Services,Electricity,13.05.2021,1907235550,"4,345.45",Npower
Manchester City Council,Hospitality + Trading Services,Electricity,13.05.2021,1907235639,"1,922.64",Npower
Manchester City Council,Hospitality + Trading Services,Electricity,13.05.2021,1907235638,"1,884.09",Npower
Manchester City Council,Hospitality + Trading Services,Electricity,13.05.2021,1907235597,942.51,Npower
Manchester City Council,Hospitality + Trading Services,Electricity,13.05.2021,1700119361,"-1,858.17",Npower
Manchester City Council,Hospitality + Trading Services,Electricity,13.05.2021,1700119355,"-33,229.10",Npower
Manchester City Council,Childrens & Education Services,Electricity,13.05.2021,1907235618,"1,374.67",Npower
Manchester City Council,Childrens & Education Services,Electricity,13.05.2021,1907235533,892.20,Npower
Manchester City Council,Childrens & Education Services,Electricity,13.05.2021,1907235635,702.48,Npower
Manchester City Council,Adult Social Care,Electricity,13.05.2021,1907235636,"1,547.93",Npower
Manchester City Council,Adult Social Care,Electricity,13.05.2021,1907235633,985.33,Npower
Manchester City Council,Adult Social Care,Electricity,13.05.2021,1907235585,946.57,Npower
Manchester City Council,Adult Social Care,Electricity,13.05.2021,1907235614,839.46,Npower
Manchester City Council,Adult Social Care,Electricity,13.05.2021,1700119360,"-1,623.13",Npower
Manchester City Council,Corporate Services,Electricity,13.05.2021,1907235631,"3,385.35",Npower
Manchester City Council,Corporate Services,Electricity,13.05.2021,1907235525,"1,303.56",Npower
Manchester City Council,Corporate Services,Electricity,13.05.2021,1907235537,897.28,Npower
Manchester City Council,Corporate Services,Electricity,13.05.2021,1907235580,880.63,Npower
Manchester City Council,Corporate Services,Electricity,13.05.2021,1907235583,839.76,Npower
Manchester City Council,Corporate Services,Electricity,13.05.2021,1907235630,823.18,Npower
Manchester City Council,Corporate Services,Electricity,13.05.2021,1907235623,768.16,Npower
Manchester City Council,Corporate Services,Electricity,13.05.2021,1907235625,713.52,Npower
Manchester City Council,Corporate Services,Electricity,13.05.2021,1907235530,526.51,Npower
Manchester City Council,Housing Revenue Account,Electricity,13.05.2021,1907235681,"1,224.59",Haven Power Ltd
Manchester City Council,Housing Revenue Account,Electricity,13.05.2021,1907235648,537.61,Npower
Manchester City Council,Regeneration Finance,Electricity,13.05.2021,1907235628,"25,275.47",Npower
Manchester City Council,Regeneration Finance,Electricity,13.05.2021,1907235619,"19,441.68",Npower
Manchester City Council,Regeneration Finance,Electricity,13.05.2021,1907235600,"16,571.99",Npower
Manchester City Council,Regeneration Finance,Electricity,13.05.2021,1907235524,"14,851.44",Npower
Manchester City Council,Regeneration Finance,Electricity,13.05.2021,1907235627,"11,549.33",Npower
Manchester City Council,Regeneration Finance,Electricity,13.05.2021,1907235543,"8,502.34",Npower
Manchester City Council,Regeneration Finance,Electricity,13.05.2021,1907235545,"8,294.03",Npower
Manchester City Council,Regeneration Finance,Electricity,13.05.2021,1907235606,"6,899.74",Npower
Manchester City Council,Regeneration Finance,Electricity,13.05.2021,1907235554,"6,222.14",Npower
Manchester City Council,Regeneration Finance,Electricity,13.05.2021,1907235577,"5,905.53",Npower
Manchester City Council,Regeneration Finance,Electricity,13.05.2021,1907235589,"3,074.87",Npower
Manchester City Council,Regeneration Finance,Electricity,13.05.2021,1907235593,"2,975.27",Npower
Manchester City Council,Regeneration Finance,Electricity,13.05.2021,1907235590,"2,576.29",Npower
Manchester City Council,Regeneration Finance,Electricity,13.05.2021,1907235573,"2,540.31",Npower
Manchester City Council,Regeneration Finance,Electricity,13.05.2021,1907235592,"2,421.02",Npower
Manchester City Council,Regeneration Finance,Electricity,13.05.2021,1907235552,"2,081.55",Npower
Manchester City Council,Regeneration Finance,Electricity,13.05.2021,1907235587,"2,033.81",Npower
Manchester City Council,Regeneration Finance,Electricity,13.05.2021,1907235641,"1,930.91",Npower
Manchester City Council,Regeneration Finance,Electricity,13.05.2021,1907235563,"1,564.87",Npower
Manchester City Council,Regeneration Finance,Electricity,13.05.2021,1907235562,"1,417.10",Npower
Manchester City Council,Regeneration Finance,Electricity,13.05.2021,1907235567,"1,397.05",Npower
Manchester City Council,Regeneration Finance,Electricity,13.05.2021,1907235595,"1,282.68",Npower
Manchester City Council,Regeneration Finance,Electricity,13.05.2021,1907235565,"1,259.01",Npower
Manchester City Council,Regeneration Finance,Electricity,13.05.2021,1907235556,"1,234.66",Npower
Manchester City Council,Regeneration Finance,Electricity,13.05.2021,1907235568,"1,065.40",Npower
Manchester City Council,Regeneration Finance,Electricity,13.05.2021,1907235578,"1,049.55",Npower
Manchester City Council,Regeneration Finance,Electricity,13.05.2021,1907235643,"1,026.04",Npower
Manchester City Council,Regeneration Finance,Electricity,13.05.2021,1907235529,945.06,Npower
Manchester City Council,Regeneration Finance,Electricity,13.05.2021,1907235558,941.74,Npower
Manchester City Council,Regeneration Finance,Electricity,13.05.2021,1907235572,899.42,Npower
Manchester City Council,Regeneration Finance,Electricity,13.05.2021,1907235560,775.01,Npower
Manchester City Council,Regeneration Finance,Electricity,13.05.2021,1907235644,750.65,Npower
Manchester City Council,Regeneration Finance,Electricity,13.05.2021,1907235536,656.43,Npower
Manchester City Council,Regeneration Finance,Electricity,13.05.2021,1907235622,647.16,Npower
Manchester City Council,Regeneration Finance,Electricity,13.05.2021,1907235526,624.72,Npower
Manchester City Council,Regeneration Finance,Electricity,13.05.2021,1907235570,604.61,Npower
Manchester City Council,Regeneration Finance,Electricity,13.05.2021,1700119349,-995.91,Npower
Manchester City Council,Regeneration Finance,Electricity,13.05.2021,1700119347,"-1,065.40",Npower
Manchester City Council,Regeneration Finance,Electricity,13.05.2021,1700119346,"-1,381.50",Npower
Manchester City Council,Regeneration Finance,Electricity,13.05.2021,1700119348,"-1,452.52",Npower
Manchester City Council,Regeneration Finance,Electricity,13.05.2021,1700119354,"-1,727.54",Npower
Manchester City Council,Regeneration Finance,Electricity,13.05.2021,1700119352,"-2,033.81",Npower
Manchester City Council,Regeneration Finance,Electricity,13.05.2021,1700119351,"-2,844.44",Npower
Manchester City Council,Regeneration Finance,Electricity,13.05.2021,1700119353,"-2,955.02",Npower
Manchester City Council,Regeneration Finance,Electricity,13.05.2021,1700119350,"-5,829.87",Npower
Manchester City Council,Regeneration Finance,Electricity,13.05.2021,1700119345,"-8,430.18",Npower
Manchester City Council,Highways Services,Electricity,13.05.2021,1907235687,"134,042.59",Haven Power Ltd
Manchester City Council,Highways Services,Electricity,13.05.2021,1907235685,"120,602.97",Haven Power Ltd
Manchester City Council,Highways Services,Electricity,13.05.2021,1907235692,"5,731.29",EDF Energy
Manchester City Council,Highways Services,Electricity,13.05.2021,1907235694,"3,889.85",EDF Energy
Manchester City Council,Highways Services,Electricity,13.05.2021,1907235696,"2,637.08",EDF Energy
Manchester City Council,Highways Services,Electricity,13.05.2021,1907235688,"1,855.59",Haven Power Ltd
Manchester City Council,Highways Services,Electricity,13.05.2021,1907235697,"1,785.11",EDF Energy
Manchester City Council,Highways Services,Electricity,13.05.2021,1907235611,"1,370.69",Npower
Manchester City Council,Highways Services,Electricity,13.05.2021,1907235608,"1,241.98",Npower
Manchester City Council,Highways Services,Electricity,13.05.2021,1907235609,"1,154.27",Npower
Manchester City Council,Highways Services,Electricity,13.05.2021,1907235678,992.16,Haven Power Ltd
Manchester City Council,Highways Services,Electricity,13.05.2021,1907235531,686.15,Npower
Manchester City Council,Highways Services,Electricity,13.05.2021,1700119356,"-1,152.34",Npower
Manchester City Council,Highways Services,Electricity,13.05.2021,1700119357,"-1,280.18",Npower
Manchester City Council,Highways Services,Electricity,13.05.2021,1700119362,"-130,321.36",Haven Power Ltd
Manchester City Council,Adult Social Care,Rents,13.05.2021,5101132561,"13,126.41",K L Properties
Manchester City Council,Adult Social Care,Rents,13.05.2021,5101132498,"4,947.67",Riverside ECHG
Manchester City Council,Adult Social Care,Rents,13.05.2021,5101132505,"2,586.12",Riverside ECHG
Manchester City Council,Adult Social Care,Rents,13.05.2021,1907234355,"2,392.00",Redacted Personal Information
Manchester City Council,Adult Social Care,Rents,13.05.2021,5101132496,"2,072.46",Jigsaw Homes North
Manchester City Council,Manchester Leisure,Contract Cleaning External,13.05.2021,5101132554,525.00,GTS Steam Cleaners
Manchester City Council,Adult Social Care,Security,13.05.2021,5101132470,"1,071.00",UNIQUE SPECIALIST SERVICES
Manchester City Council,Adult Social Care,Security,13.05.2021,5101132472,"1,071.00",UNIQUE SPECIALIST SERVICES
Manchester City Council,Adult Social Care,Security,13.05.2021,5101132473,"1,071.00",UNIQUE SPECIALIST SERVICES
Manchester City Council,Adult Social Care,Security,13.05.2021,5101132474,"1,071.00",UNIQUE SPECIALIST SERVICES
Manchester City Council,Regeneration Finance,Taxi Vehicle Materials,13.05.2021,5101132494,"2,332.23",VIP-System Ltd
Manchester City Council,Childrens & Education Services,Transport Coach Hire,13.05.2021,5101132510,"118,637.80",Westfield Minibuses
Manchester City Council,Chief Executives,Payments to Sub-Contractors,13.05.2021,5101132462,"1,450.90",Redacted Personal Information
Manchester City Council,Chief Executives,Payments to Sub-Contractors,13.05.2021,5101132453,901.95,Redacted Personal Information
Manchester City Council,Chief Executives,Payments to Sub-Contractors,13.05.2021,5101132478,504.68,Redacted Personal Information
Manchester City Council,Childrens & Education Services,Training and Development,13.05.2021,5101132506,"2,049.90",Twinkl
Manchester City Council,Corporate Services,Grant Payments,13.05.2021,5101132573,"2,049.97",EMAP Publishing Limited
Manchester City Council,Regeneration Finance,Grant Payments,13.05.2021,5101132565,"5,540.00",Haymarket Publishing Services Ltd
Manchester City Council,Manchester Leisure,Professional fees,13.05.2021,5101132461,"7,569.00",Proportion London Ltd
Manchester City Council,Manchester Leisure,Professional fees,13.05.2021,5101132530,"2,866.00",Kidszone Out of School Care Limited
Manchester City Council,Manchester Leisure,Professional fees,13.05.2021,5101132493,"2,500.00",Redacted Personal Information
Manchester City Council,Manchester Leisure,Professional fees,13.05.2021,5101132531,"1,750.00",Galacticos Kids Ltd T/A Clubhouse
Manchester City Council,Manchester Leisure,Professional fees,13.05.2021,5101132529,560.00,Cavendish Out of School Club
Manchester City Council,Childrens & Education Services,Professional fees,13.05.2021,1907230158,"2,828.30",Waddington & Son Solicitors
Manchester City Council,Childrens & Education Services,Professional fees,13.05.2021,5101132574,"2,200.00",Redacted Personal Information
Manchester City Council,Childrens & Education Services,Professional fees,13.05.2021,1907230134,"1,462.50",Waddington & Son Solicitors
Manchester City Council,Childrens & Education Services,Professional fees,13.05.2021,1907230203,"1,374.93",Waddington & Son Solicitors
Manchester City Council,Childrens & Education Services,Professional fees,13.05.2021,1907231494,"1,200.00",Redacted Personal Information
Manchester City Council,Childrens & Education Services,Professional fees,13.05.2021,1907230133,"1,100.84",Waddington & Son Solicitors
Manchester City Council,Childrens & Education Services,Professional fees,13.05.2021,1907230159,881.20,Waddington & Son Solicitors
Manchester City Council,Childrens & Education Services,Professional fees,13.05.2021,1907232001,821.38,KHF Solicitors
Manchester City Council,Childrens & Education Services,Professional fees,13.05.2021,1907231144,750.00,Redacted Personal Information
Manchester City Council,Childrens & Education Services,Professional fees,13.05.2021,1907229335,628.98,Forensic Testing Service Ltd
Manchester City Council,Childrens & Education Services,Professional fees,13.05.2021,1907229127,600.00,Central Chambers
Manchester City Council,Childrens & Education Services,Professional fees,13.05.2021,1907231498,500.00,Redacted Personal Information
Manchester City Council,Childrens & Education Services,Professional fees,13.05.2021,1907231487,500.00,Redacted Personal Information
Manchester City Council,Corporate Services,Professional fees,13.05.2021,5101132396,"3,528.00",Turner & Townsend Cost
Manchester City Council,Corporate Services,Professional fees,13.05.2021,5101132396,"1,764.00",Turner & Townsend Cost
Manchester City Council,Corporate Services,Professional fees,13.05.2021,5101132451,"1,508.00",Lucion Environmental Ltd
Manchester City Council,Housing Revenue Account,Professional fees,13.05.2021,5101132254,"156,710.00",Northwards Housing Limited
Manchester City Council,Highways Services,Professional fees,13.05.2021,5101132463,"1,000.00",Wilde Consultants Ltd
Manchester City Council,Childrens & Education Services,CORONA VIRUS D-19,13.05.2021,5101132499,"-3,982.16",Redacted Personal Information
Manchester City Council,Corporate Services,Postage,13.05.2021,5101131941,"1,026.39",Royal Mail Group Plc
Manchester City Council,Chief Executives,Landline Telephone Charges,13.05.2021,1907234286,886.68,Daisy Corporate Services Trading
Manchester City Council,Insurance Fund,Travel Insurance Premium,13.05.2021,1907236319,"12,451.04",Redacted Personal Information
Manchester City Council,Insurance Fund,Travel Insurance Premium,13.05.2021,1907236317,"6,512.80",Redacted Personal Information
Manchester City Council,Childrens & Education Services,Subsistence and Conference Expenses,13.05.2021,5101132532,"1,680.00",Childrens Adventure Farm Trust
Manchester City Council,Chief Executives,Grant and subscriptions awarded,13.05.2021,5101132466,"2,099.00",The Manchester Law Society
Manchester City Council,Chief Executives,Advertising,13.05.2021,5101132559,900.00,Fonemedia Limited
Manchester City Council,Chief Executives,Advertising,13.05.2021,5101132560,900.00,Fonemedia Limited
Manchester City Council,Chief Executives,Advertising,13.05.2021,5101132562,900.00,Fonemedia Limited
Manchester City Council,Chief Executives,Advertising,13.05.2021,5101132563,900.00,Fonemedia Limited
Manchester City Council,Chief Executives,Advertising,13.05.2021,5101132564,900.00,Fonemedia Limited
Manchester City Council,Adult Social Care,Bed and Breakfast Accommodation Expenditure,13.05.2021,5101132542,"8,200.00",Hala Guest House
Manchester City Council,Corporate Services,Welfare Provision Service Awards,13.05.2021,5101132502,909.98,Furniture Resource Centre Ltd
Manchester City Council,Childrens & Education Services,Third party payments relating to Voluntary Organisations,13.05.2021,5101132543,"4,244.75",The Big Life Company
Manchester City Council,Childrens & Education Services,Third party payments relating to Voluntary Organisations,13.05.2021,5101132544,"2,598.75",The Big Life Company
Manchester City Council,Childrens & Education Services,Third party payments relating to Voluntary Organisations,13.05.2021,5101132545,"2,598.75",The Big Life Company
Manchester City Council,Childrens & Education Services,Third party payments relating to Voluntary Organisations,13.05.2021,5101132546,"2,000.00",The Big Life Company
Manchester City Council,Childrens & Education Services,Payments for services,13.05.2021,5101132540,"27,816.00",Pontville Residential School
Manchester City Council,Childrens & Education Services,Payments for services,13.05.2021,5101132541,"4,848.00",Access to Music Ltd
Manchester City Council,Adult Social Care,Supporting People Payments,13.05.2021,5101132552,"12,500.00",Anchor Trust
Manchester City Council,Childrens & Education Services,Personal needs of client,13.05.2021,5101132520,582.50,Furniture Resource Centre Ltd
Manchester City Council,Corporate Services,LRSG Grant Payment,13.05.2021,1907234356,"9,428.00",Didsbury Park Hotels Limited
Manchester City Council,Corporate Services,LRSG Grant Payment,13.05.2021,1907234357,"8,096.00",Media City Furniture Limited
Manchester City Council,Corporate Services,Works and associated costs for Land and Buildings,13.05.2021,5101131983,"1,197.80",Building Design Partnership Limited
Manchester City Council,Adult Social Care,Works and associated costs for Land and Buildings,13.05.2021,5101132534,"3,433.75",PLP Construction Ltd
Manchester City Council,Childrens Services,Works and associated costs for Land and Buildings,13.05.2021,5101132538,"7,304.35",PLP Construction Ltd
Manchester City Council,Corporate Services,Works and associated costs for Land and Buildings,13.05.2021,5101132528,942.72,PLP Construction Ltd
Manchester City Council,Environment and Operations,Construction Works,13.05.2021,5101132335,"16,045.67",J.Hopkins (Contractors) Ltd.
Manchester City Council,Environment and Operations,Construction Works,13.05.2021,5101132309,"2,909.88",GMCA
Manchester City Council,Childrens & Education Services,Compensation Payments,13.05.2021,5101132549,"2,400.00",Paramount Care Solutions Limited
Manchester City Council,Childrens & Education Services,Compensation Payments,13.05.2021,1907236320,"1,170.22",Redacted Personal Information
Manchester City Council,Manchester Leisure,Compensation Payments,13.05.2021,5101132464,"1,000.00",Redacted Personal Information
Manchester City Council,Highways Services,Compensation Payments,13.05.2021,5101132480,550.00,Redacted Personal Information
Manchester City Council,Libraries and Theatres,Training and Development,14.05.2021,5101132658,"1,550.00",North West Employers Ltd
Manchester City Council,Childrens & Education Services,Internal Repairs and Maintenance for buildings,14.05.2021,5101132622,610.40,Manchester School Services Limited
Manchester City Council,Adult Social Care,Rents,14.05.2021,5101132646,"15,262.72",AJD Property Limited
Manchester City Council,Adult Social Care,Rents,14.05.2021,1907236990,"1,179.00",Redacted Personal Information
Manchester City Council,Regeneration Finance,Rents,14.05.2021,5101132677,"3,251.79",Manchester Health Academy
Manchester City Council,Manchester Leisure,Contract Cleaning External,14.05.2021,1907236988,"14,805.48",Clearview Event Services Limited
Manchester City Council,Manchester Leisure,Equipment,14.05.2021,5101132675,"4,300.00",Wessex Pictures
Manchester City Council,Adult Social Care,Equipment,14.05.2021,5101132669,"2,100.00",Herida Healthcare Plc
Manchester City Council,Adult Social Care,Furniture,14.05.2021,5101132650,"1,117.45",Back Care Solutions Ltd
Manchester City Council,Manchester Leisure,Building Materials for direct delivery,14.05.2021,5101132680,937.02,Landscape Supply Company
Manchester City Council,Adult Social Care,Building Materials for direct delivery,14.05.2021,5101132577,501.40,AKW Medicare
Manchester City Council,Childrens & Education Services,Professional fees,14.05.2021,1907200229,"4,400.00",Safe & Together Institute
Manchester City Council,Childrens & Education Services,Professional fees,14.05.2021,1907229395,"3,600.00",Changing Minds Ltd
Manchester City Council,Childrens & Education Services,Professional fees,14.05.2021,5101132676,"2,880.00",Afruca
Manchester City Council,Childrens & Education Services,Professional fees,14.05.2021,1907235458,"1,805.00",PBLC Limited
Manchester City Council,Childrens & Education Services,Professional fees,14.05.2021,1907216061,"1,400.00",Redacted Personal Information
Manchester City Council,Corporate Services,Professional fees,14.05.2021,5101132523,"6,918.75",Turner & Townsend Cost
Manchester City Council,Corporate Services,Professional fees,14.05.2021,5101132521,"3,360.00",Turner & Townsend Cost
Manchester City Council,Corporate Services,Professional fees,14.05.2021,5101132653,"3,360.00",Turner & Townsend Cost
Manchester City Council,Chief Executives,Professional fees,14.05.2021,1907235935,748.80,Expert Psychology
Manchester City Council,Regeneration Finance,Professional fees,14.05.2021,1907231492,512.50,John Houston Consulting
Manchester City Council,Chief Executives,Funeral and coroner related services,14.05.2021,1907236309,"4,728.50",Medserv Limited
Manchester City Council,Chief Executives,Funeral and coroner related services,14.05.2021,1907236312,"1,595.00",Medserv Limited
Manchester City Council,Chief Executives,Funeral and coroner related services,14.05.2021,1907236311,"1,015.00",Medserv Limited
Manchester City Council,Chief Executives,Funeral and coroner related services,14.05.2021,1907236310,652.50,Medserv Limited
Manchester City Council,Housing Revenue Account,Northwards Management Fee,14.05.2021,5101131482,"2,125,063.01",Northwards Housing Limited
Manchester City Council,Housing Revenue Account,Northwards Management Fee,14.05.2021,5101131483,"30,380.72",Northwards Housing Limited
Manchester City Council,Chief Executives,Telecoms Equip,14.05.2021,5101132638,"7,752.15",CDW Limited
Manchester City Council,Insurance Fund,Insurance,14.05.2021,1907232005,"19,550.00",Express Solicitors
Manchester City Council,Childrens & Education Services,Subsistence and Conference Expenses,14.05.2021,5101132612,"6,510.00",Disabled Living
Manchester City Council,Childrens & Education Services,Subsistence and Conference Expenses,14.05.2021,5101132611,"1,890.00",Disabled Living
Manchester City Council,Manchester Leisure,Grant and subscriptions awarded,14.05.2021,1907230125,"3,500.00",Caritas (St Aidens)
Manchester City Council,Manchester Leisure,Grant and subscriptions awarded,14.05.2021,5101132310,970.00,Newton Heath Eco Youth
Manchester City Council,Chief Executives,Advertising,14.05.2021,5101132634,975.00,Guardian News and Media Limited
Manchester City Council,Adult Social Care,Bed and Breakfast Accommodation Expenditure,14.05.2021,5101132683,"34,300.00",Redacted Personal Information
Manchester City Council,Adult Social Care,Bed and Breakfast Accommodation Expenditure,14.05.2021,5101132685,"32,200.00",Redacted Personal Information
Manchester City Council,Adult Social Care,Third party payments to Health Authority,14.05.2021,1907229123,758.00,Virgin Care Servs Ltd
Manchester City Council,Adult Social Care,Third party payments relating to Voluntary Organisations,14.05.2021,5101132654,"64,806.67",Sanctuary Housing Association
Manchester City Council,Adult Social Care,Third party payments relating to Voluntary Organisations,14.05.2021,5101132648,"13,265.64",Great Places Housing Association
Manchester City Council,Childrens & Education Services,Payments for services,14.05.2021,5101132647,"54,380.83",Edstart Specialist Education Ltd
Manchester City Council,Adult Social Care,Payments for services,14.05.2021,5101132673,"7,223.00",Turning Point
Manchester City Council,Adult Social Care,Payments for services,14.05.2021,5101132674,"3,262.00",Turning Point
Manchester City Council,Adult Social Care,Payments for services,14.05.2021,5101132651,710.00,Slimming World
Manchester City Council,Adult Social Care,Supporting People Payments,14.05.2021,5101132649,"11,895.58",Great Places Housing Association
Manchester City Council,Adult Social Care,Personal needs of client,14.05.2021,5101132690,"1,140.00",Anywhere Care Ltd
Manchester City Council,Chief Executives,Works and associated costs for Land and Buildings,14.05.2021,5101132604,"14,636.00",Manchester Quays Limited
Manchester City Council,Chief Executives,Works and associated costs for Land and Buildings,14.05.2021,5101132615,"14,636.00",Manchester Quays Limited
Manchester City Council,Chief Executives,Works and associated costs for Land and Buildings,14.05.2021,5101132616,"14,636.00",Manchester Quays Limited
Manchester City Council,Chief Executives,Works and associated costs for Land and Buildings,14.05.2021,5101132618,"14,636.00",Manchester Quays Limited
Manchester City Council,Chief Executives,Works and associated costs for Land and Buildings,14.05.2021,5101132619,"14,636.00",Manchester Quays Limited
Manchester City Council,Chief Executives,Works and associated costs for Land and Buildings,14.05.2021,5101132617,"2,006.00",Manchester Quays Limited
Manchester City Council,Environment and Operations,Construction Works,14.05.2021,1907229054,"4,262.30",Walls Development (MCR) Ltd
Manchester City Council,Corporate Services,Building Works,14.05.2021,1907236992,"982,422.00",Apis Assay Technologies Ltd
Manchester City Council,Highways Services,Legal Fees,14.05.2021,1907232005,"19,450.00",Express Solicitors
Manchester City Council,Childrens & Education Services,Legal Fees,14.05.2021,1907230132,"5,000.00",Simpson Millar LLP
Manchester City Council,Childrens & Education Services,Legal Fees,14.05.2021,1907214276,"3,900.00",Simpson Millar
Manchester City Council,Childrens & Education Services,Legal Fees,14.05.2021,1907228035,"2,375.00",Clyde & Co Claims LLP
Manchester City Council,Childrens & Education Services,Legal Fees,14.05.2021,1907230148,"1,173.00",Clyde & Co Claims LLP
Manchester City Council,Manchester Leisure,Compensation Payments,14.05.2021,1907229137,"1,250.00",Redacted Personal Information
Manchester City Council,Childrens & Education Services,Compensation Payments,14.05.2021,5101132627,"18,659.78",Redacted Personal Information
Manchester City Council,Regeneration Finance,Compensation Payments,14.05.2021,5101132630,"6,609.00",Eversheds Llp
Manchester City Council,Chief Executives,Compensation Payments,14.05.2021,5101132624,"3,357.50",11KBW
Manchester City Council,Childrens & Education Services,Compensation Payments,14.05.2021,1907218880,"2,430.00",Redacted Personal Information
Manchester City Council,Childrens & Education Services,Compensation Payments,14.05.2021,1907221208,"1,100.22",Redacted Personal Information
Manchester City Council,Adult Social Care,Compensation Payments,14.05.2021,5101132625,"1,050.00",Redacted Personal Information
Manchester City Council,Highways Services,Compensation Payments,14.05.2021,5101132623,710.00,Redacted Personal Information
Manchester City Council,Highways Services,Compensation Payments,14.05.2021,5101132621,525.00,Redacted Personal Information
Manchester City Council,Adult Social Care,Goods Received Invoice Received,17.05.2021,5101132828,"19,126.70",Manchester City Football Club Plc
Manchester City Council,Adult Social Care,Goods Received Invoice Received,17.05.2021,5101132825,"18,860.67",Manchester City Football Club Plc
Manchester City Council,Adult Social Care,Goods Received Invoice Received,17.05.2021,5101132826,"18,781.67",Manchester City Football Club Plc
Manchester City Council,Adult Social Care,Goods Received Invoice Received,17.05.2021,5101132842,"-18,781.67",Manchester City Football Club Plc
Manchester City Council,Adult Social Care,Goods Received Invoice Received,17.05.2021,5101132840,"-18,860.67",Manchester City Football Club Plc
Manchester City Council,Adult Social Care,Goods Received Invoice Received,17.05.2021,5101132844,"-19,126.70",Manchester City Football Club Plc
Manchester City Council,Adult Social Care,Agency staff provision,17.05.2021,5101132788,536.26,Vitality 24
Manchester City Council,Chief Executives,Agency staff provision,17.05.2021,5101132804,"29,402.70",Pertemps Professional Recruitment L
Manchester City Council,Chief Executives,Agency staff provision,17.05.2021,5101132897,"21,109.61",Eden Brown Synergy
Manchester City Council,Chief Executives,Agency staff provision,17.05.2021,5101132898,"5,760.44",Eden Brown Synergy
Manchester City Council,Chief Executives,Agency staff provision,17.05.2021,5101132802,"5,238.87",NonStop Recruitment Ltd
Manchester City Council,Chief Executives,Agency staff provision,17.05.2021,5101132807,"3,569.00",Kenyon Block Consultants Ltd
Manchester City Council,Chief Executives,Agency staff provision,17.05.2021,5101132810,"3,560.00",Kenyon Block Consultants Ltd
Manchester City Council,Chief Executives,Agency staff provision,17.05.2021,5101132803,"1,526.00",HCL Social Care
Manchester City Council,Chief Executives,Training and Development,17.05.2021,5101132817,"6,000.00",Ginger Dog.Com
Manchester City Council,Childrens & Education Services,Rents,17.05.2021,5101132375,745.84,Mosscare St Vincent's Housing
Manchester City Council,Housing Revenue Account,Rents,17.05.2021,5101132357,"7,372.44",Northwards Housing Limited
Manchester City Council,Hospitality + Trading Services,Cleaning Equipment and Materials,17.05.2021,1907237646,533.49,Alliance Disposables Ltd
Manchester City Council,Hospitality + Trading Services,Rodent and Pest Control,17.05.2021,5101132739,"1,020.00",Killgerm Chemicals Ltd
Manchester City Council,Regeneration Finance,Security,17.05.2021,5101132706,"492,262.59",MITIE SECURITY LIMITED
Manchester City Council,Manchester Leisure,Grounds Maintenance Costs,17.05.2021,5101132557,"4,408.69",Rigby Taylor Ltd
Manchester City Council,Regeneration Finance,Grounds Maintenance Costs,17.05.2021,5101132752,"1,980.00",Arboricultural Services Treework
Manchester City Council,Corporate Services,Travel Season Ticket Loan Scheme,17.05.2021,5101132733,570.00,Stagecoach Manchester
Manchester City Council,Manchester Leisure,Equipment,17.05.2021,5101132710,"13,696.80",Craemer Uk Ltd
Manchester City Council,Manchester Leisure,Equipment,17.05.2021,5101132711,"13,696.80",Craemer Uk Ltd
Manchester City Council,Adult Social Care,Equipment,17.05.2021,5101132730,"1,983.30",NRS Healthcare
Manchester City Council,Adult Social Care,Equipment,17.05.2021,5101132689,611.00,Aidapt Bathrooms Ltd
Manchester City Council,Adult Social Care,Equipment,17.05.2021,5101132731,500.00,Aidapt Bathrooms Ltd
Manchester City Council,Highways Services,Equipment,17.05.2021,5101132987,862.18,Arco Group Ltd
Manchester City Council,Adult Social Care,Furniture,17.05.2021,5101132791,"1,000.00",Locata (Housing Services) Ltd
Manchester City Council,Childrens & Education Services,"Consumable items eg Toilet rolls, soap etc",17.05.2021,5101132813,593.00,Cellmark
Manchester City Council,Adult Social Care,"Consumable items eg Toilet rolls, soap etc",17.05.2021,5101132820,"7,597.07",Bluenuit Limited t/a
Manchester City Council,Manchester Leisure,Payments to Sub-Contractors,17.05.2021,5101132558,"9,502.50",Rigby Taylor Ltd
Manchester City Council,Chief Executives,Payments to Sub-Contractors,17.05.2021,5101132773,"1,307.33",Redacted Personal Information
Manchester City Council,Chief Executives,Payments to Sub-Contractors,17.05.2021,5101132770,"1,127.48",Redacted Personal Information
Manchester City Council,Chief Executives,Payments to Sub-Contractors,17.05.2021,5101132789,619.95,Redacted Personal Information
Manchester City Council,Chief Executives,Payments to Sub-Contractors,17.05.2021,5101132778,574.85,Redacted Personal Information
Manchester City Council,Highways Services,Payments to Sub-Contractors,17.05.2021,5101132814,"-8,053.76",Electricity North West Limited
Manchester City Council,Hospitality + Trading Services,Catering Provisions,17.05.2021,1907237624,"1,050.00",Brake Bros Foodservice Ltd
Manchester City Council,Hospitality + Trading Services,Catering Provisions,17.05.2021,1907237702,945.53,Brake Bros Foodservice Ltd
Manchester City Council,Hospitality + Trading Services,Catering Provisions,17.05.2021,1907237701,915.89,Brake Bros Foodservice Ltd
Manchester City Council,Hospitality + Trading Services,Catering Provisions,17.05.2021,1907237439,881.18,Ralph Livesey Ltd
Manchester City Council,Hospitality + Trading Services,Catering Provisions,17.05.2021,1907237668,876.77,Brake Bros Foodservice Ltd
Manchester City Council,Hospitality + Trading Services,Catering Provisions,17.05.2021,1907237580,839.92,Brake Bros Foodservice Ltd
Manchester City Council,Hospitality + Trading Services,Catering Provisions,17.05.2021,1907237729,821.03,Brake Bros Foodservice Ltd
Manchester City Council,Hospitality + Trading Services,Catering Provisions,17.05.2021,1907237568,795.67,Brake Bros Foodservice Ltd
Manchester City Council,Hospitality + Trading Services,Catering Provisions,17.05.2021,1907237477,772.79,Brake Bros Foodservice Ltd
Manchester City Council,Hospitality + Trading Services,Catering Provisions,17.05.2021,1907237630,734.06,Brake Bros Foodservice Ltd
Manchester City Council,Hospitality + Trading Services,Catering Provisions,17.05.2021,1907237581,666.63,Brake Bros Foodservice Ltd
Manchester City Council,Hospitality + Trading Services,Catering Provisions,17.05.2021,1907237556,661.26,Brake Bros Foodservice Ltd
Manchester City Council,Hospitality + Trading Services,Catering Provisions,17.05.2021,1907237510,600.44,Brake Bros Foodservice Ltd
Manchester City Council,Hospitality + Trading Services,Catering Provisions,17.05.2021,1907237700,581.53,Brake Bros Foodservice Ltd
Manchester City Council,Hospitality + Trading Services,Catering Provisions,17.05.2021,1907237432,581.49,Ralph Livesey Ltd
Manchester City Council,Hospitality + Trading Services,Catering Provisions,17.05.2021,1907237528,571.00,Ralph Livesey Ltd
Manchester City Council,Hospitality + Trading Services,Catering Provisions,17.05.2021,1907237579,565.85,Brake Bros Foodservice Ltd
Manchester City Council,Hospitality + Trading Services,Catering Provisions,17.05.2021,1907237607,553.16,Brake Bros Foodservice Ltd
Manchester City Council,Hospitality + Trading Services,Catering Provisions,17.05.2021,1907237657,527.17,Brake Bros Foodservice Ltd
Manchester City Council,Hospitality + Trading Services,Catering Provisions,17.05.2021,1907237480,516.38,Ralph Livesey Ltd
Manchester City Council,Chief Executives,Printing,17.05.2021,5101132827,708.75,Silk Group Ltd
Manchester City Council,Chief Executives,Printing,17.05.2021,5101132827,560.00,Silk Group Ltd
Manchester City Council,Manchester Leisure,Professional fees,17.05.2021,5101132678,"10,560.00",City in the Community
Manchester City Council,Manchester Leisure,Professional fees,17.05.2021,5101132672,"3,300.00",Utilities Design & Planning Ltd
Manchester City Council,Manchester Leisure,Professional fees,17.05.2021,5101132726,664.17,Framing Manchester Ltd
Manchester City Council,Manchester Leisure,Professional fees,17.05.2021,5101132815,640.00,Corporate & Sporting Events
Manchester City Council,Adult Social Care,Professional fees,17.05.2021,5101132702,883.09,Bluenuit Limited t/a
Manchester City Council,Adult Social Care,Professional fees,17.05.2021,5101132816,561.08,Bluenuit Limited t/a
Manchester City Council,Chief Executives,Professional fees,17.05.2021,1907236946,757.90,Forensic Testing Service Ltd
Manchester City Council,Chief Executives,Professional fees,17.05.2021,1907234287,600.00,Sam Heitzman Media Installations
Manchester City Council,Chief Executives,Funeral and coroner related services,17.05.2021,5101132700,599.88,Kane Funeral Services
Manchester City Council,Corporate Services,I T Provision,17.05.2021,5101132768,640.85,HPI Ltd
Manchester City Council,Corporate Services,Tele Conferencing,17.05.2021,1907230199,997.95,BT Conferencing Services
Manchester City Council,Insurance Fund,Insurance,17.05.2021,1907236313,"15,487.00",Cheadle Solicitors
Manchester City Council,Chief Executives,Compensation Payments,17.05.2021,1907237015,"1,700.00",Emerald Law Solicitors
Manchester City Council,Manchester Leisure,Grant and subscriptions awarded,17.05.2021,5101132766,"144,095.00",Manchester Art Gallery
Manchester City Council,Adult Social Care,Grant and subscriptions awarded,17.05.2021,5101132783,"8,760.00",Coffee4Craig Ltd
Manchester City Council,Hospitality + Trading Services,Funeral and coroner related services,17.05.2021,5101132997,"2,472.80",Arco Group Ltd
Manchester City Council,Manchester Leisure,Library Materials Acquisition,17.05.2021,1907237762,"3,570.00",British Standards Institution
Manchester City Council,Manchester Leisure,Library Materials Acquisition,17.05.2021,1907237885,"2,050.00",Peters Bookselling Services
Manchester City Council,Manchester Leisure,Library Materials Acquisition,17.05.2021,1907237818,"1,162.80",Azhar Enterrprises
Manchester City Council,Manchester Leisure,Library Materials Acquisition,17.05.2021,1907237786,"1,095.05",Askews and Holts
Manchester City Council,Manchester Leisure,Library Materials Acquisition,17.05.2021,1907237814,907.94,Experian Limited
Manchester City Council,Manchester Leisure,Library Materials Acquisition,17.05.2021,1907237821,726.74,Azhar Enterrprises
Manchester City Council,Manchester Leisure,Library Materials Acquisition,17.05.2021,1907237820,712.64,Azhar Enterrprises
Manchester City Council,Manchester Leisure,Library Materials Acquisition,17.05.2021,1907237788,698.81,Askews and Holts
Manchester City Council,Manchester Leisure,Library Materials Acquisition,17.05.2021,1907237819,670.49,Azhar Enterrprises
Manchester City Council,Manchester Leisure,Library Materials Acquisition,17.05.2021,1907237782,662.20,Askews and Holts
Manchester City Council,Manchester Leisure,Library Materials Acquisition,17.05.2021,1907237817,590.40,Azhar Enterrprises
Manchester City Council,Manchester Leisure,Library Materials Acquisition,17.05.2021,1907237815,556.00,Azhar Enterrprises
Manchester City Council,Manchester Leisure,Library Materials Acquisition,17.05.2021,1907237789,540.86,Askews and Holts
Manchester City Council,Manchester Leisure,Library Materials Acquisition,17.05.2021,1907237816,531.20,Azhar Enterrprises
Manchester City Council,Manchester Leisure,Library Materials Acquisition,17.05.2021,1907237785,510.35,Askews and Holts
Manchester City Council,General Fund,Bus Rates Pool Top Up Payments,17.05.2021,1907226747,"3,478,689.00",DCLG
Manchester City Council,Adult Social Care,Third party payments to Health Authority,17.05.2021,5101132736,"119,333.00",Greater Manchester Mental Health
Manchester City Council,Childrens & Education Services,Payments for services,17.05.2021,5101132822,"739,814.36",The Together Trust
Manchester City Council,Childrens & Education Services,Payments for services,17.05.2021,5101132836,"24,418.67",David Lewis Organisation
Manchester City Council,Childrens & Education Services,Payments for services,17.05.2021,5101132837,"23,226.67",David Lewis Organisation
Manchester City Council,Childrens & Education Services,Payments for services,17.05.2021,5101132849,"20,401.00",David Lewis Organisation
Manchester City Council,Childrens & Education Services,Payments for services,17.05.2021,5101132845,"19,126.67",David Lewis Organisation
Manchester City Council,Childrens & Education Services,Payments for services,17.05.2021,5101132841,"18,860.67",David Lewis Organisation
Manchester City Council,Childrens & Education Services,Payments for services,17.05.2021,5101132843,"18,781.67",David Lewis Organisation
Manchester City Council,Childrens & Education Services,Payments for services,17.05.2021,5101132846,"18,107.67",David Lewis Organisation
Manchester City Council,Childrens & Education Services,Payments for services,17.05.2021,5101132751,"1,507.42",Reed Employment Plc
Manchester City Council,Childrens & Education Services,Payments for services,17.05.2021,5101132742,623.76,Reed Employment Plc
Manchester City Council,Childrens & Education Services,Payments for services,17.05.2021,5101132743,623.76,Reed Employment Plc
Manchester City Council,Childrens & Education Services,Payments for services,17.05.2021,5101132744,623.76,Reed Employment Plc
Manchester City Council,Adult Social Care,Supporting People Payments,17.05.2021,5101132734,"401,023.00",Greater Manchester Mental Health
Manchester City Council,Adult Social Care,Supporting People Payments,17.05.2021,5101132735,"401,023.00",Greater Manchester Mental Health
Manchester City Council,Childrens & Education Services,Supported Accommodation,17.05.2021,5101132805,535.64,Redacted Personal Information
Manchester City Council,Adult Social Care,Supported Accommodation,17.05.2021,5101132713,"1,150.00",Wythenshawe Community Housing Group
Manchester City Council,Adult Social Care,Personal needs of client,17.05.2021,5101132741,867.00,Care & Independence Ltd
Manchester City Council,Adult Social Care,Personal needs of client,17.05.2021,5101132740,-867.00,Care & Independence Ltd
Manchester City Council,Housing Revenue Account,Council Dwelling Adaptations,17.05.2021,5101132105,"5,314.52",Prism Medical UK Carefree Division
Manchester City Council,Corporate Services,Works and associated costs for Land and Buildings,17.05.2021,1907177295,"6,385.60",Vanguard Holdings Ltd
Manchester City Council,Corporate Services,Works and associated costs for Land and Buildings,17.05.2021,5101132767,"5,972.00",Ramboll UK Limited
Manchester City Council,Corporate Services,Works and associated costs for Land and Buildings,17.05.2021,5101132764,"5,000.00",Ramboll UK Limited
Manchester City Council,Corporate Services,Works and associated costs for Land and Buildings,17.05.2021,5101132765,"4,750.00",Ramboll UK Limited
Manchester City Council,Corporate Services,Works and associated costs for Land and Buildings,17.05.2021,5101132762,"2,715.00",Ramboll UK Limited
Manchester City Council,Corporate Services,Works and associated costs for Land and Buildings,17.05.2021,5101132755,"2,043.00",Ramboll UK Limited
Manchester City Council,Corporate Services,Works and associated costs for Land and Buildings,17.05.2021,5101132746,"1,790.00",Ramboll UK Limited
Manchester City Council,Environment and Operations,Construction Works,17.05.2021,5101132641,"184,774.15",Eric Wright Civil Engineering Limit
Manchester City Council,Environment and Operations,Construction Works,17.05.2021,5101132814,"-2,449.27",Electricity North West Limited
Manchester City Council,Highways Services,Legal Fees,17.05.2021,1907236387,"7,742.00",Russell and Russell Solicitors LLP
Manchester City Council,Highways Services,Legal Fees,17.05.2021,1907235460,"4,523.00",Thorneycroft Solicitors
Manchester City Council,Corporate Services,Legal Fees,17.05.2021,1907229753,"1,750.00",Pure Legal Limited
Manchester City Council,Chief Executives,Legal Fees,17.05.2021,1907236973,677.32,Avr Transcription Ltd
Manchester City Council,Adult Social Care,Goods Received Invoice Received,18.05.2021,5101132823,"23,226.67",Manchester City Football Club Plc
Manchester City Council,Adult Social Care,Goods Received Invoice Received,18.05.2021,5101132834,"22,380.33",Manchester City Football Club Plc
Manchester City Council,Adult Social Care,Goods Received Invoice Received,18.05.2021,5101132829,"18,107.67",Manchester City Football Club Plc
Manchester City Council,Adult Social Care,Goods Received Invoice Received,18.05.2021,5101132847,"-18,107.67",Manchester City Football Club Plc
Manchester City Council,Adult Social Care,Goods Received Invoice Received,18.05.2021,5101132850,"-22,380.33",Manchester City Football Club Plc
Manchester City Council,Adult Social Care,Goods Received Invoice Received,18.05.2021,5101132839,"-23,226.67",Manchester City Football Club Plc
Manchester City Council,Chief Executives,Agency staff provision,18.05.2021,5101132909,"29,334.35",Osborne Richardson
Manchester City Council,Chief Executives,Agency staff provision,18.05.2021,5101132903,"24,698.52",Osborne Richardson
Manchester City Council,Chief Executives,Agency staff provision,18.05.2021,5101132948,"18,172.00",Gatenby Sanderson
Manchester City Council,Chief Executives,Agency staff provision,18.05.2021,5101132861,"14,933.24",NES UK Limited
Manchester City Council,Chief Executives,Agency staff provision,18.05.2021,5101132863,"9,295.00",Penna PLC
Manchester City Council,Chief Executives,Agency staff provision,18.05.2021,5101132862,"8,340.00",Penna PLC
Manchester City Council,Chief Executives,Agency staff provision,18.05.2021,5101132947,"6,608.00",Gatenby Sanderson
Manchester City Council,Chief Executives,Agency staff provision,18.05.2021,5101132912,"1,555.20",Ashberry Recruitment Ltd
Manchester City Council,Chief Executives,Agency staff provision,18.05.2021,5101132952,"1,526.00",HCL Social Care
Manchester City Council,Chief Executives,Agency staff provision,18.05.2021,5101132916,"1,220.80",HCL Social Care
Manchester City Council,Chief Executives,Agency staff provision,18.05.2021,5101132896,"-21,109.61",Eden Brown Synergy
Manchester City Council,Childrens & Education Services,Training and Development,18.05.2021,5101132864,800.00,Manchester Metropolitan University
Manchester City Council,Childrens & Education Services,Training and Development,18.05.2021,5101132866,800.00,Manchester Metropolitan University
Manchester City Council,Chief Executives,Training and Development,18.05.2021,5101132831,"20,401.00",Dan Slee C2 Ltd t/a
Manchester City Council,Chief Executives,Training and Development,18.05.2021,5101132848,"-20,401.00",Dan Slee C2 Ltd t/a
Manchester City Council,Regeneration Finance,Internal Repairs and Maintenance for buildings,18.05.2021,5101133036,"59,449.93",ENGIE Services Ltd
Manchester City Council,Manchester Leisure,External repairs and maintenance for buildings,18.05.2021,5101133023,"1,450.00",Cornthwaite Tree Care
Manchester City Council,Childrens & Education Services,Gas,18.05.2021,5101133014,"17,037.70",Manchester School Services Limited
Manchester City Council,Regeneration Finance,Gas,18.05.2021,1907237899,"12,500.00",Asda Stores Ltd (Leeds)
Manchester City Council,Adult Social Care,Rents,18.05.2021,5101133043,"148,464.61",T15 Consultancy Ltd
Manchester City Council,Adult Social Care,Rents,18.05.2021,5101132924,"1,150.00",Barret Gray Rentals
Manchester City Council,Adult Social Care,Rents,18.05.2021,5101132928,"1,150.00",Barret Gray Rentals
Manchester City Council,Adult Social Care,Rents,18.05.2021,5101132929,"1,150.00",Barret Gray Rentals
Manchester City Council,Adult Social Care,Rents,18.05.2021,5101132930,"1,150.00",Barret Gray Rentals
Manchester City Council,Adult Social Care,Rents,18.05.2021,1907238974,850.00,HEATON SQUARE LTD
Manchester City Council,Adult Social Care,Rents,18.05.2021,1907238986,800.00,Redacted Personal Information
Manchester City Council,Highways Services,Grounds Maintenance Costs,18.05.2021,5101133201,692.75,Central Locksmiths
Manchester City Council,Hospitality + Trading Services,Vehicle Hire Costs,18.05.2021,5101133021,"2,715.77",TIP Trailer Services UK Ltd
Manchester City Council,Childrens & Education Services,Transport Coach Hire,18.05.2021,5101133051,"8,793.68",MCR Blackcab Ltd
Manchester City Council,Childrens & Education Services,Transport Coach Hire,18.05.2021,5101133185,"5,588.00",Street Cars
Manchester City Council,Childrens & Education Services,Transport Coach Hire,18.05.2021,5101133182,"2,998.00",Street Cars
Manchester City Council,Childrens & Education Services,Transport Coach Hire,18.05.2021,5101133183,"2,992.00",Street Cars
Manchester City Council,Manchester Leisure,Equipment,18.05.2021,5101133053,"1,885.00",Groundwork Landscapes Ltd
Manchester City Council,Manchester Leisure,Equipment,18.05.2021,5101132940,"1,810.00",HAGS-SMP Limited
Manchester City Council,Manchester Leisure,Equipment,18.05.2021,5101132944,"1,518.00",HAGS-SMP Limited
Manchester City Council,Manchester Leisure,Equipment,18.05.2021,5101132938,"1,179.60",HAGS-SMP Limited
Manchester City Council,Manchester Leisure,Equipment,18.05.2021,5101132875,"1,150.00",Groundwork Landscapes Ltd
Manchester City Council,Manchester Leisure,Equipment,18.05.2021,5101132936,531.00,HAGS-SMP Limited
Manchester City Council,Hospitality + Trading Services,Equipment,18.05.2021,5101132468,669.00,Dante Fire & Security Ltd
Manchester City Council,Hospitality + Trading Services,Equipment,18.05.2021,5101132471,669.00,Dante Fire & Security Ltd
Manchester City Council,Hospitality + Trading Services,Equipment,18.05.2021,5101132465,620.50,Dante Fire & Security Ltd
Manchester City Council,Adult Social Care,Equipment,18.05.2021,5101132964,"5,400.00",Mangar International Ltd
Manchester City Council,Chief Executives,Equipment,18.05.2021,1907238935,564.07,Amazon Co.Uk
Manchester City Council,Adult Social Care,Furniture,18.05.2021,5101132876,531.50,Back Care Solutions Ltd
Manchester City Council,Hospitality + Trading Services,Building Materials for direct delivery,18.05.2021,5101133039,"1,509.32",Killgerm Chemicals Ltd
Manchester City Council,Manchester Leisure,Payments to Sub-Contractors,18.05.2021,5101133067,"3,418.00",Community Security (North West)
Manchester City Council,Hospitality + Trading Services,Payments to Sub-Contractors,18.05.2021,5101132811,"-1,302.34",WMB (Installations) Ltd
Manchester City Council,Highways Services,Payments to Sub-Contractors,18.05.2021,5101132884,"4,959.17",Rosgal Ltd
Manchester City Council,Adult Social Care,Catering Provisions,18.05.2021,1907238913,813.65,Brake Bros Foodservice Ltd
Manchester City Council,Regeneration Finance,Printing,18.05.2021,5101132954,500.00,Quadient Ltd (Credifon)
Manchester City Council,Manchester Leisure,Professional fees,18.05.2021,5101132895,"15,109.72",Mike Stoane Lighting Ltd
Manchester City Council,Manchester Leisure,Professional fees,18.05.2021,5101133024,"5,073.00",Projectorpoint
Manchester City Council,Hospitality + Trading Services,Professional fees,18.05.2021,5101132801,"2,580.24",Jacobs UK Ltd
Manchester City Council,Hospitality + Trading Services,Professional fees,18.05.2021,5101132801,"2,177.88",Jacobs UK Ltd
Manchester City Council,Childrens & Education Services,Professional fees,18.05.2021,1907236983,"1,739.80",Advanced Child Care Assessments
Manchester City Council,Childrens & Education Services,Professional fees,18.05.2021,1907235938,725.00,Redacted Personal Information
Manchester City Council,Childrens & Education Services,Professional fees,18.05.2021,1907235462,550.00,Redacted Personal Information
Manchester City Council,Housing Revenue Account,Professional fees,18.05.2021,5101133050,"10,512.14",Morgan Sindall Property
Manchester City Council,Housing Revenue Account,Professional fees,18.05.2021,5101132801,"1,250.00",Jacobs UK Ltd
Manchester City Council,Chief Executives,Professional fees,18.05.2021,1907237931,650.00,18 St John Street Chambers
Manchester City Council,Regeneration Finance,Professional fees,18.05.2021,5101132801,"25,000.00",Jacobs UK Ltd
Manchester City Council,Regeneration Finance,Professional fees,18.05.2021,5101132801,"7,432.50",Jacobs UK Ltd
Manchester City Council,Regeneration Finance,Professional fees,18.05.2021,5101132801,"4,525.00",Jacobs UK Ltd
Manchester City Council,Regeneration Finance,Professional fees,18.05.2021,5101132801,"4,452.00",Jacobs UK Ltd
Manchester City Council,Regeneration Finance,Professional fees,18.05.2021,5101132801,"3,000.00",Jacobs UK Ltd
Manchester City Council,Regeneration Finance,Professional fees,18.05.2021,5101132801,"1,587.50",Jacobs UK Ltd
Manchester City Council,Regeneration Finance,Professional fees,18.05.2021,5101132801,"1,525.00",Jacobs UK Ltd
Manchester City Council,Regeneration Finance,Professional fees,18.05.2021,5101132801,"1,375.00",Jacobs UK Ltd
Manchester City Council,Regeneration Finance,Professional fees,18.05.2021,5101132801,530.00,Jacobs UK Ltd
Manchester City Council,Highways Services,Professional fees,18.05.2021,5101132763,"8,226.00",Mace Cost Consultancy Ltd
Manchester City Council,Highways Services,Professional fees,18.05.2021,5101132761,"7,587.00",Mace Cost Consultancy Ltd
Manchester City Council,Chief Executives,Postage,18.05.2021,5101132899,"38,265.22",Royal Mail Group Plc
Manchester City Council,Chief Executives,Postage,18.05.2021,5101133033,"1,500.00",Pitney Bowes Ltd - Postage by Phone
Manchester City Council,Chief Executives,Postage,18.05.2021,5101133034,"1,496.30",Pitney Bowes Ltd - Postage by Phone
Manchester City Council,Chief Executives,Landline Telephone Charges,18.05.2021,1907237893,"99,415.26",BT PLC
Manchester City Council,Chief Executives,Mobilephone Charges,18.05.2021,1907237901,"75,847.98",EE / Orange
Manchester City Council,Childrens & Education Services,I T Provision,18.05.2021,5101132252,"8,251.00",One Education Ltd
Manchester City Council,Manchester Leisure,Grant and subscriptions awarded,18.05.2021,5101132908,790.00,Gorton Events Committee
Manchester City Council,Manchester Leisure,Grant and subscriptions awarded,18.05.2021,5101132905,500.00,Gorton Visual Arts Group
Manchester City Council,Housing Revenue Account,Private Finance and Public Private partnership initiatives,18.05.2021,5101132923,"458,330.39",Grove Village Ltd
Manchester City Council,Corporate Services,Welfare Provision Service Awards,18.05.2021,5101132917,950.49,Furniture Resource Centre Ltd
Manchester City Council,Corporate Services,Welfare Provision Service Awards,18.05.2021,5101132962,677.03,Furniture Resource Centre Ltd
Manchester City Council,Collection Fund,Ctax - Preceptor Payments,18.05.2021,1907212990,"3,034,884.00",GMCA
Manchester City Council,Collection Fund,Business Rates - Preceptor Payments,18.05.2021,1907212990,"270,060.00",GMCA
Manchester City Council,Manchester Leisure,Levies,18.05.2021,1907212832,"2,394,000.00",GMCA
Manchester City Council,Childrens & Education Services,Third party payments to other Local Authorities,18.05.2021,5101132873,"13,587.00",Droylsden Academy
Manchester City Council,Childrens & Education Services,Third party payments to other Local Authorities,18.05.2021,5101132877,"4,777.50",North Cheshire
Manchester City Council,Adult Social Care,Third party payments relating to Voluntary Organisations,18.05.2021,5101133027,"7,282.33",The Shaw Centre
Manchester City Council,Adult Social Care,Third party payments relating to Voluntary Organisations,18.05.2021,5101132907,"2,290.00",Great Places Housing Association
Manchester City Council,Childrens & Education Services,Payments for services,18.05.2021,5101132851,"22,380.33",David Lewis Organisation
Manchester City Council,Childrens & Education Services,Payments for services,18.05.2021,5101132852,"21,957.33",David Lewis Organisation
Manchester City Council,Childrens & Education Services,Payments for services,18.05.2021,5101132937,"20,000.00",Headstart
Manchester City Council,Childrens & Education Services,Payments for services,18.05.2021,5101132993,"5,072.83",Rossendale School Priory
Manchester City Council,Childrens & Education Services,Payments for services,18.05.2021,5101132983,"4,913.79",Rossendale School Priory
Manchester City Council,Childrens & Education Services,Payments for services,18.05.2021,5101132958,"3,545.45",Broadstones Independent Special Sch
Manchester City Council,Childrens & Education Services,Payments for services,18.05.2021,5101132959,"3,090.90",Broadstones Independent Special Sch
Manchester City Council,Adult Social Care,Supporting People Payments,18.05.2021,5101132931,758.33,Albert Kennedy Trust
Manchester City Council,Childrens & Education Services,Foster Payments,18.05.2021,1907238976,"2,150.00",Redacted Personal Information
Manchester City Council,Adult Social Care,Supported Accommodation,18.05.2021,5101133076,579.20,Banner Group Limited
Manchester City Council,Housing Revenue Account,Council Dwellings - Acquisition,18.05.2021,1907238978,"199,500.00",JMW Solicitors
Manchester City Council,Corporate Services,Works and associated costs for Land and Buildings,18.05.2021,5101132956,"2,175.00",Planit
Manchester City Council,Corporate Services,Works and associated costs for Land and Buildings,18.05.2021,5101132950,500.00,Planit
Manchester City Council,Chief Executives,Works and associated costs for Land and Buildings,18.05.2021,5101133031,"-6,250.00",Buro Happold Limited
Manchester City Council,Chief Executives,Works and associated costs for Land and Buildings,18.05.2021,5101133030,"-7,500.00",Buro Happold Limited
Manchester City Council,Corporate Services,Works and associated costs for Land and Buildings,18.05.2021,5101132738,"2,520.00",Specimen Trees Ltd
Manchester City Council,Chief Executives,Works and associated costs for Land and Buildings,18.05.2021,5101132963,"261,961.07",Galliford Try Construction
Manchester City Council,Housing General Fund,Capital Receipts,18.05.2021,1907229342,"13,925.00",Redrow Homes Lancashire
Manchester City Council,Chief Executives,Legal Fees,18.05.2021,1907238997,"16,005.00",Liberata
Manchester City Council,Chief Executives,Legal Fees,18.05.2021,1907237908,"1,840.00",MEWA LLP
Manchester City Council,Chief Executives,Legal Fees,18.05.2021,1907237903,"1,350.00",Redacted Personal Information
Manchester City Council,Chief Executives,Legal Fees,18.05.2021,1907237909,650.00,Redacted Personal Information
Manchester City Council,Childrens & Education Services,Compensation Payments,18.05.2021,1907238996,"13,675.00",Liberata
Manchester City Council,Childrens & Education Services,Compensation Payments,18.05.2021,1907238993,"12,550.00",Liberata
Manchester City Council,Chief Executives,Compensation Payments,18.05.2021,1907237910,"7,500.00",Simpsons Solicitors
Manchester City Council,Childrens & Education Services,Compensation Payments,18.05.2021,1907238990,"7,445.00",Liberata
Manchester City Council,Chief Executives,Compensation Payments,18.05.2021,1907238998,"2,257.00",Liberata
Manchester City Council,Childrens & Education Services,Compensation Payments,18.05.2021,1907238991,"1,020.00",Liberata
Manchester City Council,Childrens & Education Services,Compensation Payments,18.05.2021,1907238994,850.00,Liberata
Manchester City Council,Chief Executives,Agency staff provision,19.05.2021,5101133230,"5,360.00",Penna PLC
Manchester City Council,Chief Executives,Agency staff provision,19.05.2021,5101133236,"1,518.48",LAW Absolute
Manchester City Council,Chief Executives,Agency staff provision,19.05.2021,5101133232,924.00,The Oyster Partnership Limited
Manchester City Council,Highways Services,Electricity,19.05.2021,1907237018,"1,500.00",Tym Huckin Limited
Manchester City Council,Adult Social Care,Rents,19.05.2021,5101133247,"106,340.27",MJ Rental Ltd
Manchester City Council,Adult Social Care,Rents,19.05.2021,5101133302,"17,074.16",Cromwood Ltd
Manchester City Council,Adult Social Care,Rents,19.05.2021,5101133281,"13,250.14",K L Properties
Manchester City Council,Adult Social Care,Rents,19.05.2021,5101133245,"9,171.79",Eeven Homes Ltd.
Manchester City Council,Adult Social Care,Rents,19.05.2021,5101133297,"3,518.13",Houses4Homes 4U Ltd
Manchester City Council,Adult Social Care,Rents,19.05.2021,1907242207,"1,634.00",Redacted Personal Information
Manchester City Council,Adult Social Care,Rents,19.05.2021,1907242205,"1,300.00",JADE RESIDENTIAL
Manchester City Council,Chief Executives,Rents,19.05.2021,5101133180,"10,000.00",Manchester Creative Digital Assets
Manchester City Council,Regeneration Finance,Rents,19.05.2021,5101133126,"3,483.41",The East Manchester Academy
Manchester City Council,Regeneration Finance,Rents,19.05.2021,5101133118,"2,327.22",The East Manchester Academy
Manchester City Council,Regeneration Finance,Rents,19.05.2021,5101133125,"1,891.04",The East Manchester Academy
Manchester City Council,Regeneration Finance,Rents,19.05.2021,5101133116,"-2,327.22",The East Manchester Academy
Manchester City Council,Childrens & Education Services,Contract Cleaning External,19.05.2021,5101133192,"1,370.00",Collyhurst Nursery School
Manchester City Council,Hospitality + Trading Services,Refuse Collection,19.05.2021,5101132927,"74,898.83",Fairfield Environmental Serv Ltd
Manchester City Council,Chief Executives,Storage Costs,19.05.2021,5101133315,536.10,Data Space Limited
Manchester City Council,Hospitality + Trading Services,Vehicle Fuel Costs,19.05.2021,5101133187,"14,561.85",Standard Fuels Oils
Manchester City Council,Childrens & Education Services,Transport Coach Hire,19.05.2021,5101133072,"5,800.00",MCR Blackcab Ltd
Manchester City Council,Childrens & Education Services,Transport Coach Hire,19.05.2021,5101133059,"4,974.17",MCR Blackcab Ltd
Manchester City Council,Childrens & Education Services,Transport Coach Hire,19.05.2021,5101133078,"4,477.06",MCR Blackcab Ltd
Manchester City Council,Childrens & Education Services,Transport Coach Hire,19.05.2021,5101133081,"3,177.64",MCR Blackcab Ltd
Manchester City Council,Childrens & Education Services,Transport Coach Hire,19.05.2021,5101133240,"1,320.00",Redacted Personal Information
Manchester City Council,Childrens & Education Services,Transport Coach Hire,19.05.2021,5101132367,"1,166.00",T/A Beresford Travel
Manchester City Council,Adult Social Care,Equipment,19.05.2021,5101133111,"9,400.00",Medela UK Ltd
Manchester City Council,Adult Social Care,Equipment,19.05.2021,5101133306,"1,413.60",Invacare Limited
Manchester City Council,Adult Social Care,Equipment,19.05.2021,5101133304,"1,116.00",Invacare Limited
Manchester City Council,Highways Services,Building Materials for direct delivery,19.05.2021,5101133128,546.00,O'Connor Concrete Ltd
Manchester City Council,Manchester Leisure,Payments to Sub-Contractors,19.05.2021,5101133086,"7,875.00",Hillier Nurseries Ltd
Manchester City Council,Manchester Leisure,Payments to Sub-Contractors,19.05.2021,5101133181,"4,000.00",Arboricultural Services Treework
Manchester City Council,Hospitality + Trading Services,Hire of Machinery,19.05.2021,5101133283,830.80,R & M Developments Ltd
Manchester City Council,Hospitality + Trading Services,Hire of Machinery,19.05.2021,5101133284,830.80,R & M Developments Ltd
Manchester City Council,Childrens & Education Services,Catering,19.05.2021,5101133303,"9,501.10",Spie Limited
Manchester City Council,Childrens & Education Services,Professional fees,19.05.2021,1907237890,779.69,Coastal Child and Adult Theraputic
Manchester City Council,Childrens & Education Services,Professional fees,19.05.2021,1907238911,550.00,Redacted Personal Information
Manchester City Council,Childrens & Education Services,Professional fees,19.05.2021,5101133308,500.00,Redacted Personal Information
Manchester City Council,Corporate Services,Professional fees,19.05.2021,5101133195,"7,825.60",Faithful & Gould Ltd
Manchester City Council,Regeneration Finance,Professional fees,19.05.2021,5101133123,"1,109.00",Planit
Manchester City Council,Highways Services,Professional fees,19.05.2021,5101133235,785.00,The Fountain Company Ltd
Manchester City Council,Highways Services,Professional fees,19.05.2021,5101133234,-785.00,The Fountain Company Ltd
Manchester City Council,Chief Executives,Telecoms Equip,19.05.2021,5101132922,"6,051.76",Insight Direct (Uk) Ltd
Manchester City Council,Chief Executives,Telecoms Equip,19.05.2021,5101132926,"-6,051.76",Insight Direct (Uk) Ltd
Manchester City Council,Regeneration Finance,Mobilephone Charges,19.05.2021,5101132124,"12,358.20",Vodafone Corporate
Manchester City Council,Highways Services,I T Provision,19.05.2021,5101133046,"1,082.97",Insight Direct (Uk) Ltd
Manchester City Council,Highways Services,I T Provision,19.05.2021,5101133044,"-1,082.97",Insight Direct (Uk) Ltd
Manchester City Council,Manchester Leisure,Grant and subscriptions awarded,19.05.2021,5101133142,"1,000.00",Castlefield Forum
Manchester City Council,Chief Executives,Grant and subscriptions awarded,19.05.2021,5101133209,"500,000.00",Manchester International Festival
Manchester City Council,Chief Executives,Advertising,19.05.2021,5101133241,"6,971.25",Clear Channel Uk Ltd
Manchester City Council,Adult Social Care,Bed and Breakfast Accommodation Expenditure,19.05.2021,5101133253,"236,857.62",Express By Holiday Inn
Manchester City Council,Adult Social Care,Bed and Breakfast Accommodation Expenditure,19.05.2021,5101133233,"32,175.00",Intra City Construction Group
Manchester City Council,Adult Social Care,Bed and Breakfast Accommodation Expenditure,19.05.2021,5101133260,"15,578.00",Redacted Personal Information
Manchester City Council,Adult Social Care,Bed and Breakfast Accommodation Expenditure,19.05.2021,5101133269,"13,959.00",Redacted Personal Information
Manchester City Council,Adult Social Care,Bed and Breakfast Accommodation Expenditure,19.05.2021,5101133273,"11,046.00",Redacted Personal Information
Manchester City Council,Adult Social Care,Bed and Breakfast Accommodation Expenditure,19.05.2021,5101133287,"4,725.00",Medlock House Ltd
Manchester City Council,Manchester Leisure,Goods purchased for resale in Council outlets,19.05.2021,5101133113,"4,200.00",Stephanie Mann Jewellery
Manchester City Council,Manchester Leisure,Library Materials Acquisition,19.05.2021,1907238988,"3,000.00",Ahmed Iqbal Ullah Education Trust
Manchester City Council,Manchester Leisure,Third party payments to other Local Authorities,19.05.2021,1907237932,"140,778.29",GMCA
Manchester City Council,Childrens & Education Services,Third party payments to other Local Authorities,19.05.2021,5101133161,"2,567.00",The Oak Trust
Manchester City Council,Childrens & Education Services,Third party payments relating to Voluntary Organisations,19.05.2021,5101133189,"6,755.32",Manchester Settlement
Manchester City Council,Childrens & Education Services,Third party payments relating to Voluntary Organisations,19.05.2021,5101133261,"1,040.00",Just Psychology CIC
Manchester City Council,Adult Social Care,Third party payments relating to Voluntary Organisations,19.05.2021,5101133153,"104,166.67",Nacro
Manchester City Council,Adult Social Care,Third party payments relating to Voluntary Organisations,19.05.2021,5101133244,"22,000.00",Supporting People In Need
Manchester City Council,Chief Executives,Third party payments relating to Voluntary Organisations,19.05.2021,5101132292,"250,000.00",Manchester International Festival
Manchester City Council,Regeneration Finance,Third party payments relating to Voluntary Organisations,19.05.2021,5101133073,"11,884.00",Impact For All
Manchester City Council,Childrens & Education Services,Payments for services,19.05.2021,5101133175,"54,471.34",Cambian Childcare Ltd
Manchester City Council,Childrens & Education Services,Payments for services,19.05.2021,5101133272,"50,598.70",Teenage Works
Manchester City Council,Childrens & Education Services,Payments for services,19.05.2021,5101133255,"23,007.00",Cumberland & Westmorland
Manchester City Council,Childrens & Education Services,Payments for services,19.05.2021,5101133250,"14,229.00",Cambian Childcare Ltd
Manchester City Council,Childrens & Education Services,Payments for services,19.05.2021,5101133159,"9,951.00",National Offender Mgt Services
Manchester City Council,Childrens & Education Services,Payments for services,19.05.2021,5101133238,"9,951.00",National Offender Mgt Services
Manchester City Council,Childrens & Education Services,Payments for services,19.05.2021,5101133239,"8,988.00",National Offender Mgt Services
Manchester City Council,Childrens & Education Services,Payments for services,19.05.2021,5101133157,"7,383.00",National Offender Mgt Services
Manchester City Council,Childrens & Education Services,Payments for services,19.05.2021,5101133155,"6,099.00",National Offender Mgt Services
Manchester City Council,Childrens & Education Services,Payments for services,19.05.2021,5101133251,"5,533.34",Oldham Hulme Grammar School
Manchester City Council,Childrens & Education Services,Payments for services,19.05.2021,5101133237,"5,457.00",National Offender Mgt Services
Manchester City Council,Childrens & Education Services,Payments for services,19.05.2021,5101133229,935.64,Reed Employment Plc
Manchester City Council,Childrens & Education Services,Payments for services,19.05.2021,5101133217,727.72,Reed Employment Plc
Manchester City Council,Childrens & Education Services,Payments for services,19.05.2021,5101133219,623.76,Reed Employment Plc
Manchester City Council,Adult Social Care,Payments for services,19.05.2021,5101133146,"116,500.00",Salford City Council
Manchester City Council,Childrens & Education Services,Supported Accommodation,19.05.2021,5101133242,"11,571.48",Social Care Services (Clayton) Ltd
Manchester City Council,Childrens & Education Services,Personal needs of client,19.05.2021,5101133254,"1,000.00",Hemingways Marketing Services Ltd
Manchester City Council,Hospitality + Trading Services,Other Fees and Charges,19.05.2021,1907235941,981.96,Vend It Ltd
Manchester City Council,Housing Revenue Account,Council Dwelling Fees,19.05.2021,5101133143,"247,164.00",Northwards Housing Limited
Manchester City Council,Housing Revenue Account,Council Dwelling Adaptations,19.05.2021,5101133211,"5,483.00",Stannah Lift Services Ltd
Manchester City Council,Housing Revenue Account,Council Dwelling Adaptations,19.05.2021,5101133286,"3,892.62",Rexel UK Ltd
Manchester City Council,Housing Revenue Account,Council Dwelling Adaptations,19.05.2021,5101133290,"3,547.28",Rexel UK Ltd
Manchester City Council,Housing Revenue Account,Council Dwelling Adaptations,19.05.2021,5101133289,"3,179.91",Magnet Contract Kitchen Solutions
Manchester City Council,Corporate Services,Works and associated costs for Land and Buildings,19.05.2021,5101133112,"87,000.00",Purcell Architecture Limited
Manchester City Council,Corporate Services,Works and associated costs for Land and Buildings,19.05.2021,5101133101,"37,000.00",Faithful & Gould Ltd
Manchester City Council,Corporate Services,Works and associated costs for Land and Buildings,19.05.2021,5101133105,"32,698.00",Mace Ltd
Manchester City Council,Corporate Services,Works and associated costs for Land and Buildings,19.05.2021,5101133089,"15,256.00",Ove Arup & Partners Ltd
Manchester City Council,Corporate Services,Works and associated costs for Land and Buildings,19.05.2021,5101133085,"15,129.60",Ove Arup & Partners Ltd
Manchester City Council,Corporate Services,Works and associated costs for Land and Buildings,19.05.2021,5101133087,"5,034.75",Ove Arup & Partners Ltd
Manchester City Council,Corporate Services,Works and associated costs for Land and Buildings,19.05.2021,5101133107,"5,000.00",Purcell Architecture Limited
Manchester City Council,Corporate Services,Works and associated costs for Land and Buildings,19.05.2021,5101133108,"5,000.00",Purcell Architecture Limited
Manchester City Council,Corporate Services,Works and associated costs for Land and Buildings,19.05.2021,5101133090,"2,418.50",Ove Arup & Partners Ltd
Manchester City Council,Corporate Services,Works and associated costs for Land and Buildings,19.05.2021,5101133106,"1,767.00",Purcell Architecture Limited
Manchester City Council,Corporate Services,Works and associated costs for Land and Buildings,19.05.2021,5101133075,"1,123.88",Ove Arup & Partners Ltd
Manchester City Council,Corporate Services,Works and associated costs for Land and Buildings,19.05.2021,5101133094,"1,034.52",Faithful & Gould Ltd
Manchester City Council,Corporate Services,Works and associated costs for Land and Buildings,19.05.2021,5101133110,"1,012.50",Purcell Architecture Limited
Manchester City Council,Corporate Services,Works and associated costs for Land and Buildings,19.05.2021,5101133105,680.00,Mace Ltd
Manchester City Council,Chief Executives,Works and associated costs for Land and Buildings,19.05.2021,5101133049,"2,241,617.00",Laing O'Rourke Construction Ltd
Manchester City Council,Chief Executives,Works and associated costs for Land and Buildings,19.05.2021,5101133168,"11,500.45",Reeda Safety Ltd T/A
Manchester City Council,Chief Executives,Works and associated costs for Land and Buildings,19.05.2021,5101133171,"10,953.62",Reeda Safety Ltd T/A
Manchester City Council,Chief Executives,Works and associated costs for Land and Buildings,19.05.2021,5101133313,"1,250.00",Planit
Manchester City Council,Corporate Services,Works and associated costs for Land and Buildings,19.05.2021,5101133215,"2,422,941.84",LendLease Construction(EUROPE) Ltd
Manchester City Council,Corporate Services,Works and associated costs for Land and Buildings,19.05.2021,5101133215,"523,955.00",LendLease Construction(EUROPE) Ltd
Manchester City Council,Corporate Services,Works and associated costs for Land and Buildings,19.05.2021,5101133216,"126,840.92",LendLease Construction(EUROPE) Ltd
Manchester City Council,Corporate Services,Works and associated costs for Land and Buildings,19.05.2021,5101133216,"5,428.79",LendLease Construction(EUROPE) Ltd
Manchester City Council,Childrens Services,Works and associated costs for Land and Buildings,19.05.2021,5101133305,"32,824.98",Unity Community Primary School
Manchester City Council,Corporate Services,Works and associated costs for Land and Buildings,19.05.2021,5101133275,"38,438.74",Warden Construction Ltd
Manchester City Council,Corporate Services,Works and associated costs for Land and Buildings,19.05.2021,5101133271,"1,578.32",Warden Construction Ltd
Manchester City Council,Environment and Operations,Construction Works,19.05.2021,5101132832,"128,551.43",Colas Limited
Manchester City Council,Environment and Operations,Construction Works,19.05.2021,5101132945,"23,144.18",Colas Limited
Manchester City Council,Environment and Operations,Construction Works,19.05.2021,5101133119,"21,363.14",Rosgal Ltd
Manchester City Council,Environment and Operations,Construction Works,19.05.2021,5101132945,"5,637.39",Colas Limited
Manchester City Council,Environment and Operations,Construction Works,19.05.2021,5101133256,"3,102.60",Amey Highways Lighting (Manchester)
Manchester City Council,Environment and Operations,Construction Works,19.05.2021,5101133258,"3,102.60",Amey Highways Lighting (Manchester)
Manchester City Council,Environment and Operations,Construction Works,19.05.2021,5101133144,"-21,363.14",Rosgal Ltd
Manchester City Council,Childrens Services,Building Works,19.05.2021,1907242217,"1,985.00",Cadent Gas Ltd.
Manchester City Council,Highways Services,Legal Fees,19.05.2021,5101133298,"1,705.00",Redacted Personal Information
Manchester City Council,Manchester Leisure,Compensation Payments,19.05.2021,1907235503,750.00,Redacted Personal Information
Manchester City Council,Highways Services,Compensation Payments,19.05.2021,5101133309,700.00,Redacted Personal Information
Manchester City Council,Chief Executives,Agency staff provision,20.05.2021,5101133503,"19,320.00",Triad Resourcing
Manchester City Council,Chief Executives,Agency staff provision,20.05.2021,5101133553,"4,089.92",Hays Personnel
Manchester City Council,Chief Executives,Agency staff provision,20.05.2021,5101133384,540.00,Isherwood Legal Limited
Manchester City Council,Manchester Leisure,Training and Development,20.05.2021,5101133490,"2,000.00",Peel Recruitment
Manchester City Council,Childrens & Education Services,Training and Development,20.05.2021,5101133438,"5,830.00",Redacted Personal Information
Manchester City Council,Childrens & Education Services,Training and Development,20.05.2021,5101133563,500.00,eSafe Global Limited
Manchester City Council,Regeneration Finance,External repairs and maintenance for buildings,20.05.2021,5101133444,"134,620.09",Engie Regeneration Ltd
Manchester City Council,Manchester Leisure,Electricity,20.05.2021,1907242865,"24,572.90",Npower
Manchester City Council,Manchester Leisure,Electricity,20.05.2021,1907242903,"21,214.26",Npower
Manchester City Council,Manchester Leisure,Electricity,20.05.2021,1907242965,"6,687.71",EDF Energy
Manchester City Council,Manchester Leisure,Electricity,20.05.2021,1907242971,"6,687.71",EDF Energy
Manchester City Council,Manchester Leisure,Electricity,20.05.2021,1907242966,"6,158.84",EDF Energy
Manchester City Council,Manchester Leisure,Electricity,20.05.2021,1907242967,"5,364.32",EDF Energy
Manchester City Council,Manchester Leisure,Electricity,20.05.2021,1907242864,"5,286.48",Npower
Manchester City Council,Manchester Leisure,Electricity,20.05.2021,1907242880,"5,029.82",Npower
Manchester City Council,Manchester Leisure,Electricity,20.05.2021,1907242969,"4,307.33",EDF Energy
Manchester City Council,Manchester Leisure,Electricity,20.05.2021,1907242905,"4,029.65",Npower
Manchester City Council,Manchester Leisure,Electricity,20.05.2021,1907242866,"4,010.71",Npower
Manchester City Council,Manchester Leisure,Electricity,20.05.2021,1907242870,"2,939.01",Npower
Manchester City Council,Manchester Leisure,Electricity,20.05.2021,1907242863,"1,815.25",Npower
Manchester City Council,Manchester Leisure,Electricity,20.05.2021,1907242894,"1,712.37",Npower
Manchester City Council,Manchester Leisure,Electricity,20.05.2021,1700119621,"-5,364.32",EDF Energy
Manchester City Council,Manchester Leisure,Electricity,20.05.2021,1700119620,"-6,158.84",EDF Energy
Manchester City Council,Manchester Leisure,Electricity,20.05.2021,1700119619,"-6,687.71",EDF Energy
Manchester City Council,Hospitality + Trading Services,Electricity,20.05.2021,1907242906,"27,938.76",Npower
Manchester City Council,Hospitality + Trading Services,Electricity,20.05.2021,1907242871,"13,703.51",Npower
Manchester City Council,Hospitality + Trading Services,Electricity,20.05.2021,1907242884,"4,800.05",Npower
Manchester City Council,Hospitality + Trading Services,Electricity,20.05.2021,1907242926,"2,177.78",Npower
Manchester City Council,Hospitality + Trading Services,Electricity,20.05.2021,1907242927,"1,968.97",Npower
Manchester City Council,Hospitality + Trading Services,Electricity,20.05.2021,1907242902,"1,314.08",Npower
Manchester City Council,Hospitality + Trading Services,Electricity,20.05.2021,1700119613,"-1,922.07",Npower
Manchester City Council,Childrens & Education Services,Electricity,20.05.2021,1907242910,"1,319.17",Npower
Manchester City Council,Childrens & Education Services,Electricity,20.05.2021,1907242876,761.21,Npower
Manchester City Council,Childrens & Education Services,Electricity,20.05.2021,1907242924,577.96,Npower
Manchester City Council,Adult Social Care,Electricity,20.05.2021,1907242925,"1,523.09",Npower
Manchester City Council,Adult Social Care,Electricity,20.05.2021,1907242923,971.40,Npower
Manchester City Council,Adult Social Care,Electricity,20.05.2021,1907242899,900.33,Npower
Manchester City Council,Adult Social Care,Electricity,20.05.2021,1907242908,811.40,Npower
Manchester City Council,Corporate Services,Electricity,20.05.2021,1907242922,"3,598.83",Npower
Manchester City Council,Corporate Services,Electricity,20.05.2021,1907242919,"3,453.86",Npower
Manchester City Council,Corporate Services,Electricity,20.05.2021,1907242921,"3,191.27",Npower
Manchester City Council,Corporate Services,Electricity,20.05.2021,1907242920,"3,106.83",Npower
Manchester City Council,Corporate Services,Electricity,20.05.2021,1907242868,"1,252.03",Npower
Manchester City Council,Corporate Services,Electricity,20.05.2021,1907242873,849.61,Npower
Manchester City Council,Corporate Services,Electricity,20.05.2021,1907242898,788.68,Npower
Manchester City Council,Corporate Services,Electricity,20.05.2021,1907242914,738.74,Npower
Manchester City Council,Corporate Services,Electricity,20.05.2021,1907242879,705.16,Npower
Manchester City Council,Corporate Services,Electricity,20.05.2021,1907242896,689.17,Npower
Manchester City Council,Corporate Services,Electricity,20.05.2021,1907242918,664.92,Npower
Manchester City Council,Corporate Services,Electricity,20.05.2021,1907242915,592.51,Npower
Manchester City Council,Corporate Services,Electricity,20.05.2021,1700119610,"-2,885.27",Npower
Manchester City Council,Corporate Services,Electricity,20.05.2021,1700119611,"-3,178.34",Npower
Manchester City Council,Corporate Services,Electricity,20.05.2021,1700119612,"-3,385.35",Npower
Manchester City Council,Regeneration Finance,Electricity,20.05.2021,1907242917,"23,898.05",Npower
Manchester City Council,Regeneration Finance,Electricity,20.05.2021,1907242904,"20,400.14",Npower
Manchester City Council,Regeneration Finance,Electricity,20.05.2021,1907242911,"17,216.56",Npower
Manchester City Council,Regeneration Finance,Electricity,20.05.2021,1907242867,"12,248.05",Npower
Manchester City Council,Regeneration Finance,Electricity,20.05.2021,1907242916,"11,990.29",Npower
Manchester City Council,Regeneration Finance,Electricity,20.05.2021,1907242907,"7,604.24",Npower
Manchester City Council,Regeneration Finance,Electricity,20.05.2021,1907242882,"6,814.65",Npower
Manchester City Council,Regeneration Finance,Electricity,20.05.2021,1907242886,"5,222.70",Npower
Manchester City Council,Regeneration Finance,Electricity,20.05.2021,1907242892,"2,234.36",Npower
Manchester City Council,Regeneration Finance,Electricity,20.05.2021,1907242900,"2,158.24",Npower
Manchester City Council,Regeneration Finance,Electricity,20.05.2021,1907242885,"1,973.19",Npower
Manchester City Council,Regeneration Finance,Electricity,20.05.2021,1907242890,"1,417.60",Npower
Manchester City Council,Regeneration Finance,Electricity,20.05.2021,1907242901,"1,218.81",Npower
Manchester City Council,Regeneration Finance,Electricity,20.05.2021,1907242928,"1,200.90",Npower
Manchester City Council,Regeneration Finance,Electricity,20.05.2021,1907242887,"1,187.33",Npower
Manchester City Council,Regeneration Finance,Electricity,20.05.2021,1907242895,939.25,Npower
Manchester City Council,Regeneration Finance,Electricity,20.05.2021,1907242929,893.66,Npower
Manchester City Council,Regeneration Finance,Electricity,20.05.2021,1907242888,882.59,Npower
Manchester City Council,Regeneration Finance,Electricity,20.05.2021,1907242893,876.63,Npower
Manchester City Council,Regeneration Finance,Electricity,20.05.2021,1907242872,860.39,Npower
Manchester City Council,Regeneration Finance,Electricity,20.05.2021,1907242889,734.26,Npower
Manchester City Council,Regeneration Finance,Electricity,20.05.2021,1907242869,642.97,Npower
Manchester City Council,Regeneration Finance,Electricity,20.05.2021,1907242913,624.87,Npower
Manchester City Council,Regeneration Finance,Electricity,20.05.2021,1907242878,587.12,Npower
Manchester City Council,Regeneration Finance,Electricity,20.05.2021,1907242912,560.26,Npower
Manchester City Council,Regeneration Finance,Electricity,20.05.2021,1907242891,524.74,Npower
Manchester City Council,Highways Services,Electricity,20.05.2021,1907242957,"8,303.94",EDF Energy
Manchester City Council,Highways Services,Electricity,20.05.2021,1907242958,"7,135.60",EDF Energy
Manchester City Council,Highways Services,Electricity,20.05.2021,1907242959,"5,635.53",EDF Energy
Manchester City Council,Highways Services,Electricity,20.05.2021,1907242960,"5,151.28",EDF Energy
Manchester City Council,Highways Services,Electricity,20.05.2021,1907242953,"4,555.53",EDF Energy
Manchester City Council,Highways Services,Electricity,20.05.2021,1907242956,"4,325.94",EDF Energy
Manchester City Council,Highways Services,Electricity,20.05.2021,1907242952,"4,244.18",EDF Energy
Manchester City Council,Highways Services,Electricity,20.05.2021,1907242955,"4,151.03",EDF Energy
Manchester City Council,Highways Services,Electricity,20.05.2021,1907242962,"3,889.85",EDF Energy
Manchester City Council,Highways Services,Electricity,20.05.2021,1907242972,"2,104.69",EDF Energy
Manchester City Council,Highways Services,Electricity,20.05.2021,1907242976,"1,891.89",Scottish & Southern Energy Plc
Manchester City Council,Highways Services,Electricity,20.05.2021,1907242975,"1,785.11",EDF Energy
Manchester City Council,Highways Services,Electricity,20.05.2021,1907242977,"1,303.98",Scottish & Southern Energy Plc
Manchester City Council,Highways Services,Electricity,20.05.2021,1907242874,660.45,Npower
Manchester City Council,Highways Services,Electricity,20.05.2021,1700119624,"-1,408.45",EDF Energy
Manchester City Council,Highways Services,Electricity,20.05.2021,1700119626,"-1,785.11",EDF Energy
Manchester City Council,Highways Services,Electricity,20.05.2021,1700119623,"-2,104.69",EDF Energy
Manchester City Council,Highways Services,Electricity,20.05.2021,1700119618,"-3,889.85",EDF Energy
Manchester City Council,Highways Services,Electricity,20.05.2021,1700119615,"-4,151.03",EDF Energy
Manchester City Council,Highways Services,Electricity,20.05.2021,1700119617,"-4,325.94",EDF Energy
Manchester City Council,Highways Services,Electricity,20.05.2021,1700119616,"-4,555.53",EDF Energy
Manchester City Council,Childrens & Education Services,Rents,20.05.2021,5101133481,"4,812.14",Commercial Real Estates Management
Manchester City Council,Adult Social Care,Rents,20.05.2021,5101133372,"84,980.14",Accommodation Links Ltd
Manchester City Council,Adult Social Care,Rents,20.05.2021,5101133369,"72,914.57",Accommodation Links Ltd
Manchester City Council,Adult Social Care,Rents,20.05.2021,5101133370,"37,563.90",Housing Social Ltd
Manchester City Council,Adult Social Care,Rents,20.05.2021,5101133371,"37,343.90",Housing Social Ltd
Manchester City Council,Adult Social Care,Rents,20.05.2021,5101133324,"32,517.53",United Property Management Ltd
Manchester City Council,Adult Social Care,Rents,20.05.2021,5101133414,"3,487.96",Mosscare Housing Ltd
Manchester City Council,Adult Social Care,Rents,20.05.2021,5101133440,"3,487.96",Mosscare Housing Ltd
Manchester City Council,Regeneration Finance,Rents,20.05.2021,1907242213,"11,923.86",DUK Property Management Ltd
Manchester City Council,Adult Social Care,Water Service Charges - Unmetered,20.05.2021,1907242856,"1,574.83",United Utilities Water Plc
Manchester City Council,Adult Social Care,Water Service Charges - Unmetered,20.05.2021,1907242854,"1,123.82",United Utilities Water Plc
Manchester City Council,Adult Social Care,Water Service Charges - Unmetered,20.05.2021,1907242853,"1,101.55",United Utilities Water Plc
Manchester City Council,Adult Social Care,Water Service Charges - Unmetered,20.05.2021,1907242850,"1,018.03",United Utilities Water Plc
Manchester City Council,Adult Social Care,Water Service Charges - Unmetered,20.05.2021,1907242851,"1,018.03",United Utilities Water Plc
Manchester City Council,Adult Social Care,Water Service Charges - Unmetered,20.05.2021,1907242852,"1,018.03",United Utilities Water Plc
Manchester City Council,Adult Social Care,Water Service Charges - Unmetered,20.05.2021,1907242849,853.78,United Utilities Water Plc
Manchester City Council,Adult Social Care,Water Service Charges - Unmetered,20.05.2021,1907242847,747.99,United Utilities Water Plc
Manchester City Council,Adult Social Care,Water Service Charges - Unmetered,20.05.2021,1907242848,747.99,United Utilities Water Plc
Manchester City Council,Adult Social Care,Water Service Charges - Unmetered,20.05.2021,1907242846,742.42,United Utilities Water Plc
Manchester City Council,Adult Social Care,Water Service Charges - Unmetered,20.05.2021,1907242845,700.65,United Utilities Water Plc
Manchester City Council,Adult Social Care,Water Service Charges - Unmetered,20.05.2021,1907242843,689.52,United Utilities Water Plc
Manchester City Council,Adult Social Care,Water Service Charges - Unmetered,20.05.2021,1907242844,689.52,United Utilities Water Plc
Manchester City Council,Adult Social Care,Water Service Charges - Unmetered,20.05.2021,1907242842,675.60,United Utilities Water Plc
Manchester City Council,Adult Social Care,Water Service Charges - Unmetered,20.05.2021,1907242839,628.27,United Utilities Water Plc
Manchester City Council,Adult Social Care,Water Service Charges - Unmetered,20.05.2021,1907242840,628.27,United Utilities Water Plc
Manchester City Council,Adult Social Care,Water Service Charges - Unmetered,20.05.2021,1907242841,628.27,United Utilities Water Plc
Manchester City Council,Adult Social Care,Water Service Charges - Unmetered,20.05.2021,1907242838,561.45,United Utilities Water Plc
Manchester City Council,Adult Social Care,Water Service Charges - Unmetered,20.05.2021,1907242837,547.54,United Utilities Water Plc
Manchester City Council,Adult Social Care,Water Service Charges - Unmetered,20.05.2021,1907242836,536.40,United Utilities Water Plc
Manchester City Council,Adult Social Care,Water Service Charges - Unmetered,20.05.2021,1907242829,502.99,United Utilities Water Plc
Manchester City Council,Adult Social Care,Water Service Charges - Unmetered,20.05.2021,1907242830,502.99,United Utilities Water Plc
Manchester City Council,Adult Social Care,Water Service Charges - Unmetered,20.05.2021,1907242831,502.99,United Utilities Water Plc
Manchester City Council,Adult Social Care,Water Service Charges - Unmetered,20.05.2021,1907242832,502.99,United Utilities Water Plc
Manchester City Council,Adult Social Care,Water Service Charges - Unmetered,20.05.2021,1907242833,502.99,United Utilities Water Plc
Manchester City Council,Corporate Services,Water Service Charges - Unmetered,20.05.2021,1907242855,"1,435.63",United Utilities Water Plc
Manchester City Council,Corporate Services,Water Service Charges - Unmetered,20.05.2021,1907242835,516.91,United Utilities Water Plc
Manchester City Council,Corporate Services,Water Service Charges - Unmetered,20.05.2021,1907242834,514.13,United Utilities Water Plc
Manchester City Council,Manchester Leisure,Refuse Collection,20.05.2021,5101133364,"1,133,571.70",Biffa Municipal Limited
Manchester City Council,Manchester Leisure,Refuse Collection,20.05.2021,5101133359,"87,994.52",Biffa Municipal Limited
Manchester City Council,Manchester Leisure,Refuse Collection,20.05.2021,5101133361,"87,994.52",Biffa Municipal Limited
Manchester City Council,Manchester Leisure,Refuse Collection,20.05.2021,5101133363,"87,994.52",Biffa Municipal Limited
Manchester City Council,Manchester Leisure,Refuse Collection,20.05.2021,5101133362,"-87,994.52",Biffa Municipal Limited
Manchester City Council,Regeneration Finance,Storage Costs,20.05.2021,5101133543,878.71,Data Space Limited
Manchester City Council,Regeneration Finance,Storage Costs,20.05.2021,5101133547,551.56,Data Space Limited
Manchester City Council,Corporate Services,Transport Taxis,20.05.2021,1907243324,"1,047.82",City Car Club Ltd
Manchester City Council,Childrens & Education Services,Transport Coach Hire,20.05.2021,5101133650,"25,958.00",Mantax Radio Taxis Ltd
Manchester City Council,Manchester Leisure,Equipment,20.05.2021,5101133569,"59,629.20",Cromwell Polythene Limited
Manchester City Council,Manchester Leisure,Equipment,20.05.2021,5101133026,597.50,Solon Security Ltd
Manchester City Council,Childrens & Education Services,Equipment,20.05.2021,5101133546,535.56,Back Care Solutions Ltd
Manchester City Council,Adult Social Care,Equipment,20.05.2021,5101133549,"1,323.00",Smitcare Ltd
Manchester City Council,Adult Social Care,Furniture,20.05.2021,5101133541,533.90,Back Care Solutions Ltd
Manchester City Council,Manchester Leisure,Building Materials for direct delivery,20.05.2021,5101133395,"1,997.10",Fleet (Line Markers) Ltd
Manchester City Council,Manchester Leisure,Building Materials for direct delivery,20.05.2021,5101133504,"1,352.00",The Helping Hand Company Ltd
Manchester City Council,Manchester Leisure,Building Materials for direct delivery,20.05.2021,5101133505,"1,071.22",The Helping Hand Company Ltd
Manchester City Council,Highways Services,Building Materials for direct delivery,20.05.2021,5101133467,880.68,TARMAC
Manchester City Council,Highways Services,Building Materials for direct delivery,20.05.2021,5101133331,831.48,TARMAC
Manchester City Council,Highways Services,Building Materials for direct delivery,20.05.2021,5101133539,816.72,TARMAC
Manchester City Council,Highways Services,Building Materials for direct delivery,20.05.2021,5101133334,675.68,TARMAC
Manchester City Council,Highways Services,Building Materials for direct delivery,20.05.2021,5101133463,662.56,TARMAC
Manchester City Council,Highways Services,Building Materials for direct delivery,20.05.2021,5101133544,662.56,TARMAC
Manchester City Council,Highways Services,Building Materials for direct delivery,20.05.2021,5101133484,642.88,TARMAC
Manchester City Council,Highways Services,Building Materials for direct delivery,20.05.2021,5101133531,642.88,TARMAC
Manchester City Council,Highways Services,Building Materials for direct delivery,20.05.2021,5101133462,560.88,TARMAC
Manchester City Council,Highways Services,Building Materials for direct delivery,20.05.2021,5101133473,506.76,TARMAC
Manchester City Council,Highways Services,Payments to Sub-Contractors,20.05.2021,5101133516,"90,548.20",Rosgal Ltd
Manchester City Council,Highways Services,Payments to Sub-Contractors,20.05.2021,5101133491,"43,299.22",Rosgal Ltd
Manchester City Council,Highways Services,Payments to Sub-Contractors,20.05.2021,5101133045,"11,015.14",Rosgal Ltd
Manchester City Council,Highways Services,Payments to Sub-Contractors,20.05.2021,5101133041,"7,881.36",Rosgal Ltd
Manchester City Council,Highways Services,Payments to Sub-Contractors,20.05.2021,5101133042,"4,455.45",Rosgal Ltd
Manchester City Council,Highways Services,Payments to Sub-Contractors,20.05.2021,5101133040,"4,067.27",Rosgal Ltd
Manchester City Council,Corporate Services,Machinery and equipment repairs,20.05.2021,5101133415,"2,750.00",Taranto Systems Ltd
Manchester City Council,Manchester Leisure,Grant Payments,20.05.2021,5101133339,"10,000.00",City in the Community
Manchester City Council,Chief Executives,Catering,20.05.2021,5101133558,"5,223.43",Manchester Central
Manchester City Council,Manchester Leisure,Professional fees,20.05.2021,5101133366,"99,992.50",Biffa Municipal Limited
Manchester City Council,Manchester Leisure,Professional fees,20.05.2021,5101133367,"99,525.00",Biffa Municipal Limited
Manchester City Council,Manchester Leisure,Professional fees,20.05.2021,1907167690,"4,800.00",Moyan Displays
Manchester City Council,Childrens & Education Services,Professional fees,20.05.2021,1907229754,"2,135.40",Sharon Dyceh ISW Limited
Manchester City Council,Childrens & Education Services,Professional fees,20.05.2021,1907237912,"1,960.00",18 St John Street Chambers
Manchester City Council,Childrens & Education Services,Professional fees,20.05.2021,5101133527,"1,134.35",Protec Fire Detection Plc
Manchester City Council,Childrens & Education Services,Professional fees,20.05.2021,5101133528,"1,124.98",Protec Fire Detection Plc
Manchester City Council,Childrens & Education Services,Professional fees,20.05.2021,1907237925,850.00,Redacted Personal Information
Manchester City Council,Childrens & Education Services,Professional fees,20.05.2021,1907238982,840.00,Walking Together Ltd
Manchester City Council,Childrens & Education Services,Professional fees,20.05.2021,1907237902,702.83,Forensic Testing Service Ltd
Manchester City Council,Childrens & Education Services,Professional fees,20.05.2021,1907238972,500.00,Central Chambers
Manchester City Council,Corporate Services,Professional fees,20.05.2021,5101133495,"1,172.98",ENGIE Services Ltd
Manchester City Council,Chief Executives,Professional fees,20.05.2021,5101133557,"20,942.00",Manchester Central
Manchester City Council,Regeneration Finance,Professional fees,20.05.2021,5101133405,"40,000.00",C & W (U.K.) LLP
Manchester City Council,Regeneration Finance,Professional fees,20.05.2021,5101133494,"1,809.50",P Mcguinness & Co Ltd
Manchester City Council,Regeneration Finance,Professional fees,20.05.2021,5101133489,580.00,Alan Franklin Builders Limited
Manchester City Council,Chief Executives,Postage,20.05.2021,5101132346,"16,613.78",Royal Mail Group Plc
Manchester City Council,Chief Executives,Postage,20.05.2021,5101132347,"2,164.43",Royal Mail Group Plc
Manchester City Council,Corporate Services,Mobilephone Charges,20.05.2021,5101133441,623.58,EE/T-Mobile
Manchester City Council,Chief Executives,I T Provision,20.05.2021,5101131898,639.33,Insight Direct (Uk) Ltd
Manchester City Council,Chief Executives,I T Provision,20.05.2021,5101133403,"7,950.00",Nuway Audio Visual Ltd
Manchester City Council,Insurance Fund,Insurance,20.05.2021,1907237913,725.00,Department For Work & Pensions
Manchester City Council,Manchester Leisure,Grant and subscriptions awarded,20.05.2021,5101133468,"31,500.00",Riverside ECHG
Manchester City Council,Manchester Leisure,Grant and subscriptions awarded,20.05.2021,5101133340,"1,000.00",Danforth Grove R A
Manchester City Council,Corporate Services,Grant and subscriptions awarded,20.05.2021,5101133413,"1,274.21",Tameside Metropolitan Bouough
Manchester City Council,Corporate Services,Grant and subscriptions awarded,20.05.2021,5101133416,699.65,Tameside Metropolitan Bouough
Manchester City Council,Highways Services,Private Finance and Public Private partnership initiatives,20.05.2021,5101133344,"643,603.17",Amey Highways Lighting (Manchester)
Manchester City Council,Adult Social Care,Bed and Breakfast Accommodation Expenditure,20.05.2021,5101133368,"11,600.00",Redacted Personal Information
Manchester City Council,Adult Social Care,Bed and Breakfast Accommodation Expenditure,20.05.2021,5101133365,"4,920.00",Redacted Personal Information
Manchester City Council,Childrens & Education Services,Third party payments to other Local Authorities,20.05.2021,5101133398,"25,666.67",Co-Op Academy
Manchester City Council,Childrens & Education Services,Third party payments to other Local Authorities,20.05.2021,5101133349,"2,273.00",Moorlands Junior School
Manchester City Council,Adult Social Care,Third party payments to Health Authority,20.05.2021,5101133530,"116,324.00",Greater Manchester Mental Health
Manchester City Council,Adult Social Care,Third party payments to Health Authority,20.05.2021,5101133530,"32,916.00",Greater Manchester Mental Health
Manchester City Council,Adult Social Care,Third party payments to Health Authority,20.05.2021,5101133530,"11,763.00",Greater Manchester Mental Health
Manchester City Council,Childrens & Education Services,Third party payments relating to Voluntary Organisations,20.05.2021,5101133388,"58,117.00",Barnardo Services Ltd (Essex)
Manchester City Council,Childrens & Education Services,Third party payments relating to Voluntary Organisations,20.05.2021,5101133389,"-58,117.00",Barnardo Services Ltd (Essex)
Manchester City Council,Adult Social Care,Third party payments relating to Voluntary Organisations,20.05.2021,5101133470,"276,099.00",Riverside ECHG
Manchester City Council,Adult Social Care,Third party payments relating to Voluntary Organisations,20.05.2021,5101133477,"103,194.00",Riverside ECHG
Manchester City Council,Adult Social Care,Third party payments relating to Voluntary Organisations,20.05.2021,5101133476,"53,362.24",Riverside ECHG
Manchester City Council,Adult Social Care,Third party payments relating to Voluntary Organisations,20.05.2021,5101133493,"40,000.00",Riverside ECHG
Manchester City Council,Chief Executives,Third party payments relating to Voluntary Organisations,20.05.2021,5101133559,"3,900.00",Manchester Central
Manchester City Council,Regeneration Finance,Third party payments relating to Voluntary Organisations,20.05.2021,5101133307,"22,400.00",Impact For All
Manchester City Council,Childrens & Education Services,Payments for services,20.05.2021,5101133391,"184,121.95",Seashell trust
Manchester City Council,Childrens & Education Services,Payments for services,20.05.2021,5101133410,"6,801.39",Keys PCE Limited
Manchester City Council,Childrens & Education Services,Payments for services,20.05.2021,5101133355,"5,421.00",Bolton College
Manchester City Council,Childrens & Education Services,Payments for services,20.05.2021,5101133393,"3,302.25",Tameside College
Manchester City Council,Childrens & Education Services,Payments for services,20.05.2021,5101133390,"2,955.79",Nugent House School
Manchester City Council,Childrens & Education Services,Payments for services,20.05.2021,5101133392,"2,486.84",Nugent House School
Manchester City Council,Childrens & Education Services,Payments for services,20.05.2021,5101133411,"2,189.00",Keys PCE Limited
Manchester City Council,Childrens & Education Services,Payments for services,20.05.2021,5101133409,"1,760.00",Keys PCE Limited
Manchester City Council,Childrens & Education Services,Payments for services,20.05.2021,5101133373,"1,247.52",Reed Employment Plc
Manchester City Council,Childrens & Education Services,Payments for services,20.05.2021,5101133394,"1,195.20",Nugent House School
Manchester City Council,Adult Social Care,Payments for services,20.05.2021,5101133350,"42,891.50",Brook
Manchester City Council,Adult Social Care,Payments for services,20.05.2021,5101133350,"10,833.48",Brook
Manchester City Council,Adult Social Care,Supporting People Payments,20.05.2021,5101133464,"5,125.00",Riverside ECHG
Manchester City Council,Adult Social Care,Supporting People Payments,20.05.2021,5101133478,"4,814.00",Riverside ECHG
Manchester City Council,Childrens & Education Services,Supported Accommodation,20.05.2021,5101133336,"12,621.65",Social Care Services Ltd
Manchester City Council,Adult Social Care,Extra Care Sheltered Housing Payments,20.05.2021,5101133347,"35,165.82",Premier Care  Ltd
Manchester City Council,Adult Social Care,Extra Care Sheltered Housing Payments,20.05.2021,5101133345,"26,799.60",Premier Care  Ltd
Manchester City Council,Adult Social Care,Extra Care Sheltered Housing Payments,20.05.2021,5101133401,"24,496.33",Castlerock Recruitment Group
Manchester City Council,Adult Social Care,Extra Care Sheltered Housing Payments,20.05.2021,5101133348,"20,883.73",Premier Care  Ltd
Manchester City Council,Adult Social Care,Extra Care Sheltered Housing Payments,20.05.2021,5101133343,"19,458.22",Premier Care  Ltd
Manchester City Council,Housing Revenue Account,Council Dwelling Adaptations,20.05.2021,5101133554,"130,821.40",Northwards Housing Limited
Manchester City Council,Housing Revenue Account,Council Dwelling Adaptations,20.05.2021,5101133570,"24,874.02",Northwards Housing Limited
Manchester City Council,Housing Revenue Account,Council Dwelling Adaptations,20.05.2021,5101133564,"2,300.80",Northwards Housing Limited
